Workbook

Sheet Instructions
A2: Exhibit D - EEHDP Excel Template
A3: Introduction to the Workbook
A4: INSTRUCTIONS
A5: This document serves as the Excel portion of the East End Housing Development Program application for both rental and for-sale projects. Fill out the information in the "Basic Project Information" section below, then click "Run".
A7: Throughout the workbook, please adhere to the following cell color prompts:
D9: Blue - empty cell to be filled in
D10: Yellow - formula cell that will autopopulate; do not change
A12: Note: Macros in Excel must be enabled to properly use this workbook. If presented with a "SECURITY WARNING" at the top of this screen, click "Enable Content"
A13: BASIC PROJECT INFORMATION
A14: Date | C14: 2021-01-06
A15: Project Name | C15: Project A
A16: Developer/Sponsor | C16: Apex Developers
A17: Select Project Type | C17: For-Sale
A18: Total Project Units | C18: 6

Sheet Affordable Units (hidden)
A2: PROJECT NAME | B2: =[1]Instructions!$C$15 -> Project A
A3: DEVELOPER/SPONSOR | B3: =[1]Instructions!$C$17 -> Apex Developers
A5: Minimum Affordable Unit Verification - Rental
A7: Verification (MANDATORY) | H7: =IF(H13="No","Original Proposal","") -> 
A8: Total Number of Units (Affordable and Market-Rate) | H8: =Instructions!C18 -> 6
A10: Proposed Number of Units Affordable to 50% AMI | H10: 5
A11: Total Number of Affordable Units | H11: =SUM(H10:H10) -> 5
A13: MINIMUM REQUIREMENT MET? | H13: =_xlfn.SWITCH(TRUE(),AND(H8<20,H10>=ROUND(0.5*H8,0)),"YES",AND(H8>=20,H8<=47,H10>=10),"YES",AND(H8>=48,H10>=ROUND(0.2*H8,0)),"YES","NO") -> YES
A17: =IF(H13="No","Calculation (for use if original proposal does not meet requiremet)","") -> 
A19: =IF(H13="No","Based on your project size,","") -> 
A20: =IF(AND(H8>47,H13="NO"),CONCATENATE("Total Number of Units Affordable to Households at or Below 50% AMI Must Be At Least ",ROUND(0.2*H8,0)),"") -> 
A21: =IF((AND(H8>=20,H8<=47, H13="No")), "Total Number of Units Affordable to Households at or Below 50% AMI Must Be At Least 10", " ") -> 
A22: =IF(AND(H8<=19,H13="NO"),CONCATENATE("Total Number of Units Affordable to Households at or Below 50% AMI Must Be At Least ",ROUND(0.5*H8,0)),"") -> 

Sheet Rental Budget (hidden)
A2: PROJECT NAME | C2: =[1]Instructions!$C$15 -> Project A | D2: =[1]Instructions!$C$15 -> Project A | E2: =[1]Instructions!$C$15 -> Project A | F2: =[1]Instructions!$C$15 -> Project A | G2: =[1]Instructions!$C$15 -> Project A | H2: =[1]Instructions!$C$15 -> Project A | I2: =[1]Instructions!$C$15 -> Project A
A3: DEVELOPER/SPONSOR | C3: =[1]Instructions!$C$17 -> Apex Developers | D3: =[1]Instructions!$C$17 -> Apex Developers | E3: =[1]Instructions!$C$17 -> Apex Developers | F3: =[1]Instructions!$C$17 -> Apex Developers | G3: =[1]Instructions!$C$17 -> Apex Developers | H3: =[1]Instructions!$C$17 -> Apex Developers | I3: =[1]Instructions!$C$17 -> Apex Developers
A5: Rental Development Budget with
A6: Permanent Sources
A9: Total Units | C9: =Instructions!C18 -> 6
A10: Total Square Feet | C10: 10000
G12: Total | H12: Per Unit | I12: Per Sq Ft
A13: Committed Sources of Funds | D13: Detail
A14: Permanent Financing - 1st Lien | H14: =IFERROR(G14/$C$9,"") -> 0 | I14: =IFERROR(G14/$C$10,"") -> 0
A15: Permanent Financing - 2nd Lien | H15: 0 | I15: 0
A16: Equity (LIHTC) | H16: 0 | I16: 0
A17: Equity (Developer) | H17: 0 | I17: 0
A18: Deferred development fee | H18: 0 | I18: 0
A19: Other: | H19: 0 | I19: 0
A20: Other: | H20: 0 | I20: 0
A21: Other: | H21: 0 | I21: 0
A22: Other: | H22: 0 | I22: 0
A23: Total Committed Sources of Funds | G23: =SUM(G14:G22) -> 0 | H23: =SUM(H14:H22) -> 0 | I23: =SUM(I14:I22) -> 0
A25: Pending/Proposed Sources of Funds | D25: Detail
A26: RACP | H26: =IFERROR(G26/$C$9,"") -> 0 | I26: =IFERROR(G26/$C$10,"") -> 0
A27: FHLB | H27: 0 | I27: 0
A28: PHARE | H28: 0 | I28: 0
A29: EEHDP Request | H29: 0 | I29: 0
A30: Other: | H30: 0 | I30: 0
A31: Other: | H31: 0 | I31: 0
A32: Other: | H32: 0 | I32: 0
A33: Other: | H33: 0 | I33: 0
A34: Total Pending/Proposed Sources of Funds | G34: =SUM(G26:G33) -> 0 | H34: =SUM(H26:H33) -> 0 | I34: =SUM(I26:I33) -> 0
A36: Total Sources of Funds | G36: =SUM(G34,G23) -> 0 | H36: =SUM(H34,H23) -> 0 | I36: =SUM(I34,I23) -> 0
A38: Uses of Funds
A40: Hard Costs | D40: Detail
A41: General Requirements | F41: =IFERROR(G41/SUM($G$42:$G$46),"") ->  | H41: =IFERROR(G41/$C$9,"") -> 0 | I41: =IFERROR(G41/$C$10,"") -> 0
A42: Demolition | H42: 0 | I42: 0
A43: Site Work | H43: 0 | I43: 0
A44: Offsite Improvements | H44: 0 | I44: 0
A45: Environmental Remediation | H45: 0 | I45: 0
A46: Construction | H46: 0 | I46: 0
A47: Builder's Overhead | F47: =IFERROR(G47/SUM($G$42:$G$46),"") ->  | H47: 0 | I47: 0
A48: Builder's Profit | F48: =IFERROR(G48/SUM($G$42:$G$46),"") ->  | H48: 0 | I48: 0
A49: Bond Premium | H49: 0 | I49: 0
A50: Building Permits | H50: 0 | I50: 0
A51: Other: | H51: 0 | I51: 0
A52: Other: | H52: 0 | I52: 0
A53: Other: | H53: 0 | I53: 0
A54: Other: | H54: 0 | I54: 0
A55: Hard Cost Contingency (% of hard costs) | F55: =IFERROR(G55/SUM(G41:G54),"") ->  | H55: 0 | I55: 0
A56: Total Hard Costs | G56: =SUM(G41:G55) -> 0 | H56: =SUM(H41:H55) -> 0 | I56: =SUM(I41:I55) -> 0
A58: Fees | D58: Detail
A59: Architectural Fee (Design & Admin) | H59: =IFERROR(G59/$C$9,"") -> 0 | I59: =IFERROR(G59/$C$10,"") -> 0
A60: Legal | H60: 0 | I60: 0
A61: Civil Engineering & Survey | H61: 0 | I61: 0
A62: Design & Permitting (% of const exp) | F62: =IFERROR((G61)/SUM(G41:G48),"") ->  | H62: 0 | I62: 0
A63: Soils/Structural Report | H63: 0 | I63: 0
A64: Environmental Audit (Hazard Assessment) | H64: 0 | I64: 0
A65: Energy & Green Audits/Consulting | H65: 0 | I65: 0
A66: Capital Needs Assessment | H66: 0 | I66: 0
A67: Appraisal | H67: 0 | I67: 0
A68: Market Study | H68: 0 | I68: 0
A69: Cost Certification | H69: 0 | I69: 0
A70: Part 58 Legal Posting | B70: if federal funds are used $1300 | H70: 0 | I70: 0
A71: EEHDP Origination Fee (2%) | G71: =0.02*G29 -> 0 | H71: 0 | I71: 0
A72: URA Inspection Fee | B72: $500/unit, max $15,000 | G72: =IF(C9>=30,15000,(500*C9)) -> 3000 | H72: 500 | I72: 0.3
A73: Other: | H73: 0 | I73: 0
A74: Other: | H74: 0 | I74: 0
A75: Other: | H75: 0 | I75: 0
A76: Total Fees | G76: =SUM(G59:G75) -> 3000 | H76: =SUM(H59:H75) -> 500 | I76: =SUM(I59:I75) -> 0.3
A78: Miscellaneous Development Expenses | D78: Detail
A79: PHFA Application & Legal Fees | H79: =IFERROR(G79/$C$9,"") -> 0 | I79: =IFERROR(G79/$C$10,"") -> 0
A80: Tax Credit Reservation/Carryover Allocation/Cost Certification Fee | H80: 0 | I80: 0
A81: Furnishings (Common Area) | H81: 0 | I81: 0
A82: Rent Up Expense | H82: 0 | I82: 0
A83: Relocation | H83: 0 | I83: 0
A84: Utility Tap, Hook Up & Municipal Fees | H84: 0 | I84: 0
A85: Susidy Layering Review Fee | H85: 0 | I85: 0
A86: Other: | H86: 0 | I86: 0
A87: Other: | H87: 0 | I87: 0
A88: Other: | H88: 0 | I88: 0
A89: Other: | H89: 0 | I89: 0
A90: Total Miscellaneous Development Expense | G90: =SUM(G79:G89) -> 0 | H90: =SUM(H79:H89) -> 0 | I90: =SUM(I79:I89) -> 0
A92: Construction & Permanent Loan Financing Charges | D92: Detail
A93: Construction Loan Interest | F93: month const. period) | H93: =IFERROR(G93/$C$9,"") -> 0 | I93: =IFERROR(G93/$C$10,"") -> 0
A94: Construction Loan Fees (Origination, Credit Enhancement, Application) | H94: 0 | I94: 0
A95: Taxes During Construction | H95: 0 | I95: 0
A96: Insurance During Construction | H96: 0 | I96: 0
A97: Title Insurance | H97: 0 | I97: 0
A98: Recording | H98: 0 | I98: 0
A99: Construction Monitoring Fee | H99: 0 | I99: 0
A100: Permanent Loan Fees (Origination, Reservation, Credit Enhancement) | H100: 0 | I100: 0
A101: Other: | H101: 0 | I101: 0
A102: Other: | H102: 0 | I102: 0
A103: Other: | H103: 0 | I103: 0
A104: Other: | H104: 0 | I104: 0
A105: Soft Cost Contingency (% of soft costs excl Dev Fee) | F105: =IFERROR(G105/(G76+G90+SUM(G93:G104)+G144),"") -> 0 | H105: 0 | I105: 0
A106: Total Construction & Financing Charges: | G106: =SUM(G93:G105) -> 0 | H106: =SUM(H92:H105) -> 0 | I106: =SUM(I90:I105) -> 0
A108: Acquisition | D108: Detail
A109: Acquisition: Land | H109: =IFERROR(G109/$C$9,"") -> 0 | I109: =IFERROR(G109/$C$10,"") -> 0
A110: Acquisition: Existing Structures | H110: 0 | I110: 0
A111: Acquisition: Legal | H111: 0 | I111: 0
A112: Acquisition Closing Costs | H112: 0 | I112: 0
A113: Other: | H113: 0 | I113: 0
A114: Other: | H114: 0 | I114: 0
A115: Other: | H115: 0 | I115: 0
A116: Other: | H116: 0 | I116: 0
A117: Total Acquisition | G117: =SUM(G109:G116) -> 0 | H117: =SUM(H109:H116) -> 0 | I117: =SUM(I109:I116) -> 0
A119: Reserves and Developer Fee | D119: Detail
A120: Operating Reserve | H120: =IFERROR(G120/$C$9,"") -> 0 | I120: =IFERROR(G120/$C$10,"") -> 0
A121: Prefunded Replacement Reserve | H121: 0 | I121: 0
A122: Rental Subsidy Fund | H122: 0 | I122: 0
A123: Other Reserves (Transformation, Development Contingency) | H123: 0 | I123: 0
A124: Taxes & Insurance Escrow (first year operations escrow) | H124: 0 | I124: 0
A125: Supportive Services Escrow | H125: 0 | I125: 0
A126: Developer Fee | F126: =IFERROR(G126/(G146-G131),"") -> 0 | H126: 0 | I126: 0
A127: Other: | H127: 0 | I127: 0
A128: Other: | H128: 0 | I128: 0
A129: Other: | H129: 0 | I129: 0
A130: Other: | H130: 0 | I130: 0
A131: Total Reserves and Developer Fee | G131: =SUM(G120:G130) -> 0 | H131: =SUM(H120:H130) -> 0 | I131: =SUM(I120:I130) -> 0
A133: Syndication Fees & Expenses (tax credit projects only) | D133: Detail
A134: Organizational | H134: =IFERROR(G134/$C$9,"") -> 0 | I134: =IFERROR(G134/$C$10,"") -> 0
A135: Bridge Loan Interest | H135: 0 | I135: 0
A136: Bridge Loan Fees & Expenses | H136: 0 | I136: 0
A137: Legal Fees | H137: 0 | I137: 0
A138: Accountant's Fees | H138: 0 | I138: 0
A139: Tax Credit Compliance & Asset Monitoring Fee | H139: 0 | I139: 0
A140: Other Compliance & Monitoring Fees | H140: 0 | I140: 0
A141: Other: | H141: 0 | I141: 0
A142: Other: | H142: 0 | I142: 0
A143: Other: | H143: 0 | I143: 0
A144: Total Syndication Fees & Expenses | G144: =SUM(G132:G143) -> 0 | H144: =SUM(H132:H143) -> 0 | I144: =SUM(I132:I143) -> 0
A146: Total Uses of Funds | G146: =SUM(G56,G76,G90,G106,G117,G131,G144) -> 3000 | H146: =SUM(H56,H76,H90,H106,H117,H131,H144) -> 500 | I146: =SUM(I56,I76,I90,I106,I117,I131,I144) -> 0.3

Sheet Median Costs & Relocation (hidden)
A2: PROJECT NAME | C2: =[1]Instructions!$C$15 -> Project A | D2: =[1]Instructions!$C$15 -> Project A | E2: =[1]Instructions!$C$15 -> Project A | F2: =[1]Instructions!$C$15 -> Project A | G2: =[1]Instructions!$C$15 -> Project A | H2: =[1]Instructions!$C$15 -> Project A | I2: =[1]Instructions!$C$15 -> Project A
A3: DEVELOPER/SPONSOR | C3: =[1]Instructions!$C$17 -> Apex Developers | D3: =[1]Instructions!$C$17 -> Apex Developers | E3: =[1]Instructions!$C$17 -> Apex Developers | F3: =[1]Instructions!$C$17 -> Apex Developers | G3: =[1]Instructions!$C$17 -> Apex Developers | H3: =[1]Instructions!$C$17 -> Apex Developers | I3: =[1]Instructions!$C$17 -> Apex Developers
A5: Comparison with PHFA Median Costs
A8: Calculated Project Cost/SF | F8: ='Rental Budget'!G146/'Rental Budget'!C10 -> 0.3
A11: Application Property Type | D11: Pennsylvania Median Cost/SF | E11: Over or Under? | F11: Mark Most Relevant Property Type(s) with "X"
A12: Single Family/Townhouse | D12: 208 | E12: =IF($F$8>D12,"Over",IF($F$8=D12,"Equal",IF($F$8<D12,"Under",""))) -> Under
A13: Multi-Story Elevator Building | D13: 254 | E13: =IF($F$8>D13,"Over",IF($F$8=D13,"Equal",IF($F$8<D13,"Under",""))) -> Under
A14: Adaptive Reuse Building | D14: 214 | E14: =IF($F$8>D14,"Over",IF($F$8=D14,"Equal",IF($F$8<D14,"Under",""))) -> Under
A15: Preservation | D15: 119 | E15: =IF($F$8>D15,"Over",IF($F$8=D15,"Equal",IF($F$8<D15,"Under",""))) -> Under
A16: Pittsburgh | D16: 292.5 | E16: =IF($F$8>D16,"Over",IF($F$8=D16,"Equal",IF($F$8<D16,"Under",""))) -> Under
A18: Temporary Relocation Budget
A21: Number of Units to be Relocated:
A22: Duration of Household Relocation, in months:
G24: Total Costs | H24: Per Unit | I24: Per Unit Per Month
A25: Relocation Expenses | E25: Details:
A26: Moving Contractor | H26: =IFERROR(G26/$F$21,"") -> 
A27: Moving Supplies (if not included above)
A28: Temporary Storage | I28: =IFERROR(G28/$F$22,"") -> 
A29: Temporary Housing | I29: =IFERROR(G29/$F$22,"") -> 
A30: Coordination Staffing
A31: Compliance Consulting (if Uniform Relocation Act triggered)
A32: Other:
A33: Other:
A34: Other:
A35: Other:
A36: Total Relocation Expenses | G36: =SUM(G26:G35) -> 0 | H36: =SUM(H26:H35) -> 0 | I36: =SUM(I26:I35) -> 0

Sheet Pro Forma (hidden)
A1: 0 BR | B1: 1 BR | C1: 2 BR | D1: 3 BR | E1: 4 BR | F1: Other
A3: PROJECT NAME | C3: =[1]Instructions!$C$15 -> Project A | D3: =[1]Instructions!$C$15 -> Project A | E3: =[1]Instructions!$C$15 -> Project A | F3: =[1]Instructions!$C$15 -> Project A | G3: =[1]Instructions!$C$15 -> Project A | H3: =[1]Instructions!$C$15 -> Project A | I3: =[1]Instructions!$C$15 -> Project A | J3: =[1]Instructions!$C$15 -> Project A | K3: =[1]Instructions!$C$15 -> Project A | L3: =[1]Instructions!$C$15 -> Project A | M3: =[1]Instructions!$C$15 -> Project A | N3: =[1]Instructions!$C$15 -> Project A | O3: =[1]Instructions!$C$15 -> Project A
A4: DEVELOPER/SPONSOR | C4: =[1]Instructions!$C$17 -> Apex Developers | D4: =[1]Instructions!$C$17 -> Apex Developers | E4: =[1]Instructions!$C$17 -> Apex Developers | F4: =[1]Instructions!$C$17 -> Apex Developers | G4: =[1]Instructions!$C$17 -> Apex Developers | H4: =[1]Instructions!$C$17 -> Apex Developers | I4: =[1]Instructions!$C$17 -> Apex Developers | J4: =[1]Instructions!$C$17 -> Apex Developers | K4: =[1]Instructions!$C$17 -> Apex Developers | L4: =[1]Instructions!$C$17 -> Apex Developers | M4: =[1]Instructions!$C$17 -> Apex Developers | N4: =[1]Instructions!$C$17 -> Apex Developers | O4: =[1]Instructions!$C$17 -> Apex Developers
A6: Rental Project Operating Pro Forma
A9: Rental Income
A10: Unit Type | B10: Number of Units | C10: Per Unit Sq Ft | D10: Total Sq Ft | E10: Restriction on % AMI | F10: Per Unit Monthly Gross Rent | G10: Utility Deductions | H10: Per Unit Monthly Net Rent | I10: Per Unit Net Rent Per Sq Ft | J10: Total Monthly Net Income | K10: Total Annual Net Rent
A11: 0 BR | D11: =B11*C11 -> 0 | E11: 0.3 | H11: =F11-G11 -> 0 | I11: =IFERROR(H11/C11,"") ->  | J11: =B11*H11 -> 0 | K11: =J11*12 -> 0
A12: 0 BR | D12: =B12*C12 -> 0 | E12: 0.5 | H12: =F12-G12 -> 0 | I12: =IFERROR(H12/C12,"") ->  | J12: =B12*H12 -> 0 | K12: 0
A13: 0 BR | D13: 0 | E13: 0.6 | H13: =F13-G13 -> 0 | I13: =IFERROR(H13/C13,"") ->  | J13: =B13*H13 -> 0 | K13: 0
A14: 1 BR | D14: 0 | E14: 0.3 | H14: 0 | J14: 0 | K14: 0
A15: 1 BR | D15: 0 | E15: 0.5 | H15: 0 | J15: 0 | K15: 0
A16: 1 BR | D16: 0 | E16: 0.6 | H16: 0 | J16: 0 | K16: 0
A17: 2 BR | D17: 0 | E17: 0.3 | H17: 0 | J17: 0 | K17: 0
A18: 2 BR | D18: 0 | E18: 0.5 | H18: 0 | J18: 0 | K18: 0
A19: 2 BR | D19: 0 | E19: 0.6 | H19: 0 | J19: 0 | K19: 0
A20: 3 BR | D20: 0 | E20: 0.3 | H20: 0 | J20: 0 | K20: 0
A21: 3 BR | D21: 0 | E21: 0.5 | H21: 0 | J21: 0 | K21: 0
A22: 3 BR | D22: 0 | E22: 0.6 | H22: 0 | J22: 0 | K22: 0
A23: 4 BR | D23: 0 | E23: 0.3 | H23: 0 | J23: 0 | K23: 0
A24: 4 BR | D24: 0 | E24: 0.5 | H24: 0 | J24: 0 | K24: 0
A25: 4 BR | D25: 0 | E25: 0.6 | H25: 0 | J25: 0 | K25: 0
A26: Other | D26: 0 | E26: 0.3 | H26: 0 | J26: 0 | K26: 0
A27: Other | D27: 0 | E27: 0.5 | H27: 0 | J27: 0 | K27: 0
A28: Other | D28: 0 | E28: 0.6 | H28: 0 | J28: 0 | K28: 0
A29: 0 BR | D29: 0 | E29: Market | H29: 0 | J29: 0
A30: 1 BR | D30: 0 | E30: Market | H30: 0 | J30: 0 | K30: 0
A31: 2 BR | D31: 0 | E31: Market | H31: 0 | J31: 0 | K31: 0
A32: 3 BR | D32: 0 | E32: Market | H32: 0 | J32: 0 | K32: 0
A33: Total: | B33: =SUM(B11:B31) -> 0 | D33: =SUM(D11:D31) -> 0 | J33: =SUM(J11:J31) -> 0 | K33: =SUM(K11:K31) -> 0
A36: Operating Expenses | P36: Operating Expenses
A37: Rent Increase Rate | D37: 0.03 | P37: Rent Increase Rate | S37: =D37 -> 0.03
A38: Expenses Increase Rate | D38: 0.03 | F38: Note: Year 1 is the first full year of stabilized operations | P38: Expenses Increase Rate | S38: =D38 -> 0.03
E40: Year 1 | F40: Year 1/Unit | G40: Year 2 | H40: Year 3 | I40: Year 4 | J40: Year 5 | K40: Year 6 | L40: Year 7 | M40: Year 8 | N40: Year 9 | O40: Year 10 | T40: Year 11 | U40: Year 12 | V40: Year 13 | W40: Year 14 | X40: Year 15 | Y40: Year 16 | Z40: Year 17 | AA40: Year 18 | AB40: Year 19 | AC40: Year 20
A41: Income | B41: Detail | P41: Income
A42: Sch. Gross Income - Residential | E42: =K33 -> 0 | F42: =IFERROR(E42/$B$33,"") ->  | G42: =E42*(1+$D$37) -> 0 | H42: =G42*(1+$D$37) -> 0 | I42: =H42*(1+$D$37) -> 0 | J42: 0 | K42: 0 | L42: =K42*(1+$D$37) -> 0 | M42: 0 | N42: 0 | O42: =N42*(1+$D$37) -> 0 | P42: Sch. Gross Income - Residential | T42: =O42*(1+$D$37) -> 0 | U42: =T42*(1+$D$37) -> 0 | V42: 0 | W42: 0 | X42: 0 | Y42: 0 | Z42: 0 | AA42: 0 | AB42: 0 | AC42: 0
A43: Vacancy Loss | D43: 0.05 | E43: =-E42*D43 -> 0 | F43: =IFERROR(E43/$B$33,"") ->  | G43: =E43*(1+$D$37) -> 0 | H43: =G43*(1+$D$37) -> 0 | I43: 0 | J43: 0 | K43: 0 | L43: 0 | M43: 0 | N43: 0 | O43: =N43*(1+$D$37) -> 0 | P43: Vacancy Loss | S43: =D43 -> 0.05 | T43: =O43*(1+$D$37) -> 0 | U43: 0 | V43: 0 | W43: 0 | X43: 0 | Y43: 0 | Z43: 0 | AA43: 0 | AB43: 0 | AC43: 0
A44: Other income (laundry) | E44: 0 | F44: =IFERROR(E44/$B$33,"") ->  | G44: =E44*(1+$D$37) -> 0 | H44: =G44*(1+$D$37) -> 0 | I44: 0 | J44: 0 | K44: 0 | L44: 0 | M44: 0 | N44: 0 | O44: =N44*(1+$D$37) -> 0 | P44: Other income (laundry) | T44: =O44*(1+$D$37) -> 0 | U44: 0 | V44: 0 | W44: 0 | X44: 0 | Y44: 0 | Z44: 0 | AA44: 0 | AB44: 0 | AC44: 0
A45: Other income | E45: 0 | F45: =IFERROR(E45/$B$33,"") ->  | P45: Supportive Services Funding
A46: Effective Gross Income | E46: =SUM(E42:E45) -> 0 | F46: =SUM(F42:F45) -> 0 | G46: =SUM(G42:G45) -> 0 | H46: =SUM(H42:H45) -> 0 | I46: 0 | J46: 0 | K46: 0 | L46: 0 | M46: 0 | N46: 0 | O46: 0 | P46: Effective Gross Income | T46: 0 | U46: 0 | V46: 0 | W46: 0 | X46: 0 | Y46: 0 | Z46: 0 | AA46: 0 | AB46: 0 | AC46: 0
A48: Administrative | B48: Detail | P48: Administrative
A49: Advertising & Renting | E49: 0 | F49: =IFERROR(E49/$B$33,"") ->  | G49: =E49*(1+$D$38) -> 0 | H49: =G49*(1+$D$38) -> 0 | I49: 0 | J49: 0 | K49: 0 | L49: 0 | M49: 0 | N49: 0 | O49: 0 | P49: =A49 -> Advertising & Renting | T49: =O49*(1+$D$38) -> 0 | U49: =T49*(1+$D$38) -> 0 | V49: 0 | W49: 0 | X49: 0 | Y49: 0 | Z49: 0 | AA49: 0 | AB49: 0 | AC49: 0
A50: Office & Telephone | E50: 0 | G50: 0 | H50: 0 | I50: 0 | J50: 0 | K50: 0 | L50: 0 | M50: 0 | N50: 0 | O50: 0 | P50: =A50 -> Office & Telephone | T50: 0 | U50: 0 | V50: 0 | W50: 0 | X50: 0 | Y50: 0 | Z50: 0 | AA50: 0 | AB50: 0 | AC50: 0
A51: Management Fee | D51: =IF(E51=0,0,E51/E46) -> 0 | E51: 0 | G51: 0 | H51: 0 | I51: 0 | J51: 0 | K51: 0 | L51: 0 | M51: 0 | N51: 0 | O51: 0 | P51: Management Fee | S51: =D51 -> 0 | T51: 0 | U51: 0 | V51: 0 | W51: 0 | X51: 0 | Y51: 0 | Z51: 0 | AA51: 0 | AB51: 0 | AC51: 0
A52: Legal | E52: 0 | G52: 0 | H52: 0 | I52: 0 | J52: 0 | K52: 0 | L52: 0 | M52: 0 | N52: 0 | O52: 0 | P52: Legal | T52: 0 | U52: 0 | V52: 0 | W52: 0 | X52: 0 | Y52: 0 | Z52: 0 | AA52: 0 | AB52: 0 | AC52: 0
A53: Audit & Accounting | E53: 0 | G53: 0 | H53: 0 | I53: 0 | J53: 0 | K53: 0 | L53: =K53*(1+$D$38) -> 0 | M53: 0 | N53: 0 | O53: 0 | P53: Audit & Accounting | T53: 0 | U53: 0 | V53: 0 | W53: 0 | X53: 0 | Y53: 0 | Z53: 0 | AA53: 0 | AB53: 0 | AC53: 0
A54: Admin Other | E54: 0 | G54: 0 | H54: 0 | I54: 0 | J54: 0 | K54: 0 | L54: 0 | M54: 0 | N54: 0 | O54: 0 | P54: Admin Other | T54: 0 | U54: 0 | V54: 0 | W54: 0 | X54: 0 | Y54: 0 | Z54: 0 | AA54: 0 | AB54: 0 | AC54: 0
A55: Total Administrative | E55: =SUM(E49:E54) -> 0 | F55: 0 | G55: 0 | H55: 0 | I55: 0 | J55: 0 | K55: 0 | L55: 0 | M55: 0 | N55: 0 | O55: 0 | P55: Total Administrative | T55: =SUM(T49:T54) -> 0 | U55: 0 | V55: 0 | W55: 0 | X55: 0 | Y55: 0 | Z55: 0 | AA55: 0 | AB55: 0 | AC55: 0
A57: Supportive Services | E57: 0 | F57: =IFERROR(E57/$B$33,"") ->  | G57: =E57*(1+$D$38) -> 0 | H57: =G57*(1+$D$38) -> 0 | I57: 0 | J57: 0 | K57: 0 | L57: 0 | M57: 0 | N57: 0 | O57: 0 | P57: Supportive Services
A59: Utilities | B59: Detail | P59: Utilities
A60: Fuel Oil | E60: 0 | F60: =IFERROR(E60/$B$33,"") ->  | G60: =E60*(1+$D$38) -> 0 | H60: =G60*(1+$D$38) -> 0 | I60: 0 | J60: 0 | K60: 0 | L60: 0 | M60: 0 | N60: 0 | O60: =N60*(1+$D$38) -> 0 | P60: =A60 -> Fuel Oil | T60: =O60*(1+$D$38) -> 0 | U60: =T60*(1+$D$38) -> 0 | V60: 0 | W60: 0 | X60: 0 | Y60: 0 | Z60: 0 | AA60: 0 | AB60: 0 | AC60: 0
A61: Electricity | E61: 0 | F61: =IFERROR(E61/$B$33,"") ->  | G61: =E61*(1+$D$38) -> 0 | H61: 0 | I61: 0 | J61: 0 | K61: 0 | L61: 0 | M61: 0 | N61: 0 | O61: =N61*(1+$D$38) -> 0 | P61: =A61 -> Electricity | T61: =O61*(1+$D$38) -> 0 | U61: 0 | V61: 0 | W61: 0 | X61: 0 | Y61: 0 | Z61: 0 | AA61: 0 | AB61: 0 | AC61: 0
A62: Water | E62: 0 | F62: =IFERROR(E62/$B$33,"") ->  | G62: =E62*(1+$D$38) -> 0 | H62: 0 | I62: 0 | J62: 0 | K62: 0 | L62: 0 | M62: 0 | N62: 0 | O62: =N62*(1+$D$38) -> 0 | P62: =A62 -> Water | T62: =O62*(1+$D$38) -> 0 | U62: 0 | V62: 0 | W62: 0 | X62: 0 | Y62: 0 | Z62: 0 | AA62: 0 | AB62: 0 | AC62: 0
A63: Gas | E63: 0 | F63: =IFERROR(E63/$B$33,"") ->  | G63: =E63*(1+$D$38) -> 0 | H63: 0 | I63: 0 | J63: 0 | K63: 0 | L63: =K63*(1+$D$38) -> 0 | M63: 0 | N63: 0 | O63: =N63*(1+$D$38) -> 0 | P63: =A63 -> Gas | T63: =O63*(1+$D$38) -> 0 | U63: 0 | V63: 0 | W63: 0 | X63: 0 | Y63: 0 | Z63: 0 | AA63: 0 | AB63: 0 | AC63: 0
A64: Sewer | E64: 0 | F64: =IFERROR(E64/$B$33,"") ->  | G64: =E64*(1+$D$38) -> 0 | H64: 0 | I64: 0 | J64: 0 | K64: 0 | L64: 0 | M64: 0 | N64: 0 | O64: =N64*(1+$D$38) -> 0 | P64: =A64 -> Sewer | T64: =O64*(1+$D$38) -> 0 | U64: 0 | V64: 0 | W64: 0 | X64: 0 | Y64: 0 | Z64: 0 | AA64: 0 | AB64: 0 | AC64: 0
A65: Total Utilities | E65: 0 | F65: =SUM(F60:F64) -> 0 | G65: 0 | H65: 0 | I65: 0 | J65: 0 | K65: 0 | L65: 0 | M65: 0 | N65: 0 | O65: =SUM(O60:O64) -> 0 | P65: Total Utilities | T65: =SUM(T60:T64) -> 0 | U65: 0 | V65: 0 | W65: 0 | X65: 0 | Y65: 0 | Z65: 0 | AA65: 0 | AB65: 0 | AC65: 0
A67: Maintenance (excluding staff) | B67: Detail | E67: Year 1 | F67: Year 1/Unit | G67: Year 2 | H67: Year 3 | I67: Year 4 | J67: Year 5 | K67: Year 6 | L67: Year 7 | M67: Year 8 | N67: Year 9 | O67: Year 10 | P67: Maintenance | T67: Year 11 | U67: Year 12 | V67: Year 13 | W67: Year 14 | X67: Year 15 | Y67: Year 16 | Z67: Year 17 | AA67: Year 18 | AB67: Year 19 | AC67: Year 20
A68: Janitorial & Maintenance Supplies | E68: 0 | F68: =IFERROR(E68/$B$33,"") ->  | G68: =E68*(1+$D$38) -> 0 | H68: =G68*(1+$D$38) -> 0 | I68: =H68*(1+$D$38) -> 0 | J68: 0 | K68: 0 | L68: 0 | M68: 0 | N68: 0 | O68: 0 | P68: =A68 -> Janitorial & Maintenance Supplies | T68: =O68*(1+$D$38) -> 0 | U68: =T68*(1+$D$38) -> 0 | V68: 0 | W68: 0 | X68: 0 | Y68: 0 | Z68: 0 | AA68: 0 | AB68: 0 | AC68: 0
A69: Operating/Maintenance Contracts | E69: 0 | G69: 0 | H69: 0 | I69: 0 | J69: 0 | K69: 0 | L69: 0 | M69: 0 | N69: 0 | O69: 0 | P69: Operating/Maintenance Contracts | T69: 0 | U69: 0 | V69: 0 | W69: 0 | X69: 0 | Y69: 0 | Z69: 0 | AA69: 0 | AB69: 0 | AC69: 0
A70: Trash Removal | E70: 0 | G70: 0 | H70: 0 | I70: =H70*(1+$D$38) -> 0 | J70: 0 | K70: 0 | L70: 0 | M70: 0 | N70: 0 | O70: 0 | P70: Trash Removal | T70: 0 | U70: 0 | V70: 0 | W70: 0 | X70: 0 | Y70: 0 | Z70: 0 | AA70: 0 | AB70: 0 | AC70: 0
A71: Security Payroll/Contract | E71: 0 | G71: 0 | H71: 0 | I71: 0 | J71: 0 | K71: 0 | L71: 0 | M71: 0 | N71: 0 | O71: 0 | P71: Security Payroll/Contract | T71: 0 | U71: 0 | V71: 0 | W71: 0 | X71: 0 | Y71: 0 | Z71: 0 | AA71: 0 | AB71: 0 | AC71: 0
A72: Repairs Materials | E72: 0 | G72: 0 | H72: 0 | I72: 0 | J72: 0 | K72: 0 | L72: 0 | M72: 0 | N72: 0 | O72: 0 | P72: Repairs Materials | T72: 0 | U72: 0 | V72: 0 | W72: 0 | X72: 0 | Y72: 0 | Z72: 0 | AA72: 0 | AB72: 0 | AC72: 0
A73: Maintenance contracts (HVAC, elevator, etc) | E73: 0 | G73: 0 | H73: 0 | I73: 0 | J73: 0 | K73: 0 | L73: 0 | M73: 0 | N73: 0 | O73: 0 | P73: Maintenance contracts (HVAC, elevator, etc) | T73: 0 | U73: 0 | V73: 0 | W73: 0 | X73: 0 | Y73: 0 | Z73: 0 | AA73: 0 | AB73: 0 | AC73: 0
A74: Grounds & Snow Removal | E74: 0 | G74: 0 | H74: 0 | I74: 0 | J74: 0 | K74: 0 | L74: 0 | M74: 0 | N74: 0 | O74: 0 | P74: Grounds & Snow Removal | T74: 0 | U74: 0 | V74: 0 | W74: 0 | X74: 0 | Y74: 0 | Z74: 0 | AA74: 0 | AB74: 0 | AC74: 0
A75: Painting & Decorating | E75: 0 | G75: 0 | H75: 0 | I75: 0 | J75: 0 | K75: 0 | L75: 0 | M75: 0 | N75: 0 | O75: 0 | P75: Painting & Decorating | T75: =O75*(1+$D$38) -> 0 | U75: 0 | V75: 0 | W75: 0 | X75: 0 | Y75: 0 | Z75: 0 | AA75: 0 | AB75: 0 | AC75: 0
A76: Other | E76: 0 | G76: 0 | H76: 0 | I76: 0 | J76: 0 | K76: 0 | L76: 0 | M76: 0 | N76: 0 | O76: 0 | P76: Other | T76: 0 | U76: 0 | V76: 0 | W76: 0 | X76: 0 | Y76: 0 | Z76: 0 | AA76: 0 | AB76: 0 | AC76: 0
A77: Total Maintenance | E77: =SUM(E68:E76) -> 0 | F77: 0 | G77: 0 | H77: 0 | I77: 0 | J77: 0 | K77: 0 | L77: 0 | M77: 0 | N77: 0 | O77: 0 | P77: Total Maintenance | T77: =SUM(T68:T76) -> 0 | U77: 0 | V77: 0 | W77: 0 | X77: 0 | Y77: 0 | Z77: 0 | AA77: 0 | AB77: 0 | AC77: 0
A79: Payroll Expense | B79: Detail | P79: =A79 -> Payroll Expense
A80: Office Salaries | E80: 0 | F80: =IFERROR(E80/$B$33,"") ->  | G80: =E80*(1+$D$38) -> 0 | H80: =G80*(1+$D$38) -> 0 | I80: 0 | J80: 0 | K80: 0 | L80: 0 | M80: 0 | N80: 0 | O80: 0 | P80: Office Salaries | T80: =O80*(1+$D$38) -> 0 | U80: =T80*(1+$D$38) -> 0 | V80: 0 | W80: 0 | X80: 0 | Y80: 0 | Z80: 0 | AA80: 0 | AB80: 0 | AC80: 0
A81: Manager Salaries | E81: 0 | G81: 0 | H81: 0 | I81: 0 | J81: 0 | K81: 0 | L81: 0 | M81: 0 | N81: 0 | O81: 0 | P81: Manager Salaries | T81: 0 | U81: 0 | V81: 0 | W81: 0 | X81: 0 | Y81: 0 | Z81: 0 | AA81: 0 | AB81: 0 | AC81: 0
A82: Employee Rent Free Unit | E82: 0 | G82: 0 | H82: 0 | I82: 0 | J82: 0 | K82: 0 | L82: 0 | M82: 0 | N82: 0 | O82: 0 | P82: Employee Rent Free Unit | T82: 0 | U82: 0 | V82: 0 | W82: 0 | X82: 0 | Y82: 0 | Z82: 0 | AA82: 0 | AB82: 0 | AC82: 0
A83: Janitor/Maintenance Salaries | E83: 0 | G83: 0 | H83: 0 | I83: 0 | J83: 0 | K83: 0 | L83: 0 | M83: 0 | N83: 0 | O83: 0 | P83: Janitor/Maintenance Salaries | T83: 0 | U83: 0 | V83: 0 | W83: 0 | X83: 0 | Y83: 0 | Z83: 0 | AA83: 0 | AB83: 0 | AC83: 0
A84: Payroll Tax/Workers Comp & Employee Benefits | E84: 0 | G84: 0 | H84: 0 | I84: 0 | J84: 0 | K84: 0 | L84: 0 | M84: 0 | N84: 0 | O84: 0 | P84: Payroll Tax/Workers Comp & Employee Benefits | T84: 0 | U84: 0 | V84: 0 | W84: 0 | X84: 0 | Y84: 0 | Z84: 0 | AA84: 0 | AB84: 0 | AC84: 0
A85: Other | E85: 0 | G85: 0 | H85: 0 | I85: 0 | J85: 0 | K85: 0 | L85: 0 | M85: 0 | N85: 0 | O85: 0 | P85: Other | T85: 0 | U85: 0 | V85: 0 | W85: 0 | X85: 0 | Y85: 0 | Z85: 0 | AA85: 0 | AB85: 0 | AC85: 0
A86: Total Payroll Expense | E86: =SUM(E80:E85) -> 0 | F86: =SUM(F80:F85) -> 0 | G86: 0 | H86: 0 | I86: 0 | J86: 0 | K86: 0 | L86: 0 | M86: 0 | N86: 0 | O86: 0 | P86: Total Payroll Expense | T86: =SUM(T80:T85) -> 0 | U86: 0 | V86: 0 | W86: 0 | X86: 0 | Y86: 0 | Z86: 0 | AA86: 0 | AB86: 0 | AC86: 0
A88: Taxes & Insurance | B88: Detail | P88: Taxes & Insurance
A89: Real Estate Taxes | E89: 0 | F89: =IFERROR(E89/$B$33,"") ->  | G89: =E89*(1+$D$38) -> 0 | H89: =G89*(1+$D$38) -> 0 | I89: 0 | J89: 0 | K89: 0 | L89: 0 | M89: 0 | N89: 0 | O89: =N89*(1+$D$38) -> 0 | P89: =A89 -> Real Estate Taxes | T89: =O89*(1+$D$38) -> 0 | U89: =T89*(1+$D$38) -> 0 | V89: 0 | W89: 0 | X89: 0 | Y89: 0 | Z89: 0 | AA89: 0 | AB89: 0 | AC89: 0
A90: Insurance (property, liability) | E90: 0 | F90: =IFERROR(E90/$B$33,"") ->  | G90: =E90*(1+$D$38) -> 0 | H90: 0 | I90: 0 | J90: 0 | K90: 0 | L90: 0 | M90: 0 | N90: 0 | O90: =N90*(1+$D$38) -> 0 | P90: =A90 -> Insurance (property, liability) | T90: =O90*(1+$D$38) -> 0 | U90: 0 | V90: 0 | W90: 0 | X90: 0 | Y90: 0 | Z90: 0 | AA90: 0 | AB90: 0 | AC90: 0
A91: Misc. Taxes, Licenses & Permits | E91: 0 | F91: =IFERROR(E91/$B$33,"") ->  | G91: =E91*(1+$D$38) -> 0 | H91: 0 | I91: 0 | J91: 0 | K91: 0 | L91: 0 | M91: 0 | N91: 0 | O91: =N91*(1+$D$38) -> 0 | P91: =A91 -> Misc. Taxes, Licenses & Permits | T91: =O91*(1+$D$38) -> 0 | U91: 0 | V91: 0 | W91: 0 | X91: 0 | Y91: 0 | Z91: 0 | AA91: 0 | AB91: 0 | AC91: 0
A92: Other | E92: 0 | F92: =IFERROR(E92/$B$33,"") ->  | G92: =E92*(1+$D$38) -> 0 | H92: 0 | I92: 0 | J92: 0 | K92: 0 | L92: 0 | M92: 0 | N92: 0 | O92: =N92*(1+$D$38) -> 0 | P92: Other | T92: =O92*(1+$D$38) -> 0 | U92: 0 | V92: 0 | W92: 0 | X92: 0 | Y92: 0 | Z92: 0 | AA92: 0 | AB92: 0 | AC92: 0
A93: Total Taxes & Insurance | E93: =SUM(E89:E92) -> 0 | F93: 0 | G93: 0 | H93: 0 | I93: 0 | J93: 0 | K93: 0 | L93: 0 | M93: 0 | N93: 0 | O93: 0 | P93: Total Taxes & Insurance | T93: =SUM(T89:T92) -> 0 | U93: 0 | V93: 0 | W93: 0 | X93: 0 | Y93: 0 | Z93: 0 | AA93: 0 | AB93: 0 | AC93: 0
A95: Replacement Reserves | E95: 0 | F95: =IFERROR(E95/$B$33,"") ->  | G95: =E95*(1+$D$38) -> 0 | H95: =G95*(1+$D$38) -> 0 | I95: =H95*(1+$D$38) -> 0 | J95: 0 | K95: 0 | L95: 0 | M95: 0 | N95: 0 | O95: =N95*(1+$D$38) -> 0 | P95: Replacement Reserves | T95: =O95*(1+$D$38) -> 0 | U95: =T95*(1+$D$38) -> 0 | V95: 0 | W95: 0 | X95: 0 | Y95: 0 | Z95: 0 | AA95: 0 | AB95: 0 | AC95: 0
A96: Operating Reserves | E96: 0 | F96: =IFERROR(E96/$B$33,"") ->  | G96: =E96*(1+$D$38) -> 0 | H96: =G96*(1+$D$38) -> 0 | I96: 0 | J96: 0 | K96: 0 | L96: 0 | M96: 0 | N96: 0 | O96: =N96*(1+$D$38) -> 0 | P96: Operating Reserves | T96: =O96*(1+$D$38) -> 0 | U96: 0 | V96: 0 | W96: 0 | X96: 0 | Y96: 0 | Z96: 0 | AA96: 0 | AB96: 0 | AC96: 0
A98: Total Expenses | E98: =SUM(E55,E57,E65,E77,E86,E93,E95,E96) -> 0 | F98: =SUM(F55,F57,F65,F77,F86,F93,F95,F96) -> 0 | G98: =SUM(G55,G57,G65,G77,G86,G93,G95,G96) -> 0 | H98: 0 | I98: 0 | J98: 0 | K98: 0 | L98: 0 | M98: 0 | N98: 0 | O98: 0 | P98: Total Expenses | T98: =SUM(T55,T57,T65,T77,T86,T93,T95,T96) -> 0 | U98: 0 | V98: 0 | W98: 0 | X98: 0 | Y98: 0 | Z98: 0 | AA98: 0 | AB98: 0 | AC98: 0
A100: Net Operating Income | E100: =E46-E98 -> 0 | F100: 0 | G100: 0 | H100: 0 | I100: 0 | J100: 0 | K100: 0 | L100: 0 | M100: 0 | N100: 0 | O100: 0 | P100: Net Operating Income | T100: =T46-T98 -> 0 | U100: 0 | V100: 0 | W100: 0 | X100: 0 | Y100: 0 | Z100: 0 | AA100: 0 | AB100: 0 | AC100: 0
A102: Debt Service | B102: Detail | P102: Debt Service
A103: First Lien | E103: 0 | F103: =IFERROR(E103/$B$33,"") ->  | G103: =$E103 -> 0 | H103: =$E103 -> 0 | I103: 0 | J103: 0 | K103: 0 | L103: 0 | M103: 0 | N103: 0 | O103: =$E103 -> 0 | P103: First Lien | T103: =$E103 -> 0 | U103: 0 | V103: 0 | W103: 0 | X103: 0 | Y103: 0 | Z103: 0 | AA103: 0 | AB103: 0 | AC103: 0
A104: Second Lien | E104: 0 | F104: =IFERROR(E104/$B$33,"") ->  | G104: =$E104 -> 0 | H104: 0 | I104: 0 | J104: 0 | K104: 0 | L104: 0 | M104: 0 | N104: 0 | O104: 0 | P104: Second Lien | T104: 0 | U104: 0 | V104: 0 | W104: 0 | X104: 0 | Y104: 0 | Z104: 0 | AA104: 0 | AB104: 0 | AC104: 0
A105: EEHDP - If Amortizing | E105: ='Amortization Table'!D14*12 -> 0 | F105: =IFERROR(E105/$B$33,"") ->  | G105: 0 | H105: 0 | I105: 0 | J105: 0 | K105: 0 | L105: 0 | M105: 0 | N105: 0 | O105: 0 | T105: 0 | U105: 0 | V105: 0 | W105: 0 | X105: 0 | Y105: 0 | Z105: 0 | AA105: 0 | AB105: 0 | AC105: 0
A106: Other | E106: 0 | G106: 0 | H106: 0 | I106: 0 | J106: 0 | K106: 0 | L106: 0 | M106: 0 | N106: 0 | O106: 0 | T106: 0 | U106: 0 | V106: 0 | W106: 0 | X106: 0 | Y106: 0 | Z106: 0 | AA106: 0 | AB106: 0 | AC106: 0
A107: Other | E107: 0 | G107: 0 | H107: 0 | I107: 0 | J107: 0 | K107: 0 | L107: 0 | M107: 0 | N107: 0 | O107: 0 | T107: 0 | U107: 0 | V107: 0 | W107: 0 | X107: 0 | Y107: 0 | Z107: 0 | AA107: 0 | AB107: 0 | AC107: 0
A108: Other | E108: 0 | F108: =IFERROR(E108/$B$33,"") ->  | G108: 0 | H108: 0 | I108: 0 | J108: 0 | K108: 0 | L108: 0 | M108: 0 | N108: 0 | O108: 0 | P108: Other | T108: 0 | U108: 0 | V108: 0 | W108: 0 | X108: 0 | Y108: 0 | Z108: 0 | AA108: 0 | AB108: 0 | AC108: 0
A109: Total Debt Service (Must Pay) | E109: =SUM(E103:E108) -> 0 | F109: =SUM(F103:F108) -> 0 | G109: 0 | H109: 0 | I109: 0 | J109: 0 | K109: 0 | L109: 0 | M109: 0 | N109: 0 | O109: 0 | P109: Total Debt Service (Must Pay) | T109: =SUM(T103:T108) -> 0 | U109: 0 | V109: 0 | W109: 0 | X109: 0 | Y109: 0 | Z109: 0 | AA109: 0 | AB109: 0 | AC109: 0
A110: Cash Flow (after Must Pay Debt) | E110: =E100-E109 -> 0 | F110: 0 | G110: 0 | H110: 0 | I110: 0 | J110: 0 | K110: 0 | L110: 0 | M110: 0 | N110: 0 | O110: 0 | P110: Cash Flow (after Must Pay Debt) | T110: =T100-T109 -> 0 | U110: 0 | V110: 0 | W110: 0 | X110: 0 | Y110: 0 | Z110: 0 | AA110: 0 | AB110: 0 | AC110: 0
A111: Debt Service Coverage Ratio | E111: =IFERROR(E100/E109,"") ->  | P111: Debt Service Coverage Ratio | T111: =IFERROR(T100/T109,"") -> 
A113: Cash Flow Debt Payments | P113: Cash Flow Debt Payments
A114: EEHDP - If Cashflow | B114: (minimum 50%) | D114: 0 | E114: =IF(E$110>0,E$110*$D114,0) -> 0 | F114: =IF(F$110>0,F$110*$D114,0) -> 0 | G114: 0 | H114: 0 | I114: 0 | J114: 0 | K114: 0 | L114: 0 | M114: 0 | N114: 0 | O114: =IF(O$110>0,O$110*$D114,0) -> 0 | P114: URA | S114: =D114 -> 0 | T114: =IF(T$110>0,T$110*$D114,0) -> 0 | U114: 0 | V114: 0 | W114: 0 | X114: 0 | Y114: 0 | Z114: 0 | AA114: 0 | AB114: 0 | AC114: 0
A115: Other | D115: 0 | E115: =IF(E$110>0,E$110*$D115,0) -> 0 | F115: 0 | G115: 0 | H115: 0 | I115: 0 | J115: 0 | K115: 0 | L115: 0 | M115: 0 | N115: 0 | O115: 0 | T115: 0 | U115: 0 | V115: 0 | W115: 0 | X115: 0 | Y115: 0 | Z115: 0 | AA115: 0 | AB115: 0 | AC115: 0
A116: Other | D116: 0 | E116: 0 | F116: 0 | G116: 0 | H116: 0 | I116: 0 | J116: 0 | K116: 0 | L116: 0 | M116: 0 | N116: 0 | O116: 0 | T116: 0 | U116: 0 | V116: 0 | W116: 0 | X116: 0 | Y116: 0 | Z116: 0 | AA116: 0 | AB116: 0 | AC116: 0
A117: Other | D117: 0 | E117: 0 | F117: 0 | G117: 0 | H117: 0 | I117: 0 | J117: 0 | K117: 0 | L117: 0 | M117: 0 | N117: 0 | O117: 0 | T117: 0 | U117: 0 | V117: 0 | W117: 0 | X117: 0 | Y117: 0 | Z117: 0 | AA117: 0 | AB117: 0 | AC117: 0
A118: Other | D118: 0 | E118: 0 | F118: 0 | G118: 0 | H118: 0 | I118: 0 | J118: 0 | K118: 0 | L118: 0 | M118: 0 | N118: 0 | O118: 0 | T118: 0 | U118: 0 | V118: 0 | W118: 0 | X118: 0 | Y118: 0 | Z118: 0 | AA118: 0 | AB118: 0 | AC118: 0
A119: Developer Fee Loan | D119: 0 | E119: =IF(E$110>0,E$110*$D119,0) -> 0 | F119: 0 | G119: 0 | H119: 0 | I119: 0 | J119: 0 | K119: 0 | L119: 0 | M119: 0 | N119: 0 | O119: =IF(O$110>0,O$110*$D119,0) -> 0 | P119: Developer Fee Loan | S119: =D119 -> 0 | T119: 0 | U119: 0 | V119: 0 | W119: 0 | X119: 0 | Y119: 0 | Z119: 0 | AA119: 0 | AB119: 0 | AC119: 0
A120: Cash Flow Retained by Project | E120: =E110-SUM(E114:E119) -> 0 | F120: =F110-SUM(F114:F119) -> 0 | G120: 0 | H120: 0 | I120: 0 | J120: 0 | K120: 0 | L120: 0 | M120: 0 | N120: 0 | O120: 0 | P120: Cash Flow Retained by Project | T120: =T110-SUM(T114:T119) -> 0 | U120: =U110-SUM(U114:U119) -> 0 | V120: 0 | W120: 0 | X120: 0 | Y120: 0 | Z120: 0 | AA120: 0 | AB120: 0 | AC120: 0
A121: Retained Cash Flow % | D121: =IFERROR(E120/E98,"") ->  | P121: Retained Cash Flow % | S121: =D121 -> 
A129: 0.3
A130: 0.5
A131: 0.8

Sheet Amortization Table (hidden)
A1: Simple Interest Loan Calculator
A2: HELP | H2: © 2008 Vertex42 LLC
J3: Payment Frequency Options
A4: Loan Information | E4: [42] | F4: Summary | J4: Frequency | K4: Payments/yr | L4: Months
C5: Loan Amount | D5: 0 | G5: Daily Interest Rate | H5: =D6/D11 -> 8.219178082e-05 | J5: Annual | K5: 1 | L5: 12
C6: Annual Interest Rate | D6: 0.03 | G6: Number of Payments | H6: =MAX(A18:A799) -> 1 | J6: Semi-Annual | K6: 2 | L6: 6
C7: Term of Loan in Years | D7: 20 | G7: Total Payments | H7: =SUM(C20:C799) -> 0 | J7: Quarterly | K7: 4 | L7: 3
C8: First Day Interest Accrues | D8: 2021-01-01 | G8: Total Interest | H8: =SUM(D20:D800) -> 0 | J8: Bi-Monthly | K8: 6 | L8: 2
C9: First Payment Date | D9: 2021-02-01 | G9: Balloon Payment | H9: =IF(D12="",0,OFFSET(C18,D12+1,0,1,1)) -> 0 | J9: Monthly | K9: 12 | L9: 1
C10: Payment Frequency | D10: Monthly | H10: =IF(AND(NOT(H799=""),H799>0.004),"ERROR: Limit is "&OFFSET(A800,-1,0,1,1)&" payments",".") -> . | J10: Semi-Monthly | K10: 24 | L10: 0.5
C11: Days in Year | D11: 365 | J11: Bi-Weekly | K11: 26 | L11: n/a
C12: Balloon Payment # | J12: Weekly | K12: 52 | L12: n/a
J13: Chosen: | K13: =INDEX(K5:K12,MATCH($D$10,J5:J12,0)) -> 12 | L13: =INDEX(L5:L12,MATCH($D$10,J5:J12,0)) -> 1
C14: ="Est. "&D10&" Payment" -> Est. Monthly Payment | D14: =IF(roundOpt,ROUND(-PMT((1+D6/$D$11)^(365/$K$13)-1,$D$7*$K$13,$D$5),2),-PMT((1+D6/$D$11)^(365/$K$13)-1,$D$7*$K$13,$D$5)) -> 0 | E14: (estimate)
C15: ="Actual "&D10&" Payment" -> Actual Monthly Payment | D15: 429.86 | E15: FALSE
A17: Amortization Schedule | H17: TRUE
A18: Pmt No. | B18: Date | C18: Payment | D18: Interest Accrued | F18: Interest Balance | G18: Principal Balance | H18: Total Owed
B19: =D8-1 -> 2020-12-31 | G19: =$D$5 -> 0 | H19: =$D$5 -> 0
A20: 1 | B20: =IF(A20="","",IF($K$13=26,(A20-1)*14+$D$9,IF($K$13=52,(A20-1)*7+$D$9,DATE(YEAR($D$9),MONTH($D$9)+(A20-1)*$L$13,IF($K$13=24,IF((MOD(A20-1,2))=1,DAY($D$9)+14,DAY($D$9)),DAY($D$9)))))) -> 2021-02-01 | C20: =IF(A20="","",IF(A20=$D$12,H19+D20,IF(IF($E$15,$D$15,$D$14)>H19+D20,H19+D20,IF($E$15,$D$15,$D$14)))) -> 0 | D20: =IF(B20="","",IF(roundOpt,ROUND((B20-B19)*$H$5*G19,2),(B20-B19)*$H$5*G19)) -> 0 | F20: =IF(B20="","",IF(C20>F19+D20,0,F19+D20-C20)) -> 0 | G20: =IF(B20="","",IF(C20>D20+F19,G19+F19+D20-C20,G19)) -> 0 | H20: =IF(B20="","",G20+F20) -> 0
A21: =IF(OR(H20<=0,H20=""),"",OFFSET(A21,-1,0,1,1)+1) -> 
A22: =IF(OR(H21<=0,H21=""),"",OFFSET(A22,-1,0,1,1)+1) -> 
B84: =IF(A84="","",IF($K$13=26,(A84-1)*14+$D$9,IF($K$13=52,(A84-1)*7+$D$9,DATE(YEAR($D$9),MONTH($D$9)+(A84-1)*$L$13,IF($K$13=24,IF((MOD(A84-1,2))=1,DAY($D$9)+14,DAY($D$9)),DAY($D$9)))))) ->  | C84: =IF(A84="","",IF(A84=$D$12,H83+D84,IF(IF($E$15,$D$15,$D$14)>H83+D84,H83+D84,IF($E$15,$D$15,$D$14)))) ->  | D84: =IF(B84="","",IF(roundOpt,ROUND((B84-B83)*$H$5*G83,2),(B84-B83)*$H$5*G83)) ->  | F84: =IF(B84="","",IF(C84>F83+D84,0,F83+D84-C84)) ->  | G84: =IF(B84="","",IF(C84>D84+F83,G83+F83+D84-C84,G83)) ->  | H84: =IF(B84="","",G84+F84) -> 
A86: =IF(OR(H85<=0,H85=""),"",OFFSET(A86,-1,0,1,1)+1) -> 
B148: =IF(A148="","",IF($K$13=26,(A148-1)*14+$D$9,IF($K$13=52,(A148-1)*7+$D$9,DATE(YEAR($D$9),MONTH($D$9)+(A148-1)*$L$13,IF($K$13=24,IF((MOD(A148-1,2))=1,DAY($D$9)+14,DAY($D$9)),DAY($D$9)))))) ->  | C148: =IF(A148="","",IF(A148=$D$12,H147+D148,IF(IF($E$15,$D$15,$D$14)>H147+D148,H147+D148,IF($E$15,$D$15,$D$14)))) ->  | D148: =IF(B148="","",IF(roundOpt,ROUND((B148-B147)*$H$5*G147,2),(B148-B147)*$H$5*G147)) ->  | F148: =IF(B148="","",IF(C148>F147+D148,0,F147+D148-C148)) ->  | G148: =IF(B148="","",IF(C148>D148+F147,G147+F147+D148-C148,G147)) ->  | H148: =IF(B148="","",G148+F148) -> 
A150: =IF(OR(H149<=0,H149=""),"",OFFSET(A150,-1,0,1,1)+1) -> 
B212: =IF(A212="","",IF($K$13=26,(A212-1)*14+$D$9,IF($K$13=52,(A212-1)*7+$D$9,DATE(YEAR($D$9),MONTH($D$9)+(A212-1)*$L$13,IF($K$13=24,IF((MOD(A212-1,2))=1,DAY($D$9)+14,DAY($D$9)),DAY($D$9)))))) ->  | C212: =IF(A212="","",IF(A212=$D$12,H211+D212,IF(IF($E$15,$D$15,$D$14)>H211+D212,H211+D212,IF($E$15,$D$15,$D$14)))) ->  | D212: =IF(B212="","",IF(roundOpt,ROUND((B212-B211)*$H$5*G211,2),(B212-B211)*$H$5*G211)) ->  | F212: =IF(B212="","",IF(C212>F211+D212,0,F211+D212-C212)) ->  | G212: =IF(B212="","",IF(C212>D212+F211,G211+F211+D212-C212,G211)) ->  | H212: =IF(B212="","",G212+F212) -> 
A214: =IF(OR(H213<=0,H213=""),"",OFFSET(A214,-1,0,1,1)+1) -> 
L262: =SUM(D20:D260) -> 0
B276: =IF(A276="","",IF($K$13=26,(A276-1)*14+$D$9,IF($K$13=52,(A276-1)*7+$D$9,DATE(YEAR($D$9),MONTH($D$9)+(A276-1)*$L$13,IF($K$13=24,IF((MOD(A276-1,2))=1,DAY($D$9)+14,DAY($D$9)),DAY($D$9)))))) ->  | C276: =IF(A276="","",IF(A276=$D$12,H275+D276,IF(IF($E$15,$D$15,$D$14)>H275+D276,H275+D276,IF($E$15,$D$15,$D$14)))) ->  | D276: =IF(B276="","",IF(roundOpt,ROUND((B276-B275)*$H$5*G275,2),(B276-B275)*$H$5*G275)) ->  | F276: =IF(B276="","",IF(C276>F275+D276,0,F275+D276-C276)) ->  | G276: =IF(B276="","",IF(C276>D276+F275,G275+F275+D276-C276,G275)) ->  | H276: =IF(B276="","",G276+F276) -> 
A278: =IF(OR(H277<=0,H277=""),"",OFFSET(A278,-1,0,1,1)+1) -> 
B340: =IF(A340="","",IF($K$13=26,(A340-1)*14+$D$9,IF($K$13=52,(A340-1)*7+$D$9,DATE(YEAR($D$9),MONTH($D$9)+(A340-1)*$L$13,IF($K$13=24,IF((MOD(A340-1,2))=1,DAY($D$9)+14,DAY($D$9)),DAY($D$9)))))) ->  | C340: =IF(A340="","",IF(A340=$D$12,H339+D340,IF(IF($E$15,$D$15,$D$14)>H339+D340,H339+D340,IF($E$15,$D$15,$D$14)))) ->  | D340: =IF(B340="","",IF(roundOpt,ROUND((B340-B339)*$H$5*G339,2),(B340-B339)*$H$5*G339)) ->  | F340: =IF(B340="","",IF(C340>F339+D340,0,F339+D340-C340)) ->  | G340: =IF(B340="","",IF(C340>D340+F339,G339+F339+D340-C340,G339)) ->  | H340: =IF(B340="","",G340+F340) -> 
A342: =IF(OR(H341<=0,H341=""),"",OFFSET(A342,-1,0,1,1)+1) -> 
B404: =IF(A404="","",IF($K$13=26,(A404-1)*14+$D$9,IF($K$13=52,(A404-1)*7+$D$9,DATE(YEAR($D$9),MONTH($D$9)+(A404-1)*$L$13,IF($K$13=24,IF((MOD(A404-1,2))=1,DAY($D$9)+14,DAY($D$9)),DAY($D$9)))))) ->  | C404: =IF(A404="","",IF(A404=$D$12,H403+D404,IF(IF($E$15,$D$15,$D$14)>H403+D404,H403+D404,IF($E$15,$D$15,$D$14)))) ->  | D404: =IF(B404="","",IF(roundOpt,ROUND((B404-B403)*$H$5*G403,2),(B404-B403)*$H$5*G403)) ->  | F404: =IF(B404="","",IF(C404>F403+D404,0,F403+D404-C404)) ->  | G404: =IF(B404="","",IF(C404>D404+F403,G403+F403+D404-C404,G403)) ->  | H404: =IF(B404="","",G404+F404) -> 
A406: =IF(OR(H405<=0,H405=""),"",OFFSET(A406,-1,0,1,1)+1) -> 
B468: =IF(A468="","",IF($K$13=26,(A468-1)*14+$D$9,IF($K$13=52,(A468-1)*7+$D$9,DATE(YEAR($D$9),MONTH($D$9)+(A468-1)*$L$13,IF($K$13=24,IF((MOD(A468-1,2))=1,DAY($D$9)+14,DAY($D$9)),DAY($D$9)))))) ->  | C468: =IF(A468="","",IF(A468=$D$12,H467+D468,IF(IF($E$15,$D$15,$D$14)>H467+D468,H467+D468,IF($E$15,$D$15,$D$14)))) ->  | D468: =IF(B468="","",IF(roundOpt,ROUND((B468-B467)*$H$5*G467,2),(B468-B467)*$H$5*G467)) ->  | F468: =IF(B468="","",IF(C468>F467+D468,0,F467+D468-C468)) ->  | G468: =IF(B468="","",IF(C468>D468+F467,G467+F467+D468-C468,G467)) ->  | H468: =IF(B468="","",G468+F468) -> 
A470: =IF(OR(H469<=0,H469=""),"",OFFSET(A470,-1,0,1,1)+1) -> 
B532: =IF(A532="","",IF($K$13=26,(A532-1)*14+$D$9,IF($K$13=52,(A532-1)*7+$D$9,DATE(YEAR($D$9),MONTH($D$9)+(A532-1)*$L$13,IF($K$13=24,IF((MOD(A532-1,2))=1,DAY($D$9)+14,DAY($D$9)),DAY($D$9)))))) ->  | C532: =IF(A532="","",IF(A532=$D$12,H531+D532,IF(IF($E$15,$D$15,$D$14)>H531+D532,H531+D532,IF($E$15,$D$15,$D$14)))) ->  | D532: =IF(B532="","",IF(roundOpt,ROUND((B532-B531)*$H$5*G531,2),(B532-B531)*$H$5*G531)) ->  | F532: =IF(B532="","",IF(C532>F531+D532,0,F531+D532-C532)) ->  | G532: =IF(B532="","",IF(C532>D532+F531,G531+F531+D532-C532,G531)) ->  | H532: =IF(B532="","",G532+F532) -> 
A534: =IF(OR(H533<=0,H533=""),"",OFFSET(A534,-1,0,1,1)+1) -> 
B596: =IF(A596="","",IF($K$13=26,(A596-1)*14+$D$9,IF($K$13=52,(A596-1)*7+$D$9,DATE(YEAR($D$9),MONTH($D$9)+(A596-1)*$L$13,IF($K$13=24,IF((MOD(A596-1,2))=1,DAY($D$9)+14,DAY($D$9)),DAY($D$9)))))) ->  | C596: =IF(A596="","",IF(A596=$D$12,H595+D596,IF(IF($E$15,$D$15,$D$14)>H595+D596,H595+D596,IF($E$15,$D$15,$D$14)))) ->  | D596: =IF(B596="","",IF(roundOpt,ROUND((B596-B595)*$H$5*G595,2),(B596-B595)*$H$5*G595)) ->  | F596: =IF(B596="","",IF(C596>F595+D596,0,F595+D596-C596)) ->  | G596: =IF(B596="","",IF(C596>D596+F595,G595+F595+D596-C596,G595)) ->  | H596: =IF(B596="","",G596+F596) -> 
A598: =IF(OR(H597<=0,H597=""),"",OFFSET(A598,-1,0,1,1)+1) -> 
B660: =IF(A660="","",IF($K$13=26,(A660-1)*14+$D$9,IF($K$13=52,(A660-1)*7+$D$9,DATE(YEAR($D$9),MONTH($D$9)+(A660-1)*$L$13,IF($K$13=24,IF((MOD(A660-1,2))=1,DAY($D$9)+14,DAY($D$9)),DAY($D$9)))))) ->  | C660: =IF(A660="","",IF(A660=$D$12,H659+D660,IF(IF($E$15,$D$15,$D$14)>H659+D660,H659+D660,IF($E$15,$D$15,$D$14)))) ->  | D660: =IF(B660="","",IF(roundOpt,ROUND((B660-B659)*$H$5*G659,2),(B660-B659)*$H$5*G659)) ->  | F660: =IF(B660="","",IF(C660>F659+D660,0,F659+D660-C660)) ->  | G660: =IF(B660="","",IF(C660>D660+F659,G659+F659+D660-C660,G659)) ->  | H660: =IF(B660="","",G660+F660) -> 
A662: =IF(OR(H661<=0,H661=""),"",OFFSET(A662,-1,0,1,1)+1) -> 
B724: =IF(A724="","",IF($K$13=26,(A724-1)*14+$D$9,IF($K$13=52,(A724-1)*7+$D$9,DATE(YEAR($D$9),MONTH($D$9)+(A724-1)*$L$13,IF($K$13=24,IF((MOD(A724-1,2))=1,DAY($D$9)+14,DAY($D$9)),DAY($D$9)))))) ->  | C724: =IF(A724="","",IF(A724=$D$12,H723+D724,IF(IF($E$15,$D$15,$D$14)>H723+D724,H723+D724,IF($E$15,$D$15,$D$14)))) ->  | D724: =IF(B724="","",IF(roundOpt,ROUND((B724-B723)*$H$5*G723,2),(B724-B723)*$H$5*G723)) ->  | F724: =IF(B724="","",IF(C724>F723+D724,0,F723+D724-C724)) ->  | G724: =IF(B724="","",IF(C724>D724+F723,G723+F723+D724-C724,G723)) ->  | H724: =IF(B724="","",G724+F724) -> 
A726: =IF(OR(H725<=0,H725=""),"",OFFSET(A726,-1,0,1,1)+1) -> 
B788: =IF(A788="","",IF($K$13=26,(A788-1)*14+$D$9,IF($K$13=52,(A788-1)*7+$D$9,DATE(YEAR($D$9),MONTH($D$9)+(A788-1)*$L$13,IF($K$13=24,IF((MOD(A788-1,2))=1,DAY($D$9)+14,DAY($D$9)),DAY($D$9)))))) ->  | C788: =IF(A788="","",IF(A788=$D$12,H787+D788,IF(IF($E$15,$D$15,$D$14)>H787+D788,H787+D788,IF($E$15,$D$15,$D$14)))) ->  | D788: =IF(B788="","",IF(roundOpt,ROUND((B788-B787)*$H$5*G787,2),(B788-B787)*$H$5*G787)) ->  | F788: =IF(B788="","",IF(C788>F787+D788,0,F787+D788-C788)) ->  | G788: =IF(B788="","",IF(C788>D788+F787,G787+F787+D788-C788,G787)) ->  | H788: =IF(B788="","",G788+F788) -> 
A790: =IF(OR(H789<=0,H789=""),"",OFFSET(A790,-1,0,1,1)+1) -> 

Sheet Program
A2: PROJECT NAME | B2: =[2]Instructions!$C$15 -> Project A
A3: DEVELOPER/SPONSOR | B3: =[2]Instructions!$C$16 -> Apex Developers
A5: For-Sale Program
B7: Property Address | C7: Project Type | D7: Gross Square Footage | E7: Anticipated Sale Price | F7: Target affordability: | J7: Letter | K7: Project Type | L7: Number of Projects | M7: Average GSF | N7: Sale Price
A8: 1 | B8: 1 Main St | C8: 2B 2ba, East Liberty | D8: 2200 | E8: 150000 | J8: A | K8: =IFERROR(INDEX($C$8:$C$17,MATCH(0,COUNTIF($K$7:K7,$C$8:$C$17),0)),0) -> 2B 2ba, East Liberty | L8: =IF(ISTEXT(K8)=TRUE,COUNTIFS($C$8:$C$17,K8),"") -> 2 | M8: =IFERROR(AVERAGEIFS($D$8:$D$17,$C$8:$C$17,K8),"") -> 2200 | N8: =IFERROR(AVERAGEIFS($E$8:$E$17,$C$8:$C$17,K8),"") -> 150000
A9: =A8+1 -> 2 | B9: 2 Main St | C9: 2B 2ba, East Liberty | D9: 2200 | E9: 150000 | J9: B | K9: =IFERROR(INDEX($C$8:$C$17,MATCH(0,COUNTIF($K$7:K8,$C$8:$C$17),0)),0) -> 3B 2ba, East Liberty | L9: =IF(ISTEXT(K9)=TRUE,COUNTIFS($C$8:$C$17,K9),"") -> 1 | M9: =IFERROR(AVERAGEIFS($D$8:$D$17,$C$8:$C$17,K9),"") -> 3000 | N9: =IFERROR(AVERAGEIFS($E$8:$E$17,$C$8:$C$17,K9),"") -> 160000
A10: =A9+1 -> 3 | B10: 3 Main St | C10: 3B 2ba, East Liberty | D10: 3000 | E10: 160000 | J10: C | K10: =IFERROR(INDEX($C$8:$C$17,MATCH(0,COUNTIF($K$7:K9,$C$8:$C$17),0)),0) -> 2B 2ba, Larimer | L10: 2 | M10: 2000 | N10: 200000
A11: 4 | B11: 1 Broadway | C11: 2B 2ba, Larimer | D11: 2000 | E11: 200000 | J11: D | K11: =IFERROR(INDEX($C$8:$C$17,MATCH(0,COUNTIF($K$7:K10,$C$8:$C$17),0)),0) -> 0
A12: 5 | B12: 2 Broadway | C12: 2B 2ba, Larimer | D12: 2000 | E12: 200000 | J12: E | K12: =IFERROR(INDEX($C$8:$C$17,MATCH(0,COUNTIF($K$7:K11,$C$8:$C$17),0)),0) -> 0
A13: 6 | J13: F | K13: =IFERROR(INDEX($C$8:$C$17,MATCH(0,COUNTIF($K$7:K12,$C$8:$C$17),0)),0) -> 0
A14: 7 | J14: G | K14: =IFERROR(INDEX($C$8:$C$17,MATCH(0,COUNTIF($K$7:K13,$C$8:$C$17),0)),0) -> 0
A15: 8 | J15: H | K15: =IFERROR(INDEX($C$8:$C$17,MATCH(0,COUNTIF($K$7:K14,$C$8:$C$17),0)),0) -> 0
A16: 9 | J16: I | K16: =IFERROR(INDEX($C$8:$C$17,MATCH(0,COUNTIF($K$7:K15,$C$8:$C$17),0)),0) -> 0
A17: 10 | J17: J | K17: =IFERROR(INDEX($C$8:$C$17,MATCH(0,COUNTIF($K$7:K16,$C$8:$C$17),0)),0) -> 0
B19: e.g. 1 Main St. | C19: e.g. 2B 2ba, East Liberty | D19: e.g. 2,500 | E19: e.g. $150,000 | F19: e.g. 4 person HH at or below 80% AMI

Sheet Dev Budget
A2: PROJECT NAME | C2: =[2]Instructions!$C$15 -> Project A | D2: =[2]Instructions!$C$15 -> Project A | E2: =[2]Instructions!$C$15 -> Project A | F2: =[2]Instructions!$C$15 -> Project A | G2: =[2]Instructions!$C$15 -> Project A
A3: DEVELOPER/SPONSOR | C3: =[2]Instructions!$C$16 -> Apex Developers | D3: =[2]Instructions!$C$16 -> Apex Developers | E3: =[2]Instructions!$C$16 -> Apex Developers | F3: =[2]Instructions!$C$16 -> Apex Developers | G3: =[2]Instructions!$C$16 -> Apex Developers
A5: For-Sale Development Budget with
A6: Permanent Sources
I7: =ROW([2]Program!$K$8) -> 8 | S7: =I7+1 -> 9 | AC7: =S7+1 -> 10 | AM7: =AC7+1 -> 11 | AW7: =AM7+1 -> 12 | BG7: =AW7+1 -> 13 | BQ7: =BG7+1 -> 14 | CA7: =BQ7+1 -> 15 | CK7: =CA7+1 -> 16 | CU7: =CK7+1 -> 17
A8: SUMMARY | I8: =_xlfn.CONCAT("Type ",INDIRECT("program!j"&I7),": ",INDIRECT("Program!K"&I7)) -> Type A: 2B 2ba, East Liberty | S8: =_xlfn.CONCAT("Type ",INDIRECT("program!j"&S7),": ",INDIRECT("Program!K"&S7)) -> Type B: 3B 2ba, East Liberty | AC8: =_xlfn.CONCAT("Type ",INDIRECT("program!j"&AC7),": ",INDIRECT("Program!K"&AC7)) -> Type C: 2B 2ba, Larimer | AM8: =_xlfn.CONCAT("Type ",INDIRECT("program!j"&AM7),": ",INDIRECT("Program!K"&AM7)) -> Type D: 0 | AW8: =_xlfn.CONCAT("Type ",INDIRECT("program!j"&AW7),": ",INDIRECT("Program!K"&AW7)) -> Type E: 0 | BG8: =_xlfn.CONCAT("Type ",INDIRECT("program!j"&BG7),": ",INDIRECT("Program!K"&BG7)) -> Type F: 0 | BQ8: =_xlfn.CONCAT("Type ",INDIRECT("program!j"&BQ7),": ",INDIRECT("Program!K"&BQ7)) -> Type G: 0 | CA8: =_xlfn.CONCAT("Type ",INDIRECT("program!j"&CA7),": ",INDIRECT("Program!K"&CA7)) -> Type H: 0 | CK8: =_xlfn.CONCAT("Type ",INDIRECT("program!j"&CK7),": ",INDIRECT("Program!K"&CK7)) -> Type I: 0 | CU8: =_xlfn.CONCAT("Type ",INDIRECT("program!j"&CU7),": ",INDIRECT("Program!K"&CU7)) -> Type J: 0
A9: Total Units | C9: =Instructions!C18 -> 6 | I9: =$A9 -> Total Units | K9: =INDIRECT("Program!L"&I7) -> 2 | S9: =$A9 -> Total Units | U9: =INDIRECT("Program!L"&S7) -> 1 | AC9: =$A9 -> Total Units | AE9: =INDIRECT("Program!L"&AC7) -> 2 | AM9: =$A9 -> Total Units | AO9: =INDIRECT("Program!L"&AM7) ->  | AW9: =$A9 -> Total Units | AY9: =INDIRECT("Program!L"&AW7) ->  | BG9: =$A9 -> Total Units | BI9: =INDIRECT("Program!L"&BG7) ->  | BQ9: =$A9 -> Total Units | BS9: =INDIRECT("Program!L"&BQ7) ->  | CA9: =$A9 -> Total Units | CC9: =INDIRECT("Program!L"&CA7) ->  | CK9: =$A9 -> Total Units | CM9: =INDIRECT("Program!L"&CK7) ->  | CU9: =$A9 -> Total Units | CW9: =INDIRECT("Program!L"&CU7) -> 
A10: Total Gross SF | C10: =SUM(Program!$D$8:$D$17) -> 11400 | I10: =$A10 -> Total Gross SF | K10: =IFERROR(INDIRECT("Program!M"&I7)*'Dev Budget'!K9,"") -> 4400 | S10: =$A10 -> Total Gross SF | U10: =IFERROR(INDIRECT("Program!M"&S7)*'Dev Budget'!U9,"") -> 3000 | AC10: =$A10 -> Total Gross SF | AE10: =IFERROR(INDIRECT("Program!M"&AC7)*'Dev Budget'!AE9,"") -> 4000 | AM10: =$A10 -> Total Gross SF | AO10: =IFERROR(INDIRECT("Program!M"&AM7)*'Dev Budget'!AO9,"") ->  | AW10: =$A10 -> Total Gross SF | AY10: =IFERROR(INDIRECT("Program!M"&AW7)*'Dev Budget'!AY9,"") ->  | BG10: =$A10 -> Total Gross SF | BI10: =IFERROR(INDIRECT("Program!M"&BG7)*'Dev Budget'!BI9,"") ->  | BQ10: =$A10 -> Total Gross SF | BS10: =IFERROR(INDIRECT("Program!M"&BQ7)*'Dev Budget'!BS9,"") ->  | CA10: =$A10 -> Total Gross SF | CC10: =IFERROR(INDIRECT("Program!M"&CA7)*'Dev Budget'!CC9,"") ->  | CK10: =$A10 -> Total Gross SF | CM10: =IFERROR(INDIRECT("Program!M"&CK7)*'Dev Budget'!CM9,"") ->  | CU10: =$A10 -> Total Gross SF | CW10: =IFERROR(INDIRECT("Program!M"&CU7)*'Dev Budget'!CW9,"") -> 
E12: Total | F12: Per Unit | G12: Per Sq Ft | O12: Total | P12: Per Unit | Q12: Per Sq Ft | Y12: Total | Z12: Per Unit | AA12: Per Sq Ft | AI12: Total | AJ12: Per Unit | AK12: Per Sq Ft | AS12: Total | AT12: Per Unit | AU12: Per Sq Ft | BC12: Total | BD12: Per Unit | BE12: Per Sq Ft | BM12: Total | BN12: Per Unit | BO12: Per Sq Ft | BW12: Total | BX12: Per Unit | BY12: Per Sq Ft | CG12: Total | CH12: Per Unit | CI12: Per Sq Ft | CQ12: Total | CR12: Per Unit | CS12: Per Sq Ft | DA12: Total | DB12: Per Unit | DC12: Per Sq Ft
A13: Committed Sources of Funds | I13: Committed Sources of Funds | L13: Detail | S13: Committed Sources of Funds | V13: Detail | AC13: Committed Sources of Funds | AF13: Detail | AM13: Committed Sources of Funds | AP13: Detail | AW13: Committed Sources of Funds | AZ13: Detail | BG13: Committed Sources of Funds | BJ13: Detail | BQ13: Committed Sources of Funds | BT13: Detail | CA13: Committed Sources of Funds | CD13: Detail | CK13: Committed Sources of Funds | CN13: Detail | CU13: Committed Sources of Funds | CX13: Detail
A14: Permanent Financing - 1st Lien | E14: =SUM(O14,Y14,AI14,AS14,BC14,BM14,BW14,CG14,CQ14,DA14) -> 0 | F14: =IFERROR(E14/$C$9,"") -> 0 | G14: =IFERROR(E14/$C$10,"") -> 0 | I14: Permanent Financing - 1st Lien | P14: =IFERROR(O14/K$9,"") -> 0 | Q14: =IFERROR(O14/K$10,"") -> 0 | S14: Permanent Financing - 1st Lien | Z14: =IFERROR(Y14/U$9,"") -> 0 | AA14: =IFERROR(Y14/U$10,"") -> 0 | AC14: Permanent Financing - 1st Lien | AJ14: =IFERROR(AI14/AE$9,"") -> 0 | AK14: =IFERROR(AI14/AE$10,"") -> 0 | AM14: Permanent Financing - 1st Lien | AT14: =IFERROR(AS14/AO$9,"") ->  | AU14: =IFERROR(AS14/AO$10,"") ->  | AW14: Permanent Financing - 1st Lien | BD14: =IFERROR(BC14/AY$9,"") ->  | BE14: =IFERROR(BC14/AY$10,"") ->  | BG14: Permanent Financing - 1st Lien | BN14: =IFERROR(BM14/BI$9,"") ->  | BO14: =IFERROR(BM14/BI$10,"") ->  | BQ14: Permanent Financing - 1st Lien | BX14: =IFERROR(BW14/BS$9,"") ->  | BY14: =IFERROR(BW14/BS$10,"") ->  | CA14: Permanent Financing - 1st Lien | CH14: =IFERROR(CG14/CC$9,"") ->  | CI14: =IFERROR(CG14/CC$10,"") ->  | CK14: Permanent Financing - 1st Lien | CR14: =IFERROR(CQ14/CM$9,"") ->  | CS14: =IFERROR(CQ14/CM$10,"") ->  | CU14: Permanent Financing - 1st Lien | DB14: =IFERROR(DA14/CW$9,"") ->  | DC14: =IFERROR(DA14/CW$10,"") -> 
A15: Permanent Financing - 2nd Lien | E15: =SUM(O15,Y15,AI15,AS15,BC15,BM15,BW15,CG15,CQ15,DA15) -> 0 | F15: 0 | G15: 0 | I15: Permanent Financing - 2nd Lien | P15: =IFERROR(O15/K$9,"") -> 0 | Q15: =IFERROR(O15/K$10,"") -> 0 | S15: Permanent Financing - 2nd Lien | Z15: =IFERROR(Y15/U$9,"") -> 0 | AA15: =IFERROR(Y15/U$10,"") -> 0 | AC15: Permanent Financing - 2nd Lien | AJ15: =IFERROR(AI15/AE$9,"") -> 0 | AK15: =IFERROR(AI15/AE$10,"") -> 0 | AM15: Permanent Financing - 2nd Lien | AT15: =IFERROR(AS15/AO$9,"") ->  | AU15: =IFERROR(AS15/AO$10,"") ->  | AW15: Permanent Financing - 2nd Lien | BD15: =IFERROR(BC15/AY$9,"") ->  | BE15: =IFERROR(BC15/AY$10,"") ->  | BG15: Permanent Financing - 2nd Lien | BN15: =IFERROR(BM15/BI$9,"") ->  | BO15: =IFERROR(BM15/BI$10,"") ->  | BQ15: Permanent Financing - 2nd Lien | BX15: =IFERROR(BW15/BS$9,"") ->  | BY15: =IFERROR(BW15/BS$10,"") ->  | CA15: Permanent Financing - 2nd Lien | CH15: =IFERROR(CG15/CC$9,"") ->  | CI15: =IFERROR(CG15/CC$10,"") ->  | CK15: Permanent Financing - 2nd Lien | CR15: =IFERROR(CQ15/CM$9,"") ->  | CS15: =IFERROR(CQ15/CM$10,"") ->  | CU15: Permanent Financing - 2nd Lien | DB15: =IFERROR(DA15/CW$9,"") ->  | DC15: =IFERROR(DA15/CW$10,"") -> 
A16: Other: | E16: 0 | F16: 0 | G16: 0 | I16: Other: | P16: 0 | Q16: 0 | S16: Other: | Z16: 0 | AA16: 0 | AC16: Other: | AJ16: 0 | AK16: 0 | AM16: Other: | AW16: Other: | BG16: Other: | BQ16: Other: | CA16: Other: | CK16: Other: | CU16: Other:
A17: Other: | E17: 0 | F17: 0 | G17: 0 | I17: Other: | P17: 0 | Q17: 0 | S17: Other: | Z17: 0 | AA17: 0 | AC17: Other: | AJ17: 0 | AK17: 0 | AM17: Other: | AW17: Other: | BG17: Other: | BQ17: Other: | CA17: Other: | CK17: Other: | CU17: Other:
A18: Total Committed Sources of Funds | E18: =SUM(E14:E17) -> 0 | F18: =SUM(F14:F17) -> 0 | G18: =SUM(G14:G17) -> 0 | I18: Total Committed Sources of Funds | O18: =SUM(O14:O17) -> 0 | P18: =SUM(P14:P17) -> 0 | Q18: =SUM(Q14:Q17) -> 0 | S18: Total Committed Sources of Funds | Y18: =SUM(Y14:Y17) -> 0 | Z18: =SUM(Z14:Z17) -> 0 | AA18: =SUM(AA14:AA17) -> 0 | AC18: Total Committed Sources of Funds | AI18: =SUM(AI14:AI17) -> 0 | AJ18: =SUM(AJ14:AJ17) -> 0 | AK18: =SUM(AK14:AK17) -> 0 | AM18: Total Committed Sources of Funds | AS18: =SUM(AS14:AS17) -> 0 | AT18: =SUM(AT14:AT17) -> 0 | AU18: =SUM(AU14:AU17) -> 0 | AW18: Total Committed Sources of Funds | BC18: =SUM(BC14:BC17) -> 0 | BD18: =SUM(BD14:BD17) -> 0 | BE18: =SUM(BE14:BE17) -> 0 | BG18: Total Committed Sources of Funds | BM18: =SUM(BM14:BM17) -> 0 | BN18: =SUM(BN14:BN17) -> 0 | BO18: =SUM(BO14:BO17) -> 0 | BQ18: Total Committed Sources of Funds | BW18: =SUM(BW14:BW17) -> 0 | BX18: =SUM(BX14:BX17) -> 0 | BY18: =SUM(BY14:BY17) -> 0 | CA18: Total Committed Sources of Funds | CG18: =SUM(CG14:CG17) -> 0 | CH18: =SUM(CH14:CH17) -> 0 | CI18: =SUM(CI14:CI17) -> 0 | CK18: Total Committed Sources of Funds | CQ18: =SUM(CQ14:CQ17) -> 0 | CR18: =SUM(CR14:CR17) -> 0 | CS18: =SUM(CS14:CS17) -> 0 | CU18: Total Committed Sources of Funds | DA18: =SUM(DA14:DA17) -> 0 | DB18: =SUM(DB14:DB17) -> 0 | DC18: =SUM(DC14:DC17) -> 0
A20: Pending/Proposed Sources of Funds | I20: Pending/Proposed Sources of Funds | S20: Pending/Proposed Sources of Funds | AC20: Pending/Proposed Sources of Funds | AM20: Pending/Proposed Sources of Funds | AW20: Pending/Proposed Sources of Funds | BG20: Pending/Proposed Sources of Funds | BQ20: Pending/Proposed Sources of Funds | CA20: Pending/Proposed Sources of Funds | CK20: Pending/Proposed Sources of Funds | CU20: Pending/Proposed Sources of Funds
A21: EEHDP Request | E21: =SUM(O21,Y21,AI21,AS21,BC21,BM21,BW21,CG21,CQ21,DA21) -> 0 | F21: =IFERROR(E21/C9,"") -> 0 | G21: =IFERROR(E21/$C$10,"") -> 0 | I21: EEHDP Request | P21: =IFERROR(O21/K$9,"") -> 0 | Q21: =IFERROR(O21/K$10,"") -> 0 | S21: EEHDP Request | Z21: =IFERROR(Y21/U$9,"") -> 0 | AA21: =IFERROR(Y21/U$10,"") -> 0 | AC21: EEHDP Request | AJ21: =IFERROR(AI21/AE$9,"") -> 0 | AK21: =IFERROR(AI21/AE$10,"") -> 0 | AM21: EEHDP Request | AT21: =IFERROR(AS21/AO$9,"") ->  | AU21: =IFERROR(AS21/AO$10,"") ->  | AW21: EEHDP Request | BD21: =IFERROR(BC21/AY$9,"") ->  | BE21: =IFERROR(BC21/AY$10,"") ->  | BG21: EEHDP Request | BN21: =IFERROR(BM21/BI$9,"") ->  | BO21: =IFERROR(BM21/BI$10,"") ->  | BQ21: EEHDP Request | BX21: =IFERROR(BW21/BS$9,"") ->  | BY21: =IFERROR(BW21/BS$10,"") ->  | CA21: EEHDP Request | CH21: =IFERROR(CG21/CC$9,"") ->  | CI21: =IFERROR(CG21/CC$10,"") ->  | CK21: EEHDP Request | CR21: =IFERROR(CQ21/CM$9,"") ->  | CS21: =IFERROR(CQ21/CM$10,"") ->  | CU21: EEHDP Request | DB21: =IFERROR(DA21/CW$9,"") ->  | DC21: =IFERROR(DA21/CW$10,"") -> 
A22: FHLB | E22: 0 | F22: =IFERROR(E22/$C$9,"") -> 0 | G22: 0 | I22: FHLB | P22: 0 | Q22: 0 | S22: FHLB | Z22: 0 | AA22: 0 | AC22: FHLB | AJ22: 0 | AK22: 0 | AM22: FHLB | AW22: FHLB | BG22: FHLB | BQ22: FHLB | CA22: FHLB | CK22: FHLB | CU22: FHLB
A23: Other: | E23: 0 | F23: 0 | G23: 0 | I23: Other: | P23: 0 | Q23: 0 | S23: Other: | Z23: 0 | AA23: 0 | AC23: Other: | AJ23: 0 | AK23: 0 | AM23: Other: | AW23: Other: | BG23: Other: | BQ23: Other: | CA23: Other: | CK23: Other: | CU23: Other:
A24: Other: | E24: 0 | F24: 0 | G24: 0 | I24: Other: | P24: 0 | Q24: 0 | S24: Other: | Z24: 0 | AA24: 0 | AC24: Other: | AJ24: 0 | AK24: 0 | AM24: Other: | AW24: Other: | BG24: Other: | BQ24: Other: | CA24: Other: | CK24: Other: | CU24: Other:
A25: Total Pending/Proposed Sources of Funds | E25: =SUM(E21:E24) -> 0 | F25: =SUM(F21:F24) -> 0 | G25: =SUM(G21:G24) -> 0 | I25: Total Pending/Proposed Sources of Funds | O25: =SUM(O21:O24) -> 0 | P25: =SUM(P21:P24) -> 0 | Q25: =SUM(Q21:Q24) -> 0 | S25: Total Pending/Proposed Sources of Funds | Y25: =SUM(Y21:Y24) -> 0 | Z25: =SUM(Z21:Z24) -> 0 | AA25: =SUM(AA21:AA24) -> 0 | AC25: Total Pending/Proposed Sources of Funds | AI25: =SUM(AI21:AI24) -> 0 | AJ25: =SUM(AJ21:AJ24) -> 0 | AK25: =SUM(AK21:AK24) -> 0 | AM25: Total Pending/Proposed Sources of Funds | AS25: =SUM(AS21:AS24) -> 0 | AT25: =SUM(AT21:AT24) -> 0 | AU25: =SUM(AU21:AU24) -> 0 | AW25: Total Pending/Proposed Sources of Funds | BC25: =SUM(BC21:BC24) -> 0 | BD25: =SUM(BD21:BD24) -> 0 | BE25: =SUM(BE21:BE24) -> 0 | BG25: Total Pending/Proposed Sources of Funds | BM25: =SUM(BM21:BM24) -> 0 | BN25: =SUM(BN21:BN24) -> 0 | BO25: =SUM(BO21:BO24) -> 0 | BQ25: Total Pending/Proposed Sources of Funds | BW25: =SUM(BW21:BW24) -> 0 | BX25: =SUM(BX21:BX24) -> 0 | BY25: =SUM(BY21:BY24) -> 0 | CA25: Total Pending/Proposed Sources of Funds | CG25: =SUM(CG21:CG24) -> 0 | CH25: =SUM(CH21:CH24) -> 0 | CI25: =SUM(CI21:CI24) -> 0 | CK25: Total Pending/Proposed Sources of Funds | CQ25: =SUM(CQ21:CQ24) -> 0 | CR25: =SUM(CR21:CR24) -> 0 | CS25: =SUM(CS21:CS24) -> 0 | CU25: Total Pending/Proposed Sources of Funds | DA25: =SUM(DA21:DA24) -> 0 | DB25: =SUM(DB21:DB24) -> 0 | DC25: =SUM(DC21:DC24) -> 0
A27: Total Sources of Funds | E27: =SUM(E25,E18) -> 0 | F27: =SUM(F25,F18) -> 0 | G27: =SUM(G25,G18) -> 0 | I27: Total Sources of Funds | O27: =SUM(O25,O18) -> 0 | P27: =SUM(P25,P18) -> 0 | Q27: =SUM(Q25,Q18) -> 0 | S27: Total Sources of Funds | Y27: =SUM(Y25,Y18) -> 0 | Z27: =SUM(Z25,Z18) -> 0 | AA27: =SUM(AA25,AA18) -> 0 | AC27: Total Sources of Funds | AI27: =SUM(AI25,AI18) -> 0 | AJ27: =SUM(AJ25,AJ18) -> 0 | AK27: =SUM(AK25,AK18) -> 0 | AM27: Total Sources of Funds | AS27: =SUM(AS25,AS18) -> 0 | AT27: =SUM(AT25,AT18) -> 0 | AU27: =SUM(AU25,AU18) -> 0 | AW27: Total Sources of Funds | BC27: =SUM(BC25,BC18) -> 0 | BD27: =SUM(BD25,BD18) -> 0 | BE27: =SUM(BE25,BE18) -> 0 | BG27: Total Sources of Funds | BM27: =SUM(BM25,BM18) -> 0 | BN27: =SUM(BN25,BN18) -> 0 | BO27: =SUM(BO25,BO18) -> 0 | BQ27: Total Sources of Funds | BW27: =SUM(BW25,BW18) -> 0 | BX27: =SUM(BX25,BX18) -> 0 | BY27: =SUM(BY25,BY18) -> 0 | CA27: Total Sources of Funds | CG27: =SUM(CG25,CG18) -> 0 | CH27: =SUM(CH25,CH18) -> 0 | CI27: =SUM(CI25,CI18) -> 0 | CK27: Total Sources of Funds | CQ27: =SUM(CQ25,CQ18) -> 0 | CR27: =SUM(CR25,CR18) -> 0 | CS27: =SUM(CS25,CS18) -> 0 | CU27: Total Sources of Funds | DA27: =SUM(DA25,DA18) -> 0 | DB27: =SUM(DB25,DB18) -> 0 | DC27: =SUM(DC25,DC18) -> 0
A30: Uses of Funds | I30: Uses of Funds | S30: Uses of Funds | AC30: Uses of Funds | AM30: Uses of Funds | AW30: Uses of Funds | BG30: Uses of Funds | BQ30: Uses of Funds | CA30: Uses of Funds | CK30: Uses of Funds | CU30: Uses of Funds
A32: Acquisition | I32: Acquisition | S32: Acquisition | AC32: Acquisition | AM32: Acquisition | AW32: Acquisition | BG32: Acquisition | BQ32: Acquisition | CA32: Acquisition | CK32: Acquisition | CU32: Acquisition
A33: Purchase Price | E33: =SUM(O33,Y33,AI33,AS33,BC33,BM33,BW33,CG33,CQ33,DA33) -> 0 | F33: =IFERROR(E33/$C$9,"") -> 0 | G33: =IFERROR(E33/$C$10,"") -> 0 | I33: Purchase Price | P33: =IFERROR(O33/K$9,"") -> 0 | Q33: =IFERROR(O33/K$10,"") -> 0 | S33: Purchase Price | Z33: =IFERROR(Y33/U$9,"") -> 0 | AA33: =IFERROR(Y33/U$10,"") -> 0 | AC33: Purchase Price | AJ33: =IFERROR(AI33/AE$9,"") -> 0 | AK33: =IFERROR(AI33/AE$10,"") -> 0 | AM33: Purchase Price | AT33: =IFERROR(AS33/AO$9,"") ->  | AU33: =IFERROR(AS33/AO$10,"") ->  | AW33: Purchase Price | BD33: =IFERROR(BC33/AY$9,"") ->  | BE33: =IFERROR(BC33/AY$10,"") ->  | BG33: Purchase Price | BN33: =IFERROR(BM33/BI$9,"") ->  | BO33: =IFERROR(BM33/BI$10,"") ->  | BQ33: Purchase Price | BX33: =IFERROR(BW33/BS$9,"") ->  | BY33: =IFERROR(BW33/BS$10,"") ->  | CA33: Purchase Price | CH33: =IFERROR(CG33/CC$9,"") ->  | CI33: =IFERROR(CG33/CC$10,"") ->  | CK33: Purchase Price | CR33: =IFERROR(CQ33/CM$9,"") ->  | CS33: =IFERROR(CQ33/CM$10,"") ->  | CU33: Purchase Price | DB33: =IFERROR(DA33/CW$9,"") ->  | DC33: =IFERROR(DA33/CW$10,"") -> 
A34: Hand Money | E34: 0 | F34: 0 | G34: 0 | I34: Hand Money | P34: 0 | Q34: 0 | S34: Hand Money | Z34: 0 | AA34: 0 | AC34: Hand Money | AJ34: 0 | AK34: 0 | AM34: Hand Money | AW34: Hand Money | BG34: Hand Money | BQ34: Hand Money | CA34: Hand Money | CK34: Hand Money | CU34: Hand Money
A35: Appraisal Costs | E35: 0 | F35: 0 | G35: 0 | I35: Appraisal Costs | P35: 0 | Q35: 0 | S35: Appraisal Costs | Z35: 0 | AA35: 0 | AC35: Appraisal Costs | AJ35: 0 | AK35: 0 | AM35: Appraisal Costs | AW35: Appraisal Costs | BG35: Appraisal Costs | BQ35: Appraisal Costs | CA35: Appraisal Costs | CK35: Appraisal Costs | CU35: Appraisal Costs
A36: Closing Fees | E36: 0 | F36: 0 | G36: 0 | I36: Closing Fees | P36: 0 | Q36: 0 | S36: Closing Fees | Z36: 0 | AA36: 0 | AC36: Closing Fees | AJ36: 0 | AK36: 0 | AM36: Closing Fees | AW36: Closing Fees | BG36: Closing Fees | BQ36: Closing Fees | CA36: Closing Fees | CK36: Closing Fees | CU36: Closing Fees
A37: Title Insurance | E37: 0 | F37: 0 | G37: 0 | I37: Title Insurance | P37: 0 | Q37: 0 | S37: Title Insurance | Z37: 0 | AA37: 0 | AC37: Title Insurance | AJ37: 0 | AK37: 0 | AM37: Title Insurance | AW37: Title Insurance | BG37: Title Insurance | BQ37: Title Insurance | CA37: Title Insurance | CK37: Title Insurance | CU37: Title Insurance
A38: Title Search | E38: 0 | F38: 0 | G38: 0 | I38: Title Search | P38: 0 | Q38: 0 | S38: Title Search | Z38: 0 | AA38: 0 | AC38: Title Search | AJ38: 0 | AK38: 0 | AM38: Title Search | AW38: Title Search | BG38: Title Search | BQ38: Title Search | CA38: Title Search | CK38: Title Search | CU38: Title Search
A39: Transfer Taxes | E39: 0 | F39: 0 | G39: 0 | I39: Transfer Taxes | P39: 0 | Q39: 0 | S39: Transfer Taxes | Z39: 0 | AA39: 0 | AC39: Transfer Taxes | AJ39: 0 | AK39: 0 | AM39: Transfer Taxes | AW39: Transfer Taxes | BG39: Transfer Taxes | BQ39: Transfer Taxes | CA39: Transfer Taxes | CK39: Transfer Taxes | CU39: Transfer Taxes
A40: Financing Fee - EEHDP (2% of EEHDP funding) | E40: 0 | F40: 0 | G40: 0 | I40: Financing Fee - EEHDP (2% of EEHDP funding) | P40: 0 | Q40: 0 | S40: Financing Fee - EEHDP (2% of EEHDP funding) | Z40: 0 | AA40: 0 | AC40: Financing Fee - EEHDP (2% of EEHDP funding) | AJ40: 0 | AK40: 0 | AM40: Financing Fee - EEHDP (2% of EEHDP funding) | AW40: Financing Fee - EEHDP (2% of EEHDP funding) | BG40: Financing Fee - EEHDP (2% of EEHDP funding) | BQ40: Financing Fee - EEHDP (2% of EEHDP funding) | CA40: Financing Fee - EEHDP (2% of EEHDP funding) | CK40: Financing Fee - EEHDP (2% of EEHDP funding) | CU40: Financing Fee - EEHDP (2% of EEHDP funding)
A41: Financing Fee - Bank | E41: 0 | F41: 0 | G41: 0 | I41: Financing Fee - Bank | P41: 0 | Q41: 0 | S41: Financing Fee - Bank | Z41: 0 | AA41: 0 | AC41: Financing Fee - Bank | AJ41: 0 | AK41: 0 | AM41: Financing Fee - Bank | AW41: Financing Fee - Bank | BG41: Financing Fee - Bank | BQ41: Financing Fee - Bank | CA41: Financing Fee - Bank | CK41: Financing Fee - Bank | CU41: Financing Fee - Bank
A42: Other: | E42: 0 | F42: 0 | G42: 0 | I42: Other: | P42: 0 | Q42: 0 | S42: Other: | Z42: 0 | AA42: 0 | AC42: Other: | AJ42: 0 | AK42: 0 | AM42: Other: | AW42: Other: | BG42: Other: | BQ42: Other: | CA42: Other: | CK42: Other: | CU42: Other:
A43: Other: | E43: 0 | F43: 0 | G43: 0 | I43: Other: | P43: 0 | Q43: 0 | S43: Other: | Z43: 0 | AA43: 0 | AC43: Other: | AJ43: 0 | AK43: 0 | AM43: Other: | AW43: Other: | BG43: Other: | BQ43: Other: | CA43: Other: | CK43: Other: | CU43: Other:
A44: Total Acquisition | E44: =SUM(E33:E43) -> 0 | F44: =SUM(F33:F43) -> 0 | G44: =SUM(G33:G43) -> 0 | I44: Total Acquisition | O44: =SUM(O33:O43) -> 0 | P44: =SUM(P33:P43) -> 0 | Q44: =SUM(Q33:Q43) -> 0 | S44: Total Acquisition | Y44: =SUM(Y33:Y43) -> 0 | Z44: =SUM(Z33:Z43) -> 0 | AA44: =SUM(AA33:AA43) -> 0 | AC44: Total Acquisition | AI44: =SUM(AI33:AI43) -> 0 | AJ44: =SUM(AJ33:AJ43) -> 0 | AK44: =SUM(AK33:AK43) -> 0 | AM44: Total Acquisition | AS44: =SUM(AS33:AS43) -> 0 | AT44: =SUM(AT33:AT43) -> 0 | AU44: =SUM(AU33:AU43) -> 0 | AW44: Total Acquisition | BC44: =SUM(BC33:BC43) -> 0 | BD44: =SUM(BD33:BD43) -> 0 | BE44: =SUM(BE33:BE43) -> 0 | BG44: Total Acquisition | BM44: =SUM(BM33:BM43) -> 0 | BN44: =SUM(BN33:BN43) -> 0 | BO44: =SUM(BO33:BO43) -> 0 | BQ44: Total Acquisition | BW44: =SUM(BW33:BW43) -> 0 | BX44: =SUM(BX33:BX43) -> 0 | BY44: =SUM(BY33:BY43) -> 0 | CA44: Total Acquisition | CG44: =SUM(CG33:CG43) -> 0 | CH44: =SUM(CH33:CH43) -> 0 | CI44: =SUM(CI33:CI43) -> 0 | CK44: Total Acquisition | CQ44: =SUM(CQ33:CQ43) -> 0 | CR44: =SUM(CR33:CR43) -> 0 | CS44: =SUM(CS33:CS43) -> 0 | CU44: Total Acquisition | DA44: =SUM(DA33:DA43) -> 0 | DB44: =SUM(DB33:DB43) -> 0 | DC44: =SUM(DC33:DC43) -> 0
A46: Hard Costs | I46: Hard Costs | S46: Hard Costs | AC46: Hard Costs | AM46: Hard Costs | AW46: Hard Costs | BG46: Hard Costs | BQ46: Hard Costs | CA46: Hard Costs | CK46: Hard Costs | CU46: Hard Costs
A47: General Requirements | D47: =IFERROR(E47/SUM(E$48:E$52),"") ->  | E47: =SUM(O47,Y47,AI47,AS47,BC47,BM47,BW47,CG47,CQ47,DA47) -> 0 | F47: =IFERROR(E47/$C$9,"") -> 0 | G47: =IFERROR(E47/$C$10,"") -> 0 | I47: General Requirements | N47: =IFERROR(O47/SUM(O$48:O$52),"") ->  | P47: =IFERROR(O47/K$9,"") -> 0 | Q47: =IFERROR(O47/K$10,"") -> 0 | S47: General Requirements | X47: =IFERROR(Y47/SUM(Y$48:Y$52),"") ->  | Z47: =IFERROR(Y47/U$9,"") -> 0 | AA47: =IFERROR(Y47/U$10,"") -> 0 | AC47: General Requirements | AH47: =IFERROR(AI47/SUM(AI$48:AI$52),"") ->  | AJ47: =IFERROR(AI47/AE$9,"") -> 0 | AK47: =IFERROR(AI47/AE$10,"") -> 0 | AM47: General Requirements | AR47: =IFERROR(AS47/SUM(AS$48:AS$52),"") ->  | AT47: =IFERROR(AS47/AO$9,"") ->  | AU47: =IFERROR(AS47/AO$10,"") ->  | AW47: General Requirements | BB47: =IFERROR(BC47/SUM(BC$48:BC$52),"") ->  | BD47: =IFERROR(BC47/AY$9,"") ->  | BE47: =IFERROR(BC47/AY$10,"") ->  | BG47: General Requirements | BL47: =IFERROR(BM47/SUM(BM$48:BM$52),"") ->  | BN47: =IFERROR(BM47/BI$9,"") ->  | BO47: =IFERROR(BM47/BI$10,"") ->  | BQ47: General Requirements | BV47: =IFERROR(BW47/SUM(BW$48:BW$52),"") ->  | BX47: =IFERROR(BW47/BS$9,"") ->  | BY47: =IFERROR(BW47/BS$10,"") ->  | CA47: General Requirements | CF47: =IFERROR(CG47/SUM(CG$48:CG$52),"") ->  | CH47: =IFERROR(CG47/CC$9,"") ->  | CI47: =IFERROR(CG47/CC$10,"") ->  | CK47: General Requirements | CP47: =IFERROR(CQ47/SUM(CQ$48:CQ$52),"") ->  | CR47: =IFERROR(CQ47/CM$9,"") ->  | CS47: =IFERROR(CQ47/CM$10,"") ->  | CU47: General Requirements | CZ47: =IFERROR(DA47/SUM(DA$48:DA$52),"") ->  | DB47: =IFERROR(DA47/CW$9,"") ->  | DC47: =IFERROR(DA47/CW$10,"") -> 
A48: Demolition | E48: 0 | F48: 0 | G48: 0 | I48: Demolition | P48: 0 | Q48: 0 | S48: Demolition | Z48: 0 | AA48: 0 | AC48: Demolition | AJ48: 0 | AK48: 0 | AM48: Demolition | AW48: Demolition | BG48: Demolition | BQ48: Demolition | CA48: Demolition | CK48: Demolition | CU48: Demolition
A49: Site Work | E49: 0 | F49: 0 | G49: 0 | I49: Site Work | P49: 0 | Q49: 0 | S49: Site Work | Z49: 0 | AA49: 0 | AC49: Site Work | AJ49: 0 | AK49: 0 | AM49: Site Work | AW49: Site Work | BG49: Site Work | BQ49: Site Work | CA49: Site Work | CK49: Site Work | CU49: Site Work
A50: Offsite Improvements | E50: 0 | F50: 0 | G50: 0 | I50: Offsite Improvements | P50: 0 | Q50: 0 | S50: Offsite Improvements | Z50: 0 | AA50: 0 | AC50: Offsite Improvements | AJ50: 0 | AK50: 0 | AM50: Offsite Improvements | AW50: Offsite Improvements | BG50: Offsite Improvements | BQ50: Offsite Improvements | CA50: Offsite Improvements | CK50: Offsite Improvements | CU50: Offsite Improvements
A51: Environmental Remediation | E51: 0 | F51: 0 | G51: 0 | I51: Environmental Remediation | P51: 0 | Q51: 0 | S51: Environmental Remediation | Z51: 0 | AA51: 0 | AC51: Environmental Remediation | AJ51: 0 | AK51: 0 | AM51: Environmental Remediation | AW51: Environmental Remediation | BG51: Environmental Remediation | BQ51: Environmental Remediation | CA51: Environmental Remediation | CK51: Environmental Remediation | CU51: Environmental Remediation
A52: Construction | E52: 0 | F52: 0 | G52: 0 | I52: Construction | P52: 0 | Q52: 0 | S52: Construction | Z52: 0 | AA52: 0 | AC52: Construction | AJ52: 0 | AK52: 0 | AM52: Construction | AW52: Construction | BG52: Construction | BQ52: Construction | CA52: Construction | CK52: Construction | CU52: Construction
A53: Builder's Overhead | D53: =IFERROR(E53/SUM(E$48:E$52),"") ->  | E53: 0 | F53: 0 | G53: 0 | I53: Builder's Overhead | N53: =IFERROR(O53/SUM(O$48:O$52),"") ->  | P53: 0 | Q53: 0 | S53: Builder's Overhead | X53: =IFERROR(Y53/SUM(Y$48:Y$52),"") ->  | Z53: 0 | AA53: 0 | AC53: Builder's Overhead | AH53: =IFERROR(AI53/SUM(AI$48:AI$52),"") ->  | AJ53: 0 | AK53: 0 | AM53: Builder's Overhead | AR53: =IFERROR(AS53/SUM(AS$48:AS$52),"") ->  | AW53: Builder's Overhead | BB53: =IFERROR(BC53/SUM(BC$48:BC$52),"") ->  | BG53: Builder's Overhead | BL53: =IFERROR(BM53/SUM(BM$48:BM$52),"") ->  | BQ53: Builder's Overhead | BV53: =IFERROR(BW53/SUM(BW$48:BW$52),"") ->  | CA53: Builder's Overhead | CF53: =IFERROR(CG53/SUM(CG$48:CG$52),"") ->  | CK53: Builder's Overhead | CP53: =IFERROR(CQ53/SUM(CQ$48:CQ$52),"") ->  | CU53: Builder's Overhead | CZ53: =IFERROR(DA53/SUM(DA$48:DA$52),"") -> 
A54: Builder's Profit | D54: =IFERROR(E54/SUM(E$48:E$52),"") ->  | E54: 0 | F54: 0 | G54: 0 | I54: Builder's Profit | N54: =IFERROR(O54/SUM(O$48:O$52),"") ->  | P54: 0 | Q54: 0 | S54: Builder's Profit | X54: =IFERROR(Y54/SUM(Y$48:Y$52),"") ->  | Z54: 0 | AA54: 0 | AC54: Builder's Profit | AH54: =IFERROR(AI54/SUM(AI$48:AI$52),"") ->  | AJ54: 0 | AK54: 0 | AM54: Builder's Profit | AR54: =IFERROR(AS54/SUM(AS$48:AS$52),"") ->  | AW54: Builder's Profit | BB54: =IFERROR(BC54/SUM(BC$48:BC$52),"") ->  | BG54: Builder's Profit | BL54: =IFERROR(BM54/SUM(BM$48:BM$52),"") ->  | BQ54: Builder's Profit | BV54: =IFERROR(BW54/SUM(BW$48:BW$52),"") ->  | CA54: Builder's Profit | CF54: =IFERROR(CG54/SUM(CG$48:CG$52),"") ->  | CK54: Builder's Profit | CP54: =IFERROR(CQ54/SUM(CQ$48:CQ$52),"") ->  | CU54: Builder's Profit | CZ54: =IFERROR(DA54/SUM(DA$48:DA$52),"") -> 
A55: Bond Premium | E55: 0 | F55: 0 | G55: 0 | I55: Bond Premium | P55: 0 | Q55: 0 | S55: Bond Premium | Z55: 0 | AA55: 0 | AC55: Bond Premium | AJ55: 0 | AK55: 0 | AM55: Bond Premium | AW55: Bond Premium | BG55: Bond Premium | BQ55: Bond Premium | CA55: Bond Premium | CK55: Bond Premium | CU55: Bond Premium
A56: Building Permits | E56: 0 | F56: 0 | G56: 0 | I56: Building Permits | P56: 0 | Q56: 0 | S56: Building Permits | Z56: 0 | AA56: 0 | AC56: Building Permits | AJ56: 0 | AK56: 0 | AM56: Building Permits | AW56: Building Permits | BG56: Building Permits | BQ56: Building Permits | CA56: Building Permits | CK56: Building Permits | CU56: Building Permits
A57: Other: | E57: 0 | F57: 0 | G57: 0 | I57: Other: | P57: 0 | Q57: 0 | S57: Other: | Z57: 0 | AA57: 0 | AC57: Other: | AJ57: 0 | AK57: 0 | AM57: Other: | AW57: Other: | BG57: Other: | BQ57: Other: | CA57: Other: | CK57: Other: | CU57: Other:
A58: Other: | E58: 0 | F58: 0 | G58: 0 | I58: Other: | P58: 0 | Q58: 0 | S58: Other: | Z58: 0 | AA58: 0 | AC58: Other: | AJ58: 0 | AK58: 0 | AM58: Other: | AW58: Other: | BG58: Other: | BQ58: Other: | CA58: Other: | CK58: Other: | CU58: Other:
A59: Hard Cost Contingency (% of hard costs) | D59: =IFERROR(E59/SUM(E47:E58),"") ->  | E59: 0 | F59: 0 | G59: 0 | I59: Hard Cost Contingency (% of hard costs) | N59: =IFERROR(O59/SUM(O47:O58),"") ->  | P59: 0 | Q59: 0 | S59: Hard Cost Contingency (% of hard costs) | X59: =IFERROR(Y59/SUM(Y47:Y58),"") ->  | Z59: 0 | AA59: 0 | AC59: Hard Cost Contingency (% of hard costs) | AH59: =IFERROR(AI59/SUM(AI47:AI58),"") ->  | AJ59: 0 | AK59: 0 | AM59: Hard Cost Contingency (% of hard costs) | AR59: =IFERROR(AS59/SUM(AS47:AS58),"") ->  | AW59: Hard Cost Contingency (% of hard costs) | BB59: =IFERROR(BC59/SUM(BC47:BC58),"") ->  | BG59: Hard Cost Contingency (% of hard costs) | BL59: =IFERROR(BM59/SUM(BM47:BM58),"") ->  | BQ59: Hard Cost Contingency (% of hard costs) | BV59: =IFERROR(BW59/SUM(BW47:BW58),"") ->  | CA59: Hard Cost Contingency (% of hard costs) | CF59: =IFERROR(CG59/SUM(CG47:CG58),"") ->  | CK59: Hard Cost Contingency (% of hard costs) | CP59: =IFERROR(CQ59/SUM(CQ47:CQ58),"") ->  | CU59: Hard Cost Contingency (% of hard costs) | CZ59: =IFERROR(DA59/SUM(DA47:DA58),"") -> 
A60: Total Hard Costs | E60: =SUM(E47:E59) -> 0 | F60: =SUM(F47:F59) -> 0 | G60: =SUM(G47:G59) -> 0 | I60: Total Hard Costs | O60: =SUM(O47:O59) -> 0 | P60: =SUM(P47:P59) -> 0 | Q60: =SUM(Q47:Q59) -> 0 | S60: Total Hard Costs | Y60: =SUM(Y47:Y59) -> 0 | Z60: =SUM(Z47:Z59) -> 0 | AA60: =SUM(AA47:AA59) -> 0 | AC60: Total Hard Costs | AI60: =SUM(AI47:AI59) -> 0 | AJ60: =SUM(AJ47:AJ59) -> 0 | AK60: =SUM(AK47:AK59) -> 0 | AM60: Total Hard Costs | AS60: =SUM(AS47:AS59) -> 0 | AT60: =SUM(AT47:AT59) -> 0 | AU60: =SUM(AU47:AU59) -> 0 | AW60: Total Hard Costs | BC60: =SUM(BC47:BC59) -> 0 | BD60: =SUM(BD47:BD59) -> 0 | BE60: =SUM(BE47:BE59) -> 0 | BG60: Total Hard Costs | BM60: =SUM(BM47:BM59) -> 0 | BN60: =SUM(BN47:BN59) -> 0 | BO60: =SUM(BO47:BO59) -> 0 | BQ60: Total Hard Costs | BW60: =SUM(BW47:BW59) -> 0 | BX60: =SUM(BX47:BX59) -> 0 | BY60: =SUM(BY47:BY59) -> 0 | CA60: Total Hard Costs | CG60: =SUM(CG47:CG59) -> 0 | CH60: =SUM(CH47:CH59) -> 0 | CI60: =SUM(CI47:CI59) -> 0 | CK60: Total Hard Costs | CQ60: =SUM(CQ47:CQ59) -> 0 | CR60: =SUM(CR47:CR59) -> 0 | CS60: =SUM(CS47:CS59) -> 0 | CU60: Total Hard Costs | DA60: =SUM(DA47:DA59) -> 0 | DB60: =SUM(DB47:DB59) -> 0 | DC60: =SUM(DC47:DC59) -> 0
A62: Fees | I62: Fees | S62: Fees | AC62: Fees | AM62: Fees | AW62: Fees | BG62: Fees | BQ62: Fees | CA62: Fees | CK62: Fees | CU62: Fees
A63: Developer Fee | D63: =IFERROR(E63/(E108-E106),"") -> 0 | E63: =SUM(O63,Y63,AI63,AS63,BC63,BM63,BW63,CG63,CQ63,DA63) -> 0 | F63: =IFERROR(E63/$C$9,"") -> 0 | G63: =IFERROR(E63/$C$10,"") -> 0 | I63: Developer Fee | N63: =IFERROR(O63/(O108-O106),"") -> 0 | P63: =IFERROR(O63/K$9,"") -> 0 | Q63: =IFERROR(O63/K$10,"") -> 0 | S63: Developer Fee | X63: =IFERROR(Y63/(Y108-Y106),"") ->  | Z63: =IFERROR(Y63/U$9,"") -> 0 | AA63: =IFERROR(Y63/U$10,"") -> 0 | AC63: Developer Fee | AH63: =IFERROR(AI63/(AI108-AI106),"") ->  | AJ63: =IFERROR(AI63/AE$9,"") -> 0 | AK63: =IFERROR(AI63/AE$10,"") -> 0 | AM63: Developer Fee | AR63: =IFERROR(AS63/(AS108-AS106),"") ->  | AT63: =IFERROR(AS63/AO$9,"") ->  | AU63: =IFERROR(AS63/AO$10,"") ->  | AW63: Developer Fee | BB63: =IFERROR(BC63/(BC108-BC106),"") ->  | BD63: =IFERROR(BC63/AY$9,"") ->  | BE63: =IFERROR(BC63/AY$10,"") ->  | BG63: Developer Fee | BL63: =IFERROR(BM63/(BM108-BM106),"") ->  | BN63: =IFERROR(BM63/BI$9,"") ->  | BO63: =IFERROR(BM63/BI$10,"") ->  | BQ63: Developer Fee | BV63: =IFERROR(BW63/(BW108-BW106),"") ->  | BX63: =IFERROR(BW63/BS$9,"") ->  | BY63: =IFERROR(BW63/BS$10,"") ->  | CA63: Developer Fee | CF63: =IFERROR(CG63/(CG108-CG106),"") ->  | CH63: =IFERROR(CG63/CC$9,"") ->  | CI63: =IFERROR(CG63/CC$10,"") ->  | CK63: Developer Fee | CP63: =IFERROR(CQ63/(CQ108-CQ106),"") ->  | CR63: =IFERROR(CQ63/CM$9,"") ->  | CS63: =IFERROR(CQ63/CM$10,"") ->  | CU63: Developer Fee | CZ63: =IFERROR(DA63/(DA108-DA106),"") ->  | DB63: =IFERROR(DA63/CW$9,"") ->  | DC63: =IFERROR(DA63/CW$10,"") -> 
A64: Architectural Fee (Design & Admin) | E64: 0 | F64: =IFERROR(E64/$C$9,"") -> 0 | G64: 0 | I64: Architectural Fee (Design & Admin) | P64: 0 | Q64: 0 | S64: Architectural Fee (Design & Admin) | Z64: 0 | AA64: 0 | AC64: Architectural Fee (Design & Admin) | AJ64: 0 | AK64: 0 | AM64: Architectural Fee (Design & Admin) | AW64: Architectural Fee (Design & Admin) | BG64: Architectural Fee (Design & Admin) | BQ64: Architectural Fee (Design & Admin) | CA64: Architectural Fee (Design & Admin) | CK64: Architectural Fee (Design & Admin) | CU64: Architectural Fee (Design & Admin)
A65: Legal | E65: 0 | F65: 0 | G65: 0 | I65: Legal | P65: 0 | Q65: 0 | S65: Legal | Z65: 0 | AA65: 0 | AC65: Legal | AJ65: 0 | AK65: 0 | AM65: Legal | AW65: Legal | BG65: Legal | BQ65: Legal | CA65: Legal | CK65: Legal | CU65: Legal
A66: Civil Engineering & Survey | E66: 0 | F66: 0 | G66: 0 | I66: Civil Engineering & Survey | P66: 0 | Q66: 0 | S66: Civil Engineering & Survey | Z66: 0 | AA66: 0 | AC66: Civil Engineering & Survey | AJ66: 0 | AK66: 0 | AM66: Civil Engineering & Survey | AW66: Civil Engineering & Survey | BG66: Civil Engineering & Survey | BQ66: Civil Engineering & Survey | CA66: Civil Engineering & Survey | CK66: Civil Engineering & Survey | CU66: Civil Engineering & Survey
A67: Design & Permitting (% of const exp) | D67: =IFERROR((E66)/SUM(E47:E54),"") ->  | E67: 100000 | F67: 16666.66667 | G67: 8.771929825 | I67: Design & Permitting (% of const exp) | N67: =IFERROR((O67)/SUM(O47:O54),"") ->  | O67: 100000 | P67: 50000 | Q67: 22.72727273 | S67: Design & Permitting (% of const exp) | X67: =IFERROR((Y67)/SUM(Y47:Y54),"") ->  | Z67: 0 | AA67: 0 | AC67: Design & Permitting (% of const exp) | AH67: =IFERROR((AI67)/SUM(AI47:AI54),"") ->  | AJ67: 0 | AK67: 0 | AM67: Design & Permitting (% of const exp) | AR67: =IFERROR((AS67)/SUM(AS47:AS54),"") ->  | AW67: Design & Permitting (% of const exp) | BB67: =IFERROR((BC67)/SUM(BC47:BC54),"") ->  | BG67: Design & Permitting (% of const exp) | BL67: =IFERROR((BM67)/SUM(BM47:BM54),"") ->  | BQ67: Design & Permitting (% of const exp) | BV67: =IFERROR((BW67)/SUM(BW47:BW54),"") ->  | CA67: Design & Permitting (% of const exp) | CF67: =IFERROR((CG67)/SUM(CG47:CG54),"") ->  | CK67: Design & Permitting (% of const exp) | CP67: =IFERROR((CQ67)/SUM(CQ47:CQ54),"") ->  | CU67: Design & Permitting (% of const exp) | CZ67: =IFERROR((DA67)/SUM(DA47:DA54),"") -> 
A68: Soils/Structural Report | E68: 0 | F68: 0 | G68: 0 | I68: Soils/Structural Report | P68: 0 | Q68: 0 | S68: Soils/Structural Report | Z68: 0 | AA68: 0 | AC68: Soils/Structural Report | AJ68: 0 | AK68: 0 | AM68: Soils/Structural Report | AW68: Soils/Structural Report | BG68: Soils/Structural Report | BQ68: Soils/Structural Report | CA68: Soils/Structural Report | CK68: Soils/Structural Report | CU68: Soils/Structural Report
A69: Environmental Audit (Hazard Assessment) | E69: 0 | F69: 0 | G69: 0 | I69: Environmental Audit (Hazard Assessment) | P69: 0 | Q69: 0 | S69: Environmental Audit (Hazard Assessment) | Z69: 0 | AA69: 0 | AC69: Environmental Audit (Hazard Assessment) | AJ69: 0 | AK69: 0 | AM69: Environmental Audit (Hazard Assessment) | AW69: Environmental Audit (Hazard Assessment) | BG69: Environmental Audit (Hazard Assessment) | BQ69: Environmental Audit (Hazard Assessment) | CA69: Environmental Audit (Hazard Assessment) | CK69: Environmental Audit (Hazard Assessment) | CU69: Environmental Audit (Hazard Assessment)
A70: Energy & Green Audits/Consulting | E70: 0 | F70: 0 | G70: 0 | I70: Energy & Green Audits/Consulting | P70: 0 | Q70: 0 | S70: Energy & Green Audits/Consulting | Z70: 0 | AA70: 0 | AC70: Energy & Green Audits/Consulting | AJ70: 0 | AK70: 0 | AM70: Energy & Green Audits/Consulting | AW70: Energy & Green Audits/Consulting | BG70: Energy & Green Audits/Consulting | BQ70: Energy & Green Audits/Consulting | CA70: Energy & Green Audits/Consulting | CK70: Energy & Green Audits/Consulting | CU70: Energy & Green Audits/Consulting
A71: Capital Needs Assessment | E71: 0 | F71: 0 | G71: 0 | I71: Capital Needs Assessment | P71: 0 | Q71: 0 | S71: Capital Needs Assessment | Z71: 0 | AA71: 0 | AC71: Capital Needs Assessment | AJ71: 0 | AK71: 0 | AM71: Capital Needs Assessment | AW71: Capital Needs Assessment | BG71: Capital Needs Assessment | BQ71: Capital Needs Assessment | CA71: Capital Needs Assessment | CK71: Capital Needs Assessment | CU71: Capital Needs Assessment
A72: Appraisal | E72: 0 | F72: 0 | G72: 0 | I72: Appraisal | P72: 0 | Q72: 0 | S72: Appraisal | Z72: 0 | AA72: 0 | AC72: Appraisal | AJ72: 0 | AK72: 0 | AM72: Appraisal | AW72: Appraisal | BG72: Appraisal | BQ72: Appraisal | CA72: Appraisal | CK72: Appraisal | CU72: Appraisal
A73: Market Study | E73: 0 | F73: 0 | G73: 0 | I73: =$A73 -> Market Study | P73: 0 | Q73: 0 | S73: =$A73 -> Market Study | Z73: 0 | AA73: 0 | AC73: =$A73 -> Market Study | AJ73: 0 | AK73: 0 | AM73: =$A73 -> Market Study | AW73: =$A73 -> Market Study | BG73: =$A73 -> Market Study | BQ73: =$A73 -> Market Study | CA73: =$A73 -> Market Study | CK73: =$A73 -> Market Study | CU73: =$A73 -> Market Study
A74: Cost Certification | E74: 0 | F74: 0 | G74: 0 | I74: Cost Certification | P74: 0 | Q74: 0 | S74: Cost Certification | Z74: 0 | AA74: 0 | AC74: Cost Certification | AJ74: 0 | AK74: 0 | AM74: Cost Certification | AW74: Cost Certification | BG74: Cost Certification | BQ74: Cost Certification | CA74: Cost Certification | CK74: Cost Certification | CU74: Cost Certification
A75: Other: | E75: 0 | F75: 0 | G75: 0 | I75: Other: | P75: 0 | Q75: 0 | S75: Other: | Z75: 0 | AA75: 0 | AC75: Other: | AJ75: 0 | AK75: 0 | AM75: Other: | AW75: Other: | BG75: Other: | BQ75: Other: | CA75: Other: | CK75: Other: | CU75: Other:
A76: Other: | E76: 0 | F76: 0 | G76: 0 | I76: Other: | P76: 0 | Q76: 0 | S76: Other: | Z76: 0 | AA76: 0 | AC76: Other: | AJ76: 0 | AK76: 0 | AM76: Other: | AW76: Other: | BG76: Other: | BQ76: Other: | CA76: Other: | CK76: Other: | CU76: Other:
A77: Total Fees | E77: =SUM(E63:E76) -> 100000 | F77: =SUM(F63:F76) -> 16666.66667 | G77: =SUM(G63:G76) -> 8.771929825 | I77: Total Fees | O77: =SUM(O63:O76) -> 100000 | P77: =SUM(P63:P76) -> 50000 | Q77: 22.72727273 | S77: Total Fees | Y77: =SUM(Y63:Y76) -> 0 | Z77: =SUM(Z63:Z76) -> 0 | AA77: 0 | AC77: Total Fees | AI77: =SUM(AI63:AI76) -> 0 | AJ77: =SUM(AJ63:AJ76) -> 0 | AK77: 0 | AM77: Total Fees | AS77: =SUM(AS63:AS76) -> 0 | AT77: =SUM(AT63:AT76) -> 0 | AU77: 0 | AW77: Total Fees | BC77: =SUM(BC63:BC76) -> 0 | BD77: =SUM(BD63:BD76) -> 0 | BE77: 0 | BG77: Total Fees | BM77: =SUM(BM63:BM76) -> 0 | BN77: =SUM(BN63:BN76) -> 0 | BO77: 0 | BQ77: Total Fees | BW77: =SUM(BW63:BW76) -> 0 | BX77: =SUM(BX63:BX76) -> 0 | BY77: 0 | CA77: Total Fees | CG77: =SUM(CG63:CG76) -> 0 | CH77: =SUM(CH63:CH76) -> 0 | CI77: 0 | CK77: Total Fees | CQ77: =SUM(CQ63:CQ76) -> 0 | CR77: =SUM(CR63:CR76) -> 0 | CS77: 0 | CU77: Total Fees | DA77: =SUM(DA63:DA76) -> 0 | DB77: =SUM(DB63:DB76) -> 0 | DC77: 0
A79: Miscellaneous Development Expenses | I79: Miscellaneous Development Expenses | S79: Miscellaneous Development Expenses | AC79: Miscellaneous Development Expenses | AM79: Miscellaneous Development Expenses | AW79: Miscellaneous Development Expenses | BG79: Miscellaneous Development Expenses | BQ79: Miscellaneous Development Expenses | CA79: Miscellaneous Development Expenses | CK79: Miscellaneous Development Expenses | CU79: Miscellaneous Development Expenses
A80: Utility Tap, Hook Up & Municipal Fees | E80: =SUM(O80,Y80,AI80,AS80,BC80,BM80,BW80,CG80,CQ80,DA80) -> 0 | F80: =IFERROR(E80/$C$9,"") -> 0 | G80: =IFERROR(E80/$C$10,"") -> 0 | I80: Utility Tap, Hook Up & Municipal Fees | P80: =IFERROR(O80/K$9,"") -> 0 | Q80: =IFERROR(O80/K$10,"") -> 0 | S80: Utility Tap, Hook Up & Municipal Fees | Z80: =IFERROR(Y80/U$9,"") -> 0 | AA80: =IFERROR(Y80/U$10,"") -> 0 | AC80: Utility Tap, Hook Up & Municipal Fees | AJ80: =IFERROR(AI80/AE$9,"") -> 0 | AK80: =IFERROR(AI80/AE$10,"") -> 0 | AM80: Utility Tap, Hook Up & Municipal Fees | AT80: =IFERROR(AS80/AO$9,"") ->  | AU80: =IFERROR(AS80/AO$10,"") ->  | AW80: Utility Tap, Hook Up & Municipal Fees | BD80: =IFERROR(BC80/AY$9,"") ->  | BE80: =IFERROR(BC80/AY$10,"") ->  | BG80: Utility Tap, Hook Up & Municipal Fees | BN80: =IFERROR(BM80/BI$9,"") ->  | BO80: =IFERROR(BM80/BI$10,"") ->  | BQ80: Utility Tap, Hook Up & Municipal Fees | BX80: =IFERROR(BW80/BS$9,"") ->  | BY80: =IFERROR(BW80/BS$10,"") ->  | CA80: Utility Tap, Hook Up & Municipal Fees | CH80: =IFERROR(CG80/CC$9,"") ->  | CI80: =IFERROR(CG80/CC$10,"") ->  | CK80: Utility Tap, Hook Up & Municipal Fees | CR80: =IFERROR(CQ80/CM$9,"") ->  | CS80: =IFERROR(CQ80/CM$10,"") ->  | CU80: Utility Tap, Hook Up & Municipal Fees | DB80: =IFERROR(DA80/CW$9,"") ->  | DC80: =IFERROR(DA80/CW$10,"") -> 
A81: Other: | E81: 0 | F81: 0 | G81: 0 | I81: Other: | P81: 0 | Q81: 0 | S81: Other: | Z81: 0 | AA81: 0 | AC81: Other: | AJ81: 0 | AK81: 0 | AM81: Other: | AW81: Other: | BG81: Other: | BQ81: Other: | CA81: Other: | CK81: Other: | CU81: Other:
A82: Other: | E82: 0 | F82: 0 | G82: 0 | I82: Other: | P82: 0 | Q82: 0 | S82: Other: | Z82: 0 | AA82: 0 | AC82: Other: | AJ82: 0 | AK82: 0 | AM82: Other: | AW82: Other: | BG82: Other: | BQ82: Other: | CA82: Other: | CK82: Other: | CU82: Other:
A83: Total Miscellaneous Development Expense | E83: =SUM(E80:E82) -> 0 | F83: =SUM(F80:F82) -> 0 | G83: =SUM(G80:G82) -> 0 | I83: Total Miscellaneous Development Expense | O83: =SUM(O80:O82) -> 0 | P83: =SUM(P80:P82) -> 0 | Q83: =SUM(Q80:Q82) -> 0 | S83: Total Miscellaneous Development Expense | Y83: =SUM(Y80:Y82) -> 0 | Z83: =SUM(Z80:Z82) -> 0 | AA83: =SUM(AA80:AA82) -> 0 | AC83: Total Miscellaneous Development Expense | AI83: =SUM(AI80:AI82) -> 0 | AJ83: =SUM(AJ80:AJ82) -> 0 | AK83: =SUM(AK80:AK82) -> 0 | AM83: Total Miscellaneous Development Expense | AS83: =SUM(AS80:AS82) -> 0 | AT83: =SUM(AT80:AT82) -> 0 | AU83: =SUM(AU80:AU82) -> 0 | AW83: Total Miscellaneous Development Expense | BC83: =SUM(BC80:BC82) -> 0 | BD83: =SUM(BD80:BD82) -> 0 | BE83: =SUM(BE80:BE82) -> 0 | BG83: Total Miscellaneous Development Expense | BM83: =SUM(BM80:BM82) -> 0 | BN83: =SUM(BN80:BN82) -> 0 | BO83: =SUM(BO80:BO82) -> 0 | BQ83: Total Miscellaneous Development Expense | BW83: =SUM(BW80:BW82) -> 0 | BX83: =SUM(BX80:BX82) -> 0 | BY83: =SUM(BY80:BY82) -> 0 | CA83: Total Miscellaneous Development Expense | CG83: =SUM(CG80:CG82) -> 0 | CH83: =SUM(CH80:CH82) -> 0 | CI83: =SUM(CI80:CI82) -> 0 | CK83: Total Miscellaneous Development Expense | CQ83: =SUM(CQ80:CQ82) -> 0 | CR83: =SUM(CR80:CR82) -> 0 | CS83: =SUM(CS80:CS82) -> 0 | CU83: Total Miscellaneous Development Expense | DA83: =SUM(DA80:DA82) -> 0 | DB83: =SUM(DB80:DB82) -> 0 | DC83: =SUM(DC80:DC82) -> 0
A85: Construction & Permanent Loan Financing Charges | I85: Construction & Permanent Loan Financing Charges | S85: Construction & Permanent Loan Financing Charges | AC85: Construction & Permanent Loan Financing Charges | AM85: Construction & Permanent Loan Financing Charges | AW85: Construction & Permanent Loan Financing Charges | BG85: Construction & Permanent Loan Financing Charges | BQ85: Construction & Permanent Loan Financing Charges | CA85: Construction & Permanent Loan Financing Charges | CK85: Construction & Permanent Loan Financing Charges | CU85: Construction & Permanent Loan Financing Charges
A86: Construction Loan Interest | E86: =SUM(O86,Y86,AI86,AS86,BC86,BM86,BW86,CG86,CQ86,DA86) -> 0 | F86: =IFERROR(E86/$C$9,"") -> 0 | G86: =IFERROR(E86/$C$10,"") -> 0 | I86: Construction Loan Interest | L86: (const period: | N86: months) | P86: =IFERROR(O86/K$9,"") -> 0 | Q86: =IFERROR(O86/K$10,"") -> 0 | S86: Construction Loan Interest | V86: (const period: | X86: months) | Z86: =IFERROR(Y86/U$9,"") -> 0 | AA86: =IFERROR(Y86/U$10,"") -> 0 | AC86: Construction Loan Interest | AF86: (const period: | AH86: months) | AJ86: =IFERROR(AI86/AE$9,"") -> 0 | AK86: =IFERROR(AI86/AE$10,"") -> 0 | AM86: Construction Loan Interest | AP86: (const period: | AR86: months) | AT86: =IFERROR(AS86/AO$9,"") ->  | AU86: =IFERROR(AS86/AO$10,"") ->  | AW86: Construction Loan Interest | AZ86: (const period: | BB86: months) | BD86: =IFERROR(BC86/AY$9,"") ->  | BE86: =IFERROR(BC86/AY$10,"") ->  | BG86: Construction Loan Interest | BJ86: (const period: | BL86: months) | BN86: =IFERROR(BM86/BI$9,"") ->  | BO86: =IFERROR(BM86/BI$10,"") ->  | BQ86: Construction Loan Interest | BT86: (const period: | BV86: months) | BX86: =IFERROR(BW86/BS$9,"") ->  | BY86: =IFERROR(BW86/BS$10,"") ->  | CA86: Construction Loan Interest | CD86: (const period: | CF86: months) | CH86: =IFERROR(CG86/CC$9,"") ->  | CI86: =IFERROR(CG86/CC$10,"") ->  | CK86: Construction Loan Interest | CN86: (const period: | CP86: months) | CR86: =IFERROR(CQ86/CM$9,"") ->  | CS86: =IFERROR(CQ86/CM$10,"") ->  | CU86: Construction Loan Interest | CX86: (const period: | CZ86: months) | DB86: =IFERROR(DA86/CW$9,"") ->  | DC86: =IFERROR(DA86/CW$10,"") -> 
A87: Construction Loan Fees (Origination, Credit Enhancement, Application) | E87: 0 | F87: 0 | G87: 0 | I87: Construction Loan Fees (Origination, Credit Enhancement, Application) | P87: 0 | Q87: 0 | S87: Construction Loan Fees (Origination, Credit Enhancement, Application) | Z87: 0 | AA87: 0 | AC87: Construction Loan Fees (Origination, Credit Enhancement, Application) | AJ87: 0 | AK87: 0 | AM87: Construction Loan Fees (Origination, Credit Enhancement, Application) | AW87: Construction Loan Fees (Origination, Credit Enhancement, Application) | BG87: Construction Loan Fees (Origination, Credit Enhancement, Application) | BQ87: Construction Loan Fees (Origination, Credit Enhancement, Application) | CA87: Construction Loan Fees (Origination, Credit Enhancement, Application) | CK87: Construction Loan Fees (Origination, Credit Enhancement, Application) | CU87: Construction Loan Fees (Origination, Credit Enhancement, Application)
A88: Taxes During Construction | E88: 0 | F88: 0 | G88: 0 | I88: Taxes During Construction | P88: 0 | Q88: 0 | S88: Taxes During Construction | Z88: 0 | AA88: 0 | AC88: Taxes During Construction | AJ88: 0 | AK88: 0 | AM88: Taxes During Construction | AW88: Taxes During Construction | BG88: Taxes During Construction | BQ88: Taxes During Construction | CA88: Taxes During Construction | CK88: Taxes During Construction | CU88: Taxes During Construction
A89: Insurance During Construction | E89: 0 | F89: 0 | G89: 0 | I89: Insurance During Construction | P89: 0 | Q89: 0 | S89: Insurance During Construction | Z89: 0 | AA89: 0 | AC89: Insurance During Construction | AJ89: 0 | AK89: 0 | AM89: Insurance During Construction | AW89: Insurance During Construction | BG89: Insurance During Construction | BQ89: Insurance During Construction | CA89: Insurance During Construction | CK89: Insurance During Construction | CU89: Insurance During Construction
A90: Title Insurance | E90: 0 | F90: 0 | G90: 0 | I90: Title Insurance | P90: 0 | Q90: 0 | S90: Title Insurance | Z90: 0 | AA90: 0 | AC90: Title Insurance | AJ90: 0 | AK90: 0 | AM90: Title Insurance | AW90: Title Insurance | BG90: Title Insurance | BQ90: Title Insurance | CA90: Title Insurance | CK90: Title Insurance | CU90: Title Insurance
A91: Recording | E91: 0 | F91: 0 | G91: 0 | I91: Recording | P91: 0 | Q91: 0 | S91: Recording | Z91: 0 | AA91: 0 | AC91: Recording | AJ91: 0 | AK91: 0 | AM91: Recording | AW91: Recording | BG91: Recording | BQ91: Recording | CA91: Recording | CK91: Recording | CU91: Recording
A92: Construction Monitoring Fee | E92: 0 | F92: 0 | G92: 0 | I92: Construction Monitoring Fee | P92: 0 | Q92: 0 | S92: Construction Monitoring Fee | Z92: 0 | AA92: 0 | AC92: Construction Monitoring Fee | AJ92: 0 | AK92: 0 | AM92: Construction Monitoring Fee | AW92: Construction Monitoring Fee | BG92: Construction Monitoring Fee | BQ92: Construction Monitoring Fee | CA92: Construction Monitoring Fee | CK92: Construction Monitoring Fee | CU92: Construction Monitoring Fee
A93: Permanent Loan Fees (Origination, Reservation, Credit Enhancement) | E93: 0 | F93: 0 | G93: 0 | I93: Permanent Loan Fees (Origination, Reservation, Credit Enhancement) | P93: 0 | Q93: 0 | S93: Permanent Loan Fees (Origination, Reservation, Credit Enhancement) | Z93: 0 | AA93: 0 | AC93: Permanent Loan Fees (Origination, Reservation, Credit Enhancement) | AJ93: 0 | AK93: 0 | AM93: Permanent Loan Fees (Origination, Reservation, Credit Enhancement) | AW93: Permanent Loan Fees (Origination, Reservation, Credit Enhancement) | BG93: Permanent Loan Fees (Origination, Reservation, Credit Enhancement) | BQ93: Permanent Loan Fees (Origination, Reservation, Credit Enhancement) | CA93: Permanent Loan Fees (Origination, Reservation, Credit Enhancement) | CK93: Permanent Loan Fees (Origination, Reservation, Credit Enhancement) | CU93: Permanent Loan Fees (Origination, Reservation, Credit Enhancement)
A94: Other: | E94: 0 | F94: 0 | G94: 0 | I94: Other: | P94: 0 | Q94: 0 | S94: Other: | Z94: 0 | AA94: 0 | AC94: Other: | AJ94: 0 | AK94: 0 | AM94: Other: | AW94: Other: | BG94: Other: | BQ94: Other: | CA94: Other: | CK94: Other: | CU94: Other:
A95: Other: | E95: 0 | F95: 0 | G95: 0 | I95: Other: | P95: 0 | Q95: 0 | S95: Other: | Z95: 0 | AA95: 0 | AC95: Other: | AJ95: 0 | AK95: 0 | AM95: Other: | AW95: Other: | BG95: Other: | BQ95: Other: | CA95: Other: | CK95: Other: | CU95: Other:
A96: Soft Cost Contingency (% of soft costs excl Dev Fee) | D96: =IFERROR(E96/(SUM(E64:E76)+E83+SUM(E86:E95)),"") -> 0 | E96: 0 | F96: 0 | G96: 0 | I96: Soft Cost Contingency (% of soft costs excl Dev Fee) | N96: =IFERROR(O96/(SUM(O64:O76)+O83+SUM(O86:O95)),"") -> 0 | P96: 0 | Q96: 0 | S96: Soft Cost Contingency (% of soft costs excl Dev Fee) | X96: =IFERROR(Y96/(SUM(Y64:Y76)+Y83+SUM(Y86:Y95)),"") ->  | Z96: 0 | AA96: 0 | AC96: Soft Cost Contingency (% of soft costs excl Dev Fee) | AH96: =IFERROR(AI96/(SUM(AI64:AI76)+AI83+SUM(AI86:AI95)),"") ->  | AJ96: 0 | AK96: 0 | AM96: Soft Cost Contingency (% of soft costs excl Dev Fee) | AR96: =IFERROR(AS96/(SUM(AS64:AS76)+AS83+SUM(AS86:AS95)),"") ->  | AW96: Soft Cost Contingency (% of soft costs excl Dev Fee) | BB96: =IFERROR(BC96/(SUM(BC64:BC76)+BC83+SUM(BC86:BC95)),"") ->  | BG96: Soft Cost Contingency (% of soft costs excl Dev Fee) | BL96: =IFERROR(BM96/(SUM(BM64:BM76)+BM83+SUM(BM86:BM95)),"") ->  | BQ96: Soft Cost Contingency (% of soft costs excl Dev Fee) | BV96: =IFERROR(BW96/(SUM(BW64:BW76)+BW83+SUM(BW86:BW95)),"") ->  | CA96: Soft Cost Contingency (% of soft costs excl Dev Fee) | CF96: =IFERROR(CG96/(SUM(CG64:CG76)+CG83+SUM(CG86:CG95)),"") ->  | CK96: Soft Cost Contingency (% of soft costs excl Dev Fee) | CP96: =IFERROR(CQ96/(SUM(CQ64:CQ76)+CQ83+SUM(CQ86:CQ95)),"") ->  | CU96: Soft Cost Contingency (% of soft costs excl Dev Fee) | CZ96: =IFERROR(DA96/(SUM(DA64:DA76)+DA83+SUM(DA86:DA95)),"") -> 
A97: Total Construction & Financing Charges: | E97: =SUM(E86:E96) -> 0 | F97: =SUM(F86:F96) -> 0 | G97: =SUM(G86:G96) -> 0 | I97: Total Construction & Financing Charges: | O97: =SUM(O86:O96) -> 0 | P97: =SUM(P86:P96) -> 0 | Q97: =SUM(Q86:Q96) -> 0 | S97: Total Construction & Financing Charges: | Y97: =SUM(Y86:Y96) -> 0 | Z97: =SUM(Z86:Z96) -> 0 | AA97: =SUM(AA86:AA96) -> 0 | AC97: Total Construction & Financing Charges: | AI97: =SUM(AI86:AI96) -> 0 | AJ97: =SUM(AJ86:AJ96) -> 0 | AK97: =SUM(AK86:AK96) -> 0 | AM97: Total Construction & Financing Charges: | AS97: =SUM(AS86:AS96) -> 0 | AT97: =SUM(AT86:AT96) -> 0 | AU97: =SUM(AU86:AU96) -> 0 | AW97: Total Construction & Financing Charges: | BC97: =SUM(BC86:BC96) -> 0 | BD97: =SUM(BD86:BD96) -> 0 | BE97: =SUM(BE86:BE96) -> 0 | BG97: Total Construction & Financing Charges: | BM97: =SUM(BM86:BM96) -> 0 | BN97: =SUM(BN86:BN96) -> 0 | BO97: =SUM(BO86:BO96) -> 0 | BQ97: Total Construction & Financing Charges: | BW97: =SUM(BW86:BW96) -> 0 | BX97: =SUM(BX86:BX96) -> 0 | BY97: =SUM(BY86:BY96) -> 0 | CA97: Total Construction & Financing Charges: | CG97: =SUM(CG86:CG96) -> 0 | CH97: =SUM(CH86:CH96) -> 0 | CI97: =SUM(CI86:CI96) -> 0 | CK97: Total Construction & Financing Charges: | CQ97: =SUM(CQ86:CQ96) -> 0 | CR97: =SUM(CR86:CR96) -> 0 | CS97: =SUM(CS86:CS96) -> 0 | CU97: Total Construction & Financing Charges: | DA97: =SUM(DA86:DA96) -> 0 | DB97: =SUM(DB86:DB96) -> 0 | DC97: =SUM(DC86:DC96) -> 0
A99: Total Development Costs | E99: =SUM(E97,E83,E77,E60,E44) -> 100000 | F99: =SUM(F97,F83,F77,F60,F44) -> 16666.66667 | G99: 8.771929825 | I99: Total Development Costs | O99: =SUM(O97,O83,O77,O60,O44) -> 100000 | P99: =SUM(P97,P83,P77,P60,P44) -> 50000 | Q99: 22.72727273 | S99: Total Development Costs | Y99: =SUM(Y97,Y83,Y77,Y60,Y44) -> 0 | Z99: =SUM(Z97,Z83,Z77,Z60,Z44) -> 0 | AA99: 0 | AC99: Total Development Costs | AI99: =SUM(AI97,AI83,AI77,AI60,AI44) -> 0 | AJ99: =SUM(AJ97,AJ83,AJ77,AJ60,AJ44) -> 0 | AK99: 0 | AM99: Total Development Costs | AS99: =SUM(AS97,AS83,AS77,AS60,AS44) -> 0 | AT99: =SUM(AT97,AT83,AT77,AT60,AT44) -> 0 | AU99: 0 | AW99: Total Development Costs | BC99: =SUM(BC97,BC83,BC77,BC60,BC44) -> 0 | BD99: =SUM(BD97,BD83,BD77,BD60,BD44) -> 0 | BE99: 0 | BG99: Total Development Costs | BM99: =SUM(BM97,BM83,BM77,BM60,BM44) -> 0 | BN99: =SUM(BN97,BN83,BN77,BN60,BN44) -> 0 | BO99: 0 | BQ99: Total Development Costs | BW99: =SUM(BW97,BW83,BW77,BW60,BW44) -> 0 | BX99: =SUM(BX97,BX83,BX77,BX60,BX44) -> 0 | BY99: 0 | CA99: Total Development Costs | CG99: =SUM(CG97,CG83,CG77,CG60,CG44) -> 0 | CH99: =SUM(CH97,CH83,CH77,CH60,CH44) -> 0 | CI99: 0 | CK99: Total Development Costs | CQ99: =SUM(CQ97,CQ83,CQ77,CQ60,CQ44) -> 0 | CR99: =SUM(CR97,CR83,CR77,CR60,CR44) -> 0 | CS99: 0 | CU99: Total Development Costs | DA99: =SUM(DA97,DA83,DA77,DA60,DA44) -> 0 | DB99: =SUM(DB97,DB83,DB77,DB60,DB44) -> 0 | DC99: 0
A101: Transaction Fees | I101: Transaction Fees | S101: Transaction Fees | AC101: Transaction Fees | AM101: Transaction Fees | AW101: Transaction Fees | BG101: Transaction Fees | BQ101: Transaction Fees | CA101: Transaction Fees | CK101: Transaction Fees | CU101: Transaction Fees
A102: Real Estate Agent Fee | E102: =SUM(O102,Y102,AI102,AS102,BC102,BM102,BW102,CG102,CQ102,DA102) -> 0 | F102: =IFERROR(E102/$C$9,"") -> 0 | G102: =IFERROR(E102/$C$10,"") -> 0 | I102: Real Estate Agent Fee | P102: =IFERROR(O102/K$9,"") -> 0 | Q102: =IFERROR(O102/K$10,"") -> 0 | S102: Real Estate Agent Fee | Z102: =IFERROR(Y102/U$9,"") -> 0 | AA102: =IFERROR(Y102/U$10,"") -> 0 | AC102: Real Estate Agent Fee | AJ102: =IFERROR(AI102/AE$9,"") -> 0 | AK102: =IFERROR(AI102/AE$10,"") -> 0 | AM102: Real Estate Agent Fee | AT102: =IFERROR(AS102/AO$9,"") ->  | AU102: =IFERROR(AS102/AO$10,"") ->  | AW102: Real Estate Agent Fee | BD102: =IFERROR(BC102/AY$9,"") ->  | BE102: =IFERROR(BC102/AY$10,"") ->  | BG102: Real Estate Agent Fee | BN102: =IFERROR(BM102/BI$9,"") ->  | BO102: =IFERROR(BM102/BI$10,"") ->  | BQ102: Real Estate Agent Fee | BX102: =IFERROR(BW102/BS$9,"") ->  | BY102: =IFERROR(BW102/BS$10,"") ->  | CA102: Real Estate Agent Fee | CH102: =IFERROR(CG102/CC$9,"") ->  | CI102: =IFERROR(CG102/CC$10,"") ->  | CK102: Real Estate Agent Fee | CR102: =IFERROR(CQ102/CM$9,"") ->  | CS102: =IFERROR(CQ102/CM$10,"") ->  | CU102: Real Estate Agent Fee | DB102: =IFERROR(DA102/CW$9,"") ->  | DC102: =IFERROR(DA102/CW$10,"") -> 
A103: Marketing Fee | E103: 0 | F103: 0 | G103: 0 | I103: Marketing Fee | P103: 0 | Q103: 0 | S103: Marketing Fee | Z103: 0 | AA103: 0 | AC103: Marketing Fee | AJ103: 0 | AK103: 0 | AM103: Marketing Fee | AW103: Marketing Fee | BG103: Marketing Fee | BQ103: Marketing Fee | CA103: Marketing Fee | CK103: Marketing Fee | CU103: Marketing Fee
A104: Other: | E104: 0 | F104: 0 | G104: 0 | I104: Other: | P104: 0 | Q104: 0 | S104: Other: | Z104: 0 | AA104: 0 | AC104: Other: | AJ104: 0 | AK104: 0 | AM104: Other: | AW104: Other: | BG104: Other: | BQ104: Other: | CA104: Other: | CK104: Other: | CU104: Other:
A105: Other: | E105: 0 | F105: 0 | G105: 0 | I105: Other: | P105: 0 | Q105: 0 | S105: Other: | Z105: 0 | AA105: 0 | AC105: Other: | AJ105: 0 | AK105: 0 | AM105: Other: | AW105: Other: | BG105: Other: | BQ105: Other: | CA105: Other: | CK105: Other: | CU105: Other:
A106: Total Transaction Fee | E106: =SUM(E102:E105) -> 0 | F106: =SUM(F102:F105) -> 0 | G106: =SUM(G102:G105) -> 0 | I106: Total Transaction Fee | O106: =SUM(O102:O105) -> 0 | P106: =SUM(P102:P105) -> 0 | Q106: 0 | S106: Total Transaction Fee | Y106: =SUM(Y102:Y105) -> 0 | Z106: =SUM(Z102:Z105) -> 0 | AA106: 0 | AC106: Total Transaction Fee | AI106: =SUM(AI102:AI105) -> 0 | AJ106: =SUM(AJ102:AJ105) -> 0 | AK106: 0 | AM106: Total Transaction Fee | AS106: =SUM(AS102:AS105) -> 0 | AT106: =SUM(AT102:AT105) -> 0 | AU106: 0 | AW106: Total Transaction Fee | BC106: =SUM(BC102:BC105) -> 0 | BD106: =SUM(BD102:BD105) -> 0 | BE106: 0 | BG106: Total Transaction Fee | BM106: =SUM(BM102:BM105) -> 0 | BN106: =SUM(BN102:BN105) -> 0 | BO106: 0 | BQ106: Total Transaction Fee | BW106: =SUM(BW102:BW105) -> 0 | BX106: =SUM(BX102:BX105) -> 0 | BY106: 0 | CA106: Total Transaction Fee | CG106: =SUM(CG102:CG105) -> 0 | CH106: =SUM(CH102:CH105) -> 0 | CI106: 0 | CK106: Total Transaction Fee | CQ106: =SUM(CQ102:CQ105) -> 0 | CR106: =SUM(CR102:CR105) -> 0 | CS106: 0 | CU106: Total Transaction Fee | DA106: =SUM(DA102:DA105) -> 0 | DB106: =SUM(DB102:DB105) -> 0 | DC106: 0
A108: Total Uses of Funds | E108: =SUM(E60,E77,E83,E97,E44,E106) -> 100000 | F108: =SUM(F60,F77,F83,F97,F44,F106) -> 16666.66667 | G108: 8.771929825 | I108: Total Uses of Funds | O108: =SUM(O60,O77,O83,O97,O44,O106) -> 100000 | P108: =SUM(P60,P77,P83,P97,P44,P106) -> 50000 | Q108: 22.72727273 | S108: Total Uses of Funds | Y108: =SUM(Y60,Y77,Y83,Y97,Y44,Y106) -> 0 | Z108: =SUM(Z60,Z77,Z83,Z97,Z44,Z106) -> 0 | AA108: 0 | AC108: Total Uses of Funds | AI108: =SUM(AI60,AI77,AI83,AI97,AI44,AI106) -> 0 | AJ108: =SUM(AJ60,AJ77,AJ83,AJ97,AJ44,AJ106) -> 0 | AK108: 0 | AM108: Total Uses of Funds | AS108: =SUM(AS60,AS77,AS83,AS97,AS44,AS106) -> 0 | AT108: =SUM(AT60,AT77,AT83,AT97,AT44,AT106) -> 0 | AU108: 0 | AW108: Total Uses of Funds | BC108: =SUM(BC60,BC77,BC83,BC97,BC44,BC106) -> 0 | BD108: =SUM(BD60,BD77,BD83,BD97,BD44,BD106) -> 0 | BE108: 0 | BG108: Total Uses of Funds | BM108: =SUM(BM60,BM77,BM83,BM97,BM44,BM106) -> 0 | BN108: =SUM(BN60,BN77,BN83,BN97,BN44,BN106) -> 0 | BO108: 0 | BQ108: Total Uses of Funds | BW108: =SUM(BW60,BW77,BW83,BW97,BW44,BW106) -> 0 | BX108: =SUM(BX60,BX77,BX83,BX97,BX44,BX106) -> 0 | BY108: 0 | CA108: Total Uses of Funds | CG108: =SUM(CG60,CG77,CG83,CG97,CG44,CG106) -> 0 | CH108: =SUM(CH60,CH77,CH83,CH97,CH44,CH106) -> 0 | CI108: 0 | CK108: Total Uses of Funds | CQ108: =SUM(CQ60,CQ77,CQ83,CQ97,CQ44,CQ106) -> 0 | CR108: =SUM(CR60,CR77,CR83,CR97,CR44,CR106) -> 0 | CS108: 0 | CU108: Total Uses of Funds | DA108: =SUM(DA60,DA77,DA83,DA97,DA44,DA106) -> 0 | DB108: =SUM(DB60,DB77,DB83,DB97,DB44,DB106) -> 0 | DC108: 0

Sheet Program Summary
A2: PROJECT NAME | B2: =[2]Instructions!$C$15 -> Project A
A3: DEVELOPER/SPONSOR | B3: =[2]Instructions!$C$16 -> Apex Developers
A5: For-Sale Program Summary
D7: p | E7: z | F7: aj | G7: at | H7: bd | I7: bn | J7: bx | K7: ch | L7: cr | M7: db
A8: Project Type | C8: Total or Average | D8: A | E8: B | F8: C | G8: D | H8: E | I8: F | J8: G | K8: H | L8: I | M8: J
A9: Project Type Description | B9: =[2]Program!K7 -> Project Type | D9: =IFERROR(INDEX(Program!$J$7:$N$17,MATCH('Program Summary'!D$8,Program!$J$7:$J$17,0),MATCH('Program Summary'!$B9,Program!$J$7:$N$7,0)),"") -> 2B 2ba, East Liberty | E9: =IFERROR(INDEX(Program!$J$7:$N$17,MATCH('Program Summary'!E$8,Program!$J$7:$J$17,0),MATCH('Program Summary'!$B9,Program!$J$7:$N$7,0)),"") -> 3B 2ba, East Liberty | F9: =IFERROR(INDEX(Program!$J$7:$N$17,MATCH('Program Summary'!F$8,Program!$J$7:$J$17,0),MATCH('Program Summary'!$B9,Program!$J$7:$N$7,0)),"") -> 2B 2ba, Larimer | G9: =IFERROR(INDEX(Program!$J$7:$N$17,MATCH('Program Summary'!G$8,Program!$J$7:$J$17,0),MATCH('Program Summary'!$B9,Program!$J$7:$N$7,0)),"") -> 0 | H9: =IFERROR(INDEX(Program!$J$7:$N$17,MATCH('Program Summary'!H$8,Program!$J$7:$J$17,0),MATCH('Program Summary'!$B9,Program!$J$7:$N$7,0)),"") -> 0 | I9: =IFERROR(INDEX(Program!$J$7:$N$17,MATCH('Program Summary'!I$8,Program!$J$7:$J$17,0),MATCH('Program Summary'!$B9,Program!$J$7:$N$7,0)),"") -> 0 | J9: =IFERROR(INDEX(Program!$J$7:$N$17,MATCH('Program Summary'!J$8,Program!$J$7:$J$17,0),MATCH('Program Summary'!$B9,Program!$J$7:$N$7,0)),"") -> 0 | K9: =IFERROR(INDEX(Program!$J$7:$N$17,MATCH('Program Summary'!K$8,Program!$J$7:$J$17,0),MATCH('Program Summary'!$B9,Program!$J$7:$N$7,0)),"") -> 0 | L9: =IFERROR(INDEX(Program!$J$7:$N$17,MATCH('Program Summary'!L$8,Program!$J$7:$J$17,0),MATCH('Program Summary'!$B9,Program!$J$7:$N$7,0)),"") -> 0 | M9: =IFERROR(INDEX(Program!$J$7:$N$17,MATCH('Program Summary'!M$8,Program!$J$7:$J$17,0),MATCH('Program Summary'!$B9,Program!$J$7:$N$7,0)),"") -> 0 | N9: =IFERROR(INDEX(Program!$J$7:$N$17,MATCH('Program Summary'!N$8,Program!$J$7:$J$17,0),MATCH('Program Summary'!$B9,Program!$J$7:$N$7,0)),"") ->  | O9: =IFERROR(INDEX(Program!$J$7:$N$17,MATCH('Program Summary'!O$8,Program!$J$7:$J$17,0),MATCH('Program Summary'!$B9,Program!$J$7:$N$7,0)),"") ->  | P9: =IFERROR(INDEX(Program!$J$7:$N$17,MATCH('Program Summary'!P$8,Program!$J$7:$J$17,0),MATCH('Program Summary'!$B9,Program!$J$7:$N$7,0)),"") ->  | Q9: =IFERROR(INDEX(Program!$J$7:$N$17,MATCH('Program Summary'!Q$8,Program!$J$7:$J$17,0),MATCH('Program Summary'!$B9,Program!$J$7:$N$7,0)),"") ->  | R9: =IFERROR(INDEX(Program!$J$7:$N$17,MATCH('Program Summary'!R$8,Program!$J$7:$J$17,0),MATCH('Program Summary'!$B9,Program!$J$7:$N$7,0)),"") ->  | S9: =IFERROR(INDEX(Program!$J$7:$N$17,MATCH('Program Summary'!S$8,Program!$J$7:$J$17,0),MATCH('Program Summary'!$B9,Program!$J$7:$N$7,0)),"") ->  | T9: =IFERROR(INDEX(Program!$J$7:$N$17,MATCH('Program Summary'!T$8,Program!$J$7:$J$17,0),MATCH('Program Summary'!$B9,Program!$J$7:$N$7,0)),"") ->  | U9: =IFERROR(INDEX(Program!$J$7:$N$17,MATCH('Program Summary'!U$8,Program!$J$7:$J$17,0),MATCH('Program Summary'!$B9,Program!$J$7:$N$7,0)),"") ->  | V9: =IFERROR(INDEX(Program!$J$7:$N$17,MATCH('Program Summary'!V$8,Program!$J$7:$J$17,0),MATCH('Program Summary'!$B9,Program!$J$7:$N$7,0)),"") ->  | W9: =IFERROR(INDEX(Program!$J$7:$N$17,MATCH('Program Summary'!W$8,Program!$J$7:$J$17,0),MATCH('Program Summary'!$B9,Program!$J$7:$N$7,0)),"") ->  | X9: =IFERROR(INDEX(Program!$J$7:$N$17,MATCH('Program Summary'!X$8,Program!$J$7:$J$17,0),MATCH('Program Summary'!$B9,Program!$J$7:$N$7,0)),"") ->  | Y9: =IFERROR(INDEX(Program!$J$7:$N$17,MATCH('Program Summary'!Y$8,Program!$J$7:$J$17,0),MATCH('Program Summary'!$B9,Program!$J$7:$N$7,0)),"") ->  | Z9: =IFERROR(INDEX(Program!$J$7:$N$17,MATCH('Program Summary'!Z$8,Program!$J$7:$J$17,0),MATCH('Program Summary'!$B9,Program!$J$7:$N$7,0)),"") ->  | AA9: =IFERROR(INDEX(Program!$J$7:$N$17,MATCH('Program Summary'!AA$8,Program!$J$7:$J$17,0),MATCH('Program Summary'!$B9,Program!$J$7:$N$7,0)),"") -> 
A10: # of Units of this Type | B10: =[2]Program!L7 -> Number of Projects | C10: =SUM(D10:M10) -> 5 | D10: =IFERROR(INDEX(Program!$J$7:$N$17,MATCH('Program Summary'!D$8,Program!$J$7:$J$17,0),MATCH('Program Summary'!$B10,Program!$J$7:$N$7,0)),"") -> 2 | E10: =IFERROR(INDEX(Program!$J$7:$N$17,MATCH('Program Summary'!E$8,Program!$J$7:$J$17,0),MATCH('Program Summary'!$B10,Program!$J$7:$N$7,0)),"") -> 1 | F10: =IFERROR(INDEX(Program!$J$7:$N$17,MATCH('Program Summary'!F$8,Program!$J$7:$J$17,0),MATCH('Program Summary'!$B10,Program!$J$7:$N$7,0)),"") -> 2 | G10: =IFERROR(INDEX(Program!$J$7:$N$17,MATCH('Program Summary'!G$8,Program!$J$7:$J$17,0),MATCH('Program Summary'!$B10,Program!$J$7:$N$7,0)),"") ->  | H10: =IFERROR(INDEX(Program!$J$7:$N$17,MATCH('Program Summary'!H$8,Program!$J$7:$J$17,0),MATCH('Program Summary'!$B10,Program!$J$7:$N$7,0)),"") ->  | I10: =IFERROR(INDEX(Program!$J$7:$N$17,MATCH('Program Summary'!I$8,Program!$J$7:$J$17,0),MATCH('Program Summary'!$B10,Program!$J$7:$N$7,0)),"") ->  | J10: =IFERROR(INDEX(Program!$J$7:$N$17,MATCH('Program Summary'!J$8,Program!$J$7:$J$17,0),MATCH('Program Summary'!$B10,Program!$J$7:$N$7,0)),"") ->  | K10: =IFERROR(INDEX(Program!$J$7:$N$17,MATCH('Program Summary'!K$8,Program!$J$7:$J$17,0),MATCH('Program Summary'!$B10,Program!$J$7:$N$7,0)),"") ->  | L10: =IFERROR(INDEX(Program!$J$7:$N$17,MATCH('Program Summary'!L$8,Program!$J$7:$J$17,0),MATCH('Program Summary'!$B10,Program!$J$7:$N$7,0)),"") ->  | M10: =IFERROR(INDEX(Program!$J$7:$N$17,MATCH('Program Summary'!M$8,Program!$J$7:$J$17,0),MATCH('Program Summary'!$B10,Program!$J$7:$N$7,0)),"") ->  | N10: =IFERROR(INDEX(Program!$J$7:$N$17,MATCH('Program Summary'!N$8,Program!$J$7:$J$17,0),MATCH('Program Summary'!$B10,Program!$J$7:$N$7,0)),"") ->  | O10: =IFERROR(INDEX(Program!$J$7:$N$17,MATCH('Program Summary'!O$8,Program!$J$7:$J$17,0),MATCH('Program Summary'!$B10,Program!$J$7:$N$7,0)),"") ->  | P10: =IFERROR(INDEX(Program!$J$7:$N$17,MATCH('Program Summary'!P$8,Program!$J$7:$J$17,0),MATCH('Program Summary'!$B10,Program!$J$7:$N$7,0)),"") ->  | Q10: =IFERROR(INDEX(Program!$J$7:$N$17,MATCH('Program Summary'!Q$8,Program!$J$7:$J$17,0),MATCH('Program Summary'!$B10,Program!$J$7:$N$7,0)),"") ->  | R10: =IFERROR(INDEX(Program!$J$7:$N$17,MATCH('Program Summary'!R$8,Program!$J$7:$J$17,0),MATCH('Program Summary'!$B10,Program!$J$7:$N$7,0)),"") ->  | S10: =IFERROR(INDEX(Program!$J$7:$N$17,MATCH('Program Summary'!S$8,Program!$J$7:$J$17,0),MATCH('Program Summary'!$B10,Program!$J$7:$N$7,0)),"") ->  | T10: =IFERROR(INDEX(Program!$J$7:$N$17,MATCH('Program Summary'!T$8,Program!$J$7:$J$17,0),MATCH('Program Summary'!$B10,Program!$J$7:$N$7,0)),"") ->  | U10: =IFERROR(INDEX(Program!$J$7:$N$17,MATCH('Program Summary'!U$8,Program!$J$7:$J$17,0),MATCH('Program Summary'!$B10,Program!$J$7:$N$7,0)),"") -> 
A12: Total Development Cost Per Unit | C12: ='Dev Budget'!F100 -> 0 | D12: =INDIRECT("'Dev Budget'!"&D$7&ROW('Dev Budget'!$P$100)) -> 0 | E12: =INDIRECT("'Dev Budget'!"&E$7&ROW('Dev Budget'!$P$100)) -> 0 | F12: =INDIRECT("'Dev Budget'!"&F$7&ROW('Dev Budget'!$P$100)) -> 0 | G12: =INDIRECT("'Dev Budget'!"&G$7&ROW('Dev Budget'!$P$100)) -> 0 | H12: =INDIRECT("'Dev Budget'!"&H$7&ROW('Dev Budget'!$P$100)) -> 0 | I12: =INDIRECT("'Dev Budget'!"&I$7&ROW('Dev Budget'!$P$100)) -> 0 | J12: =INDIRECT("'Dev Budget'!"&J$7&ROW('Dev Budget'!$P$100)) -> 0 | K12: =INDIRECT("'Dev Budget'!"&K$7&ROW('Dev Budget'!$P$100)) -> 0 | L12: =INDIRECT("'Dev Budget'!"&L$7&ROW('Dev Budget'!$P$100)) -> 0 | M12: =INDIRECT("'Dev Budget'!"&M$7&ROW('Dev Budget'!$P$100)) -> 0 | N12: =INDIRECT("'Dev Budget'!"&N$7&ROW('Dev Budget'!$P$100)) ->  | O12: =INDIRECT("'Dev Budget'!"&O$7&ROW('Dev Budget'!$P$100)) ->  | P12: =INDIRECT("'Dev Budget'!"&P$7&ROW('Dev Budget'!$P$100)) ->  | Q12: =INDIRECT("'Dev Budget'!"&Q$7&ROW('Dev Budget'!$P$100)) ->  | R12: =INDIRECT("'Dev Budget'!"&R$7&ROW('Dev Budget'!$P$100)) ->  | S12: =INDIRECT("'Dev Budget'!"&S$7&ROW('Dev Budget'!$P$100)) ->  | T12: =INDIRECT("'Dev Budget'!"&T$7&ROW('Dev Budget'!$P$100)) ->  | U12: =INDIRECT("'Dev Budget'!"&U$7&ROW('Dev Budget'!$P$100)) ->  | V12: =INDIRECT("'Dev Budget'!"&V$7&ROW('Dev Budget'!$P$100)) ->  | W12: =INDIRECT("'Dev Budget'!"&W$7&ROW('Dev Budget'!$P$100)) ->  | X12: =INDIRECT("'Dev Budget'!"&X$7&ROW('Dev Budget'!$P$100)) ->  | Y12: =INDIRECT("'Dev Budget'!"&Y$7&ROW('Dev Budget'!$P$100)) -> 
A13: Total Transaction Cost Per Unit | C13: ='Dev Budget'!F107 -> 0 | D13: =INDIRECT("'Dev Budget'!"&D$7&ROW('Dev Budget'!$P$107)) -> 0 | E13: =INDIRECT("'Dev Budget'!"&E$7&ROW('Dev Budget'!$P$107)) -> 0 | F13: =INDIRECT("'Dev Budget'!"&F$7&ROW('Dev Budget'!$P$107)) -> 0 | G13: =INDIRECT("'Dev Budget'!"&G$7&ROW('Dev Budget'!$P$107)) -> 0 | H13: =INDIRECT("'Dev Budget'!"&H$7&ROW('Dev Budget'!$P$107)) -> 0 | I13: =INDIRECT("'Dev Budget'!"&I$7&ROW('Dev Budget'!$P$107)) -> 0 | J13: =INDIRECT("'Dev Budget'!"&J$7&ROW('Dev Budget'!$P$107)) -> 0 | K13: =INDIRECT("'Dev Budget'!"&K$7&ROW('Dev Budget'!$P$107)) -> 0 | L13: =INDIRECT("'Dev Budget'!"&L$7&ROW('Dev Budget'!$P$107)) -> 0 | M13: =INDIRECT("'Dev Budget'!"&M$7&ROW('Dev Budget'!$P$107)) -> 0 | N13: =INDIRECT("'Dev Budget'!"&N$7&ROW('Dev Budget'!$P$107)) ->  | O13: =INDIRECT("'Dev Budget'!"&O$7&ROW('Dev Budget'!$P$107)) ->  | P13: =INDIRECT("'Dev Budget'!"&P$7&ROW('Dev Budget'!$P$107)) ->  | Q13: =INDIRECT("'Dev Budget'!"&Q$7&ROW('Dev Budget'!$P$107)) ->  | R13: =INDIRECT("'Dev Budget'!"&R$7&ROW('Dev Budget'!$P$107)) ->  | S13: =INDIRECT("'Dev Budget'!"&S$7&ROW('Dev Budget'!$P$107)) ->  | T13: =INDIRECT("'Dev Budget'!"&T$7&ROW('Dev Budget'!$P$107)) ->  | U13: =INDIRECT("'Dev Budget'!"&U$7&ROW('Dev Budget'!$P$107)) ->  | V13: =INDIRECT("'Dev Budget'!"&V$7&ROW('Dev Budget'!$P$107)) ->  | W13: =INDIRECT("'Dev Budget'!"&W$7&ROW('Dev Budget'!$P$107)) ->  | X13: =INDIRECT("'Dev Budget'!"&X$7&ROW('Dev Budget'!$P$107)) ->  | Y13: =INDIRECT("'Dev Budget'!"&Y$7&ROW('Dev Budget'!$P$107)) ->  | Z13: =INDIRECT("'Dev Budget'!"&Z$7&ROW('Dev Budget'!$P$107)) ->  | AA13: =INDIRECT("'Dev Budget'!"&AA$7&ROW('Dev Budget'!$P$107)) ->  | AB13: =INDIRECT("'Dev Budget'!"&AB$7&ROW('Dev Budget'!$P$107)) ->  | AC13: =INDIRECT("'Dev Budget'!"&AC$7&ROW('Dev Budget'!$P$107)) ->  | AD13: =INDIRECT("'Dev Budget'!"&AD$7&ROW('Dev Budget'!$P$107)) -> 
A15: Development Funding Per Unit | C15: =IFERROR(SUMPRODUCT(D15:M15,$D$10:$M$10)/SUM($D$10:$M$10),"") -> 0 | D15: =SUM(D16:D17) -> 0 | E15: 0 | F15: 0 | G15: 0 | H15: 0 | I15: 0 | J15: 0 | K15: 0 | L15: 0 | M15: 0
A16: EEHDP Funding Component | C16: =IFERROR(SUMPRODUCT(D16:M16,$D$10:$M$10)/SUM($D$10:$M$10),"") -> 0 | D16: =INDIRECT("'Dev Budget'!"&D7&ROW('Dev Budget'!$O$21)) -> 0 | E16: =INDIRECT("'Dev Budget'!"&E7&ROW('Dev Budget'!$O$21)) -> 0 | F16: =INDIRECT("'Dev Budget'!"&F7&ROW('Dev Budget'!$O$21)) -> 0 | G16: =INDIRECT("'Dev Budget'!"&G7&ROW('Dev Budget'!$O$21)) ->  | H16: =INDIRECT("'Dev Budget'!"&H7&ROW('Dev Budget'!$O$21)) ->  | I16: =INDIRECT("'Dev Budget'!"&I7&ROW('Dev Budget'!$O$21)) ->  | J16: =INDIRECT("'Dev Budget'!"&J7&ROW('Dev Budget'!$O$21)) ->  | K16: =INDIRECT("'Dev Budget'!"&K7&ROW('Dev Budget'!$O$21)) ->  | L16: =INDIRECT("'Dev Budget'!"&L7&ROW('Dev Budget'!$O$21)) ->  | M16: =INDIRECT("'Dev Budget'!"&M7&ROW('Dev Budget'!$O$21)) ->  | N16: =INDIRECT("'Dev Budget'!"&N7&ROW('Dev Budget'!$O$21)) ->  | O16: =INDIRECT("'Dev Budget'!"&O7&ROW('Dev Budget'!$O$21)) ->  | P16: =INDIRECT("'Dev Budget'!"&P7&ROW('Dev Budget'!$O$21)) ->  | Q16: =INDIRECT("'Dev Budget'!"&Q7&ROW('Dev Budget'!$O$21)) ->  | R16: =INDIRECT("'Dev Budget'!"&R7&ROW('Dev Budget'!$O$21)) ->  | S16: =INDIRECT("'Dev Budget'!"&S7&ROW('Dev Budget'!$O$21)) ->  | T16: =INDIRECT("'Dev Budget'!"&T7&ROW('Dev Budget'!$O$21)) ->  | U16: =INDIRECT("'Dev Budget'!"&U7&ROW('Dev Budget'!$O$21)) ->  | V16: =INDIRECT("'Dev Budget'!"&V7&ROW('Dev Budget'!$O$21)) ->  | W16: =INDIRECT("'Dev Budget'!"&W7&ROW('Dev Budget'!$O$21)) ->  | X16: =INDIRECT("'Dev Budget'!"&X7&ROW('Dev Budget'!$O$21)) ->  | Y16: =INDIRECT("'Dev Budget'!"&Y7&ROW('Dev Budget'!$O$21)) ->  | Z16: =INDIRECT("'Dev Budget'!"&Z7&ROW('Dev Budget'!$O$21)) ->  | AA16: =INDIRECT("'Dev Budget'!"&AA7&ROW('Dev Budget'!$O$21)) ->  | AB16: =INDIRECT("'Dev Budget'!"&AB7&ROW('Dev Budget'!$O$21)) ->  | AC16: =INDIRECT("'Dev Budget'!"&AC7&ROW('Dev Budget'!$O$21)) ->  | AD16: =INDIRECT("'Dev Budget'!"&AD7&ROW('Dev Budget'!$O$21)) ->  | AE16: =INDIRECT("'Dev Budget'!"&AE7&ROW('Dev Budget'!$O$21)) ->  | AF16: =INDIRECT("'Dev Budget'!"&AF7&ROW('Dev Budget'!$O$21)) ->  | AG16: =INDIRECT("'Dev Budget'!"&AG7&ROW('Dev Budget'!$O$21)) -> 
A17: Other Sources | C17: =IFERROR(SUMPRODUCT(D17:M17,$D$10:$M$10)/SUM($D$10:$M$10),"") -> 0 | D17: =INDIRECT("'dev budget'!"&D7&ROW('Dev Budget'!$O$28))-SUM(D16:D16) -> 0 | E17: =INDIRECT("'dev budget'!"&E7&ROW('Dev Budget'!$O$28))-SUM(E16:E16) -> 0 | F17: =INDIRECT("'dev budget'!"&F7&ROW('Dev Budget'!$O$28))-SUM(F16:F16) -> 0 | G17: =INDIRECT("'dev budget'!"&G7&ROW('Dev Budget'!$O$28))-SUM(G16:G16) -> 0 | H17: =INDIRECT("'dev budget'!"&H7&ROW('Dev Budget'!$O$28))-SUM(H16:H16) -> 0 | I17: =INDIRECT("'dev budget'!"&I7&ROW('Dev Budget'!$O$28))-SUM(I16:I16) -> 0 | J17: =INDIRECT("'dev budget'!"&J7&ROW('Dev Budget'!$O$28))-SUM(J16:J16) -> 0 | K17: =INDIRECT("'dev budget'!"&K7&ROW('Dev Budget'!$O$28))-SUM(K16:K16) -> 0 | L17: =INDIRECT("'dev budget'!"&L7&ROW('Dev Budget'!$O$28))-SUM(L16:L16) -> 0 | M17: =INDIRECT("'dev budget'!"&M7&ROW('Dev Budget'!$O$28))-SUM(M16:M16) -> 0 | N17: =INDIRECT("'dev budget'!"&N7&ROW('Dev Budget'!$O$28))-SUM(N16:N16) ->  | O17: =INDIRECT("'dev budget'!"&O7&ROW('Dev Budget'!$O$28))-SUM(O16:O16) ->  | P17: =INDIRECT("'dev budget'!"&P7&ROW('Dev Budget'!$O$28))-SUM(P16:P16) ->  | Q17: =INDIRECT("'dev budget'!"&Q7&ROW('Dev Budget'!$O$28))-SUM(Q16:Q16) ->  | R17: =INDIRECT("'dev budget'!"&R7&ROW('Dev Budget'!$O$28))-SUM(R16:R16) ->  | S17: =INDIRECT("'dev budget'!"&S7&ROW('Dev Budget'!$O$28))-SUM(S16:S16) ->  | T17: =INDIRECT("'dev budget'!"&T7&ROW('Dev Budget'!$O$28))-SUM(T16:T16) ->  | U17: =INDIRECT("'dev budget'!"&U7&ROW('Dev Budget'!$O$28))-SUM(U16:U16) ->  | V17: =INDIRECT("'dev budget'!"&V7&ROW('Dev Budget'!$O$28))-SUM(V16:V16) ->  | W17: =INDIRECT("'dev budget'!"&W7&ROW('Dev Budget'!$O$28))-SUM(W16:W16) ->  | X17: =INDIRECT("'dev budget'!"&X7&ROW('Dev Budget'!$O$28))-SUM(X16:X16) ->  | Y17: =INDIRECT("'dev budget'!"&Y7&ROW('Dev Budget'!$O$28))-SUM(Y16:Y16) ->  | Z17: =INDIRECT("'dev budget'!"&Z7&ROW('Dev Budget'!$O$28))-SUM(Z16:Z16) ->  | AA17: =INDIRECT("'dev budget'!"&AA7&ROW('Dev Budget'!$O$28))-SUM(AA16:AA16) ->  | AB17: =INDIRECT("'dev budget'!"&AB7&ROW('Dev Budget'!$O$28))-SUM(AB16:AB16) ->  | AC17: =INDIRECT("'dev budget'!"&AC7&ROW('Dev Budget'!$O$28))-SUM(AC16:AC16) ->  | AD17: =INDIRECT("'dev budget'!"&AD7&ROW('Dev Budget'!$O$28))-SUM(AD16:AD16) ->  | AE17: =INDIRECT("'dev budget'!"&AE7&ROW('Dev Budget'!$O$28))-SUM(AE16:AE16) ->  | AF17: =INDIRECT("'dev budget'!"&AF7&ROW('Dev Budget'!$O$28))-SUM(AF16:AF16) ->  | AG17: =INDIRECT("'dev budget'!"&AG7&ROW('Dev Budget'!$O$28))-SUM(AG16:AG16) -> 
A19: Sale Price Per Unit | B19: =[2]Program!N7 -> Sale Price | C19: =IFERROR(SUMPRODUCT(D19:M19,$D$10:$M$10)/SUM($D$10:$M$10),"") -> 172000 | D19: =IFERROR(INDEX(Program!$J$7:$N$17,MATCH('Program Summary'!D$8,Program!$J$7:$J$17,0),MATCH('Program Summary'!$B19,Program!$J$7:$N$7,0)),"") -> 150000 | E19: =IFERROR(INDEX(Program!$J$7:$N$17,MATCH('Program Summary'!E$8,Program!$J$7:$J$17,0),MATCH('Program Summary'!$B19,Program!$J$7:$N$7,0)),"") -> 160000 | F19: =IFERROR(INDEX(Program!$J$7:$N$17,MATCH('Program Summary'!F$8,Program!$J$7:$J$17,0),MATCH('Program Summary'!$B19,Program!$J$7:$N$7,0)),"") -> 200000 | G19: =IFERROR(INDEX(Program!$J$7:$N$17,MATCH('Program Summary'!G$8,Program!$J$7:$J$17,0),MATCH('Program Summary'!$B19,Program!$J$7:$N$7,0)),"") ->  | H19: =IFERROR(INDEX(Program!$J$7:$N$17,MATCH('Program Summary'!H$8,Program!$J$7:$J$17,0),MATCH('Program Summary'!$B19,Program!$J$7:$N$7,0)),"") ->  | I19: =IFERROR(INDEX(Program!$J$7:$N$17,MATCH('Program Summary'!I$8,Program!$J$7:$J$17,0),MATCH('Program Summary'!$B19,Program!$J$7:$N$7,0)),"") ->  | J19: =IFERROR(INDEX(Program!$J$7:$N$17,MATCH('Program Summary'!J$8,Program!$J$7:$J$17,0),MATCH('Program Summary'!$B19,Program!$J$7:$N$7,0)),"") ->  | K19: =IFERROR(INDEX(Program!$J$7:$N$17,MATCH('Program Summary'!K$8,Program!$J$7:$J$17,0),MATCH('Program Summary'!$B19,Program!$J$7:$N$7,0)),"") ->  | L19: =IFERROR(INDEX(Program!$J$7:$N$17,MATCH('Program Summary'!L$8,Program!$J$7:$J$17,0),MATCH('Program Summary'!$B19,Program!$J$7:$N$7,0)),"") ->  | M19: =IFERROR(INDEX(Program!$J$7:$N$17,MATCH('Program Summary'!M$8,Program!$J$7:$J$17,0),MATCH('Program Summary'!$B19,Program!$J$7:$N$7,0)),"") ->  | N19: =IFERROR(INDEX(Program!$J$7:$N$17,MATCH('Program Summary'!N$8,Program!$J$7:$J$17,0),MATCH('Program Summary'!$B19,Program!$J$7:$N$7,0)),"") ->  | O19: =IFERROR(INDEX(Program!$J$7:$N$17,MATCH('Program Summary'!O$8,Program!$J$7:$J$17,0),MATCH('Program Summary'!$B19,Program!$J$7:$N$7,0)),"") ->  | P19: =IFERROR(INDEX(Program!$J$7:$N$17,MATCH('Program Summary'!P$8,Program!$J$7:$J$17,0),MATCH('Program Summary'!$B19,Program!$J$7:$N$7,0)),"") ->  | Q19: =IFERROR(INDEX(Program!$J$7:$N$17,MATCH('Program Summary'!Q$8,Program!$J$7:$J$17,0),MATCH('Program Summary'!$B19,Program!$J$7:$N$7,0)),"") ->  | R19: =IFERROR(INDEX(Program!$J$7:$N$17,MATCH('Program Summary'!R$8,Program!$J$7:$J$17,0),MATCH('Program Summary'!$B19,Program!$J$7:$N$7,0)),"") ->  | S19: =IFERROR(INDEX(Program!$J$7:$N$17,MATCH('Program Summary'!S$8,Program!$J$7:$J$17,0),MATCH('Program Summary'!$B19,Program!$J$7:$N$7,0)),"") ->  | T19: =IFERROR(INDEX(Program!$J$7:$N$17,MATCH('Program Summary'!T$8,Program!$J$7:$J$17,0),MATCH('Program Summary'!$B19,Program!$J$7:$N$7,0)),"") ->  | U19: =IFERROR(INDEX(Program!$J$7:$N$17,MATCH('Program Summary'!U$8,Program!$J$7:$J$17,0),MATCH('Program Summary'!$B19,Program!$J$7:$N$7,0)),"") ->  | V19: =IFERROR(INDEX(Program!$J$7:$N$17,MATCH('Program Summary'!V$8,Program!$J$7:$J$17,0),MATCH('Program Summary'!$B19,Program!$J$7:$N$7,0)),"") ->  | W19: =IFERROR(INDEX(Program!$J$7:$N$17,MATCH('Program Summary'!W$8,Program!$J$7:$J$17,0),MATCH('Program Summary'!$B19,Program!$J$7:$N$7,0)),"") ->  | X19: =IFERROR(INDEX(Program!$J$7:$N$17,MATCH('Program Summary'!X$8,Program!$J$7:$J$17,0),MATCH('Program Summary'!$B19,Program!$J$7:$N$7,0)),"") ->  | Y19: =IFERROR(INDEX(Program!$J$7:$N$17,MATCH('Program Summary'!Y$8,Program!$J$7:$J$17,0),MATCH('Program Summary'!$B19,Program!$J$7:$N$7,0)),"") ->  | Z19: =IFERROR(INDEX(Program!$J$7:$N$17,MATCH('Program Summary'!Z$8,Program!$J$7:$J$17,0),MATCH('Program Summary'!$B19,Program!$J$7:$N$7,0)),"") ->  | AA19: =IFERROR(INDEX(Program!$J$7:$N$17,MATCH('Program Summary'!AA$8,Program!$J$7:$J$17,0),MATCH('Program Summary'!$B19,Program!$J$7:$N$7,0)),"") ->  | AB19: =IFERROR(INDEX(Program!$J$7:$N$17,MATCH('Program Summary'!AB$8,Program!$J$7:$J$17,0),MATCH('Program Summary'!$B19,Program!$J$7:$N$7,0)),"") ->  | AC19: =IFERROR(INDEX(Program!$J$7:$N$17,MATCH('Program Summary'!AC$8,Program!$J$7:$J$17,0),MATCH('Program Summary'!$B19,Program!$J$7:$N$7,0)),"") ->  | AD19: =IFERROR(INDEX(Program!$J$7:$N$17,MATCH('Program Summary'!AD$8,Program!$J$7:$J$17,0),MATCH('Program Summary'!$B19,Program!$J$7:$N$7,0)),"") ->  | AE19: =IFERROR(INDEX(Program!$J$7:$N$17,MATCH('Program Summary'!AE$8,Program!$J$7:$J$17,0),MATCH('Program Summary'!$B19,Program!$J$7:$N$7,0)),"") -> 
F20: =IF(D26="No",IF(D10<41,D32,IF(D37="Alternative Combination",D32+D40,D32+#REF!)),"") -> 
A21: =_xlfn.CONCAT("Is this affordable to a ",B41,"-person household at:") -> Is this affordable to a 4-person household at:
A22: 1 | D22: =IFERROR(IF(D$19=0,"",IF((PMT($B$30/12,$B$31*12,-((1-$B$29)*(D$19*(1+$B$27))-SUM($B$28:$B$28)))+(D$19*0.9/12*SUM($B$33:$B$36))+($B$37*((1-$B$29)*(D$19*(1+$B$27))-SUM($B$28:$B$28)))+$B$38-$B$39)*12/$B$40<INDEX('Program Summary'!$A$43:$E$49,MATCH('Program Summary'!$B$41,'Program Summary'!$A$43:$A$49,0),MATCH('Program Summary'!$A22,'Program Summary'!$A$43:$E$43,0)),"Yes","No")),"") -> Yes | E22: =IFERROR(IF(E$19=0,"",IF((PMT($B$30/12,$B$31*12,-((1-$B$29)*(E$19*(1+$B$27))-SUM($B$28:$B$28)))+(E$19*0.9/12*SUM($B$33:$B$36))+($B$37*((1-$B$29)*(E$19*(1+$B$27))-SUM($B$28:$B$28)))+$B$38-$B$39)*12/$B$40<INDEX('Program Summary'!$A$43:$E$49,MATCH('Program Summary'!$B$41,'Program Summary'!$A$43:$A$49,0),MATCH('Program Summary'!$A22,'Program Summary'!$A$43:$E$43,0)),"Yes","No")),"") -> Yes | F22: =IFERROR(IF(F$19=0,"",IF((PMT($B$30/12,$B$31*12,-((1-$B$29)*(F$19*(1+$B$27))-SUM($B$28:$B$28)))+(F$19*0.9/12*SUM($B$33:$B$36))+($B$37*((1-$B$29)*(F$19*(1+$B$27))-SUM($B$28:$B$28)))+$B$38-$B$39)*12/$B$40<INDEX('Program Summary'!$A$43:$E$49,MATCH('Program Summary'!$B$41,'Program Summary'!$A$43:$A$49,0),MATCH('Program Summary'!$A22,'Program Summary'!$A$43:$E$43,0)),"Yes","No")),"") -> No | G22: =IFERROR(IF(G$19=0,"",IF((PMT($B$30/12,$B$31*12,-((1-$B$29)*(G$19*(1+$B$27))-SUM($B$28:$B$28)))+(G$19*0.9/12*SUM($B$33:$B$36))+($B$37*((1-$B$29)*(G$19*(1+$B$27))-SUM($B$28:$B$28)))+$B$38-$B$39)*12/$B$40<INDEX('Program Summary'!$A$43:$E$49,MATCH('Program Summary'!$B$41,'Program Summary'!$A$43:$A$49,0),MATCH('Program Summary'!$A22,'Program Summary'!$A$43:$E$43,0)),"Yes","No")),"") ->  | H22: =IFERROR(IF(H$19=0,"",IF((PMT($B$30/12,$B$31*12,-((1-$B$29)*(H$19*(1+$B$27))-SUM($B$28:$B$28)))+(H$19*0.9/12*SUM($B$33:$B$36))+($B$37*((1-$B$29)*(H$19*(1+$B$27))-SUM($B$28:$B$28)))+$B$38-$B$39)*12/$B$40<INDEX('Program Summary'!$A$43:$E$49,MATCH('Program Summary'!$B$41,'Program Summary'!$A$43:$A$49,0),MATCH('Program Summary'!$A22,'Program Summary'!$A$43:$E$43,0)),"Yes","No")),"") ->  | I22: =IFERROR(IF(I$19=0,"",IF((PMT($B$30/12,$B$31*12,-((1-$B$29)*(I$19*(1+$B$27))-SUM($B$28:$B$28)))+(I$19*0.9/12*SUM($B$33:$B$36))+($B$37*((1-$B$29)*(I$19*(1+$B$27))-SUM($B$28:$B$28)))+$B$38-$B$39)*12/$B$40<INDEX('Program Summary'!$A$43:$E$49,MATCH('Program Summary'!$B$41,'Program Summary'!$A$43:$A$49,0),MATCH('Program Summary'!$A22,'Program Summary'!$A$43:$E$43,0)),"Yes","No")),"") ->  | J22: =IFERROR(IF(J$19=0,"",IF((PMT($B$30/12,$B$31*12,-((1-$B$29)*(J$19*(1+$B$27))-SUM($B$28:$B$28)))+(J$19*0.9/12*SUM($B$33:$B$36))+($B$37*((1-$B$29)*(J$19*(1+$B$27))-SUM($B$28:$B$28)))+$B$38-$B$39)*12/$B$40<INDEX('Program Summary'!$A$43:$E$49,MATCH('Program Summary'!$B$41,'Program Summary'!$A$43:$A$49,0),MATCH('Program Summary'!$A22,'Program Summary'!$A$43:$E$43,0)),"Yes","No")),"") ->  | K22: =IFERROR(IF(K$19=0,"",IF((PMT($B$30/12,$B$31*12,-((1-$B$29)*(K$19*(1+$B$27))-SUM($B$28:$B$28)))+(K$19*0.9/12*SUM($B$33:$B$36))+($B$37*((1-$B$29)*(K$19*(1+$B$27))-SUM($B$28:$B$28)))+$B$38-$B$39)*12/$B$40<INDEX('Program Summary'!$A$43:$E$49,MATCH('Program Summary'!$B$41,'Program Summary'!$A$43:$A$49,0),MATCH('Program Summary'!$A22,'Program Summary'!$A$43:$E$43,0)),"Yes","No")),"") ->  | L22: =IFERROR(IF(L$19=0,"",IF((PMT($B$30/12,$B$31*12,-((1-$B$29)*(L$19*(1+$B$27))-SUM($B$28:$B$28)))+(L$19*0.9/12*SUM($B$33:$B$36))+($B$37*((1-$B$29)*(L$19*(1+$B$27))-SUM($B$28:$B$28)))+$B$38-$B$39)*12/$B$40<INDEX('Program Summary'!$A$43:$E$49,MATCH('Program Summary'!$B$41,'Program Summary'!$A$43:$A$49,0),MATCH('Program Summary'!$A22,'Program Summary'!$A$43:$E$43,0)),"Yes","No")),"") ->  | M22: =IFERROR(IF(M$19=0,"",IF((PMT($B$30/12,$B$31*12,-((1-$B$29)*(M$19*(1+$B$27))-SUM($B$28:$B$28)))+(M$19*0.9/12*SUM($B$33:$B$36))+($B$37*((1-$B$29)*(M$19*(1+$B$27))-SUM($B$28:$B$28)))+$B$38-$B$39)*12/$B$40<INDEX('Program Summary'!$A$43:$E$49,MATCH('Program Summary'!$B$41,'Program Summary'!$A$43:$A$49,0),MATCH('Program Summary'!$A22,'Program Summary'!$A$43:$E$43,0)),"Yes","No")),"") -> 
A23: 0.8 | D23: =IFERROR(IF(D$19=0,"",IF((PMT($B$30/12,$B$31*12,-((1-$B$29)*(D$19*(1+$B$27))-SUM($B$28:$B$28)))+(D$19*0.9/12*SUM($B$33:$B$36))+($B$37*((1-$B$29)*(D$19*(1+$B$27))-SUM($B$28:$B$28)))+$B$38-$B$39)*12/$B$40<INDEX('Program Summary'!$A$43:$E$49,MATCH('Program Summary'!$B$41,'Program Summary'!$A$43:$A$49,0),MATCH('Program Summary'!$A23,'Program Summary'!$A$43:$E$43,0)),"Yes","No")),"") -> No | E23: =IFERROR(IF(E$19=0,"",IF((PMT($B$30/12,$B$31*12,-((1-$B$29)*(E$19*(1+$B$27))-SUM($B$28:$B$28)))+(E$19*0.9/12*SUM($B$33:$B$36))+($B$37*((1-$B$29)*(E$19*(1+$B$27))-SUM($B$28:$B$28)))+$B$38-$B$39)*12/$B$40<INDEX('Program Summary'!$A$43:$E$49,MATCH('Program Summary'!$B$41,'Program Summary'!$A$43:$A$49,0),MATCH('Program Summary'!$A23,'Program Summary'!$A$43:$E$43,0)),"Yes","No")),"") -> No | F23: =IFERROR(IF(F$19=0,"",IF((PMT($B$30/12,$B$31*12,-((1-$B$29)*(F$19*(1+$B$27))-SUM($B$28:$B$28)))+(F$19*0.9/12*SUM($B$33:$B$36))+($B$37*((1-$B$29)*(F$19*(1+$B$27))-SUM($B$28:$B$28)))+$B$38-$B$39)*12/$B$40<INDEX('Program Summary'!$A$43:$E$49,MATCH('Program Summary'!$B$41,'Program Summary'!$A$43:$A$49,0),MATCH('Program Summary'!$A23,'Program Summary'!$A$43:$E$43,0)),"Yes","No")),"") -> No | G23: =IFERROR(IF(G$19=0,"",IF((PMT($B$30/12,$B$31*12,-((1-$B$29)*(G$19*(1+$B$27))-SUM($B$28:$B$28)))+(G$19*0.9/12*SUM($B$33:$B$36))+($B$37*((1-$B$29)*(G$19*(1+$B$27))-SUM($B$28:$B$28)))+$B$38-$B$39)*12/$B$40<INDEX('Program Summary'!$A$43:$E$49,MATCH('Program Summary'!$B$41,'Program Summary'!$A$43:$A$49,0),MATCH('Program Summary'!$A23,'Program Summary'!$A$43:$E$43,0)),"Yes","No")),"") ->  | H23: =IFERROR(IF(H$19=0,"",IF((PMT($B$30/12,$B$31*12,-((1-$B$29)*(H$19*(1+$B$27))-SUM($B$28:$B$28)))+(H$19*0.9/12*SUM($B$33:$B$36))+($B$37*((1-$B$29)*(H$19*(1+$B$27))-SUM($B$28:$B$28)))+$B$38-$B$39)*12/$B$40<INDEX('Program Summary'!$A$43:$E$49,MATCH('Program Summary'!$B$41,'Program Summary'!$A$43:$A$49,0),MATCH('Program Summary'!$A23,'Program Summary'!$A$43:$E$43,0)),"Yes","No")),"") ->  | I23: =IFERROR(IF(I$19=0,"",IF((PMT($B$30/12,$B$31*12,-((1-$B$29)*(I$19*(1+$B$27))-SUM($B$28:$B$28)))+(I$19*0.9/12*SUM($B$33:$B$36))+($B$37*((1-$B$29)*(I$19*(1+$B$27))-SUM($B$28:$B$28)))+$B$38-$B$39)*12/$B$40<INDEX('Program Summary'!$A$43:$E$49,MATCH('Program Summary'!$B$41,'Program Summary'!$A$43:$A$49,0),MATCH('Program Summary'!$A23,'Program Summary'!$A$43:$E$43,0)),"Yes","No")),"") ->  | J23: =IFERROR(IF(J$19=0,"",IF((PMT($B$30/12,$B$31*12,-((1-$B$29)*(J$19*(1+$B$27))-SUM($B$28:$B$28)))+(J$19*0.9/12*SUM($B$33:$B$36))+($B$37*((1-$B$29)*(J$19*(1+$B$27))-SUM($B$28:$B$28)))+$B$38-$B$39)*12/$B$40<INDEX('Program Summary'!$A$43:$E$49,MATCH('Program Summary'!$B$41,'Program Summary'!$A$43:$A$49,0),MATCH('Program Summary'!$A23,'Program Summary'!$A$43:$E$43,0)),"Yes","No")),"") ->  | K23: =IFERROR(IF(K$19=0,"",IF((PMT($B$30/12,$B$31*12,-((1-$B$29)*(K$19*(1+$B$27))-SUM($B$28:$B$28)))+(K$19*0.9/12*SUM($B$33:$B$36))+($B$37*((1-$B$29)*(K$19*(1+$B$27))-SUM($B$28:$B$28)))+$B$38-$B$39)*12/$B$40<INDEX('Program Summary'!$A$43:$E$49,MATCH('Program Summary'!$B$41,'Program Summary'!$A$43:$A$49,0),MATCH('Program Summary'!$A23,'Program Summary'!$A$43:$E$43,0)),"Yes","No")),"") ->  | L23: =IFERROR(IF(L$19=0,"",IF((PMT($B$30/12,$B$31*12,-((1-$B$29)*(L$19*(1+$B$27))-SUM($B$28:$B$28)))+(L$19*0.9/12*SUM($B$33:$B$36))+($B$37*((1-$B$29)*(L$19*(1+$B$27))-SUM($B$28:$B$28)))+$B$38-$B$39)*12/$B$40<INDEX('Program Summary'!$A$43:$E$49,MATCH('Program Summary'!$B$41,'Program Summary'!$A$43:$A$49,0),MATCH('Program Summary'!$A23,'Program Summary'!$A$43:$E$43,0)),"Yes","No")),"") ->  | M23: =IFERROR(IF(M$19=0,"",IF((PMT($B$30/12,$B$31*12,-((1-$B$29)*(M$19*(1+$B$27))-SUM($B$28:$B$28)))+(M$19*0.9/12*SUM($B$33:$B$36))+($B$37*((1-$B$29)*(M$19*(1+$B$27))-SUM($B$28:$B$28)))+$B$38-$B$39)*12/$B$40<INDEX('Program Summary'!$A$43:$E$49,MATCH('Program Summary'!$B$41,'Program Summary'!$A$43:$A$49,0),MATCH('Program Summary'!$A23,'Program Summary'!$A$43:$E$43,0)),"Yes","No")),"") -> 
A24: 0.5 | D24: =IFERROR(IF(D$19=0,"",IF((PMT($B$30/12,$B$31*12,-((1-$B$29)*(D$19*(1+$B$27))-SUM($B$28:$B$28)))+(D$19*0.9/12*SUM($B$33:$B$36))+($B$37*((1-$B$29)*(D$19*(1+$B$27))-SUM($B$28:$B$28)))+$B$38-$B$39)*12/$B$40<INDEX('Program Summary'!$A$43:$E$49,MATCH('Program Summary'!$B$41,'Program Summary'!$A$43:$A$49,0),MATCH('Program Summary'!$A24,'Program Summary'!$A$43:$E$43,0)),"Yes","No")),"") -> No | E24: =IFERROR(IF(E$19=0,"",IF((PMT($B$30/12,$B$31*12,-((1-$B$29)*(E$19*(1+$B$27))-SUM($B$28:$B$28)))+(E$19*0.9/12*SUM($B$33:$B$36))+($B$37*((1-$B$29)*(E$19*(1+$B$27))-SUM($B$28:$B$28)))+$B$38-$B$39)*12/$B$40<INDEX('Program Summary'!$A$43:$E$49,MATCH('Program Summary'!$B$41,'Program Summary'!$A$43:$A$49,0),MATCH('Program Summary'!$A24,'Program Summary'!$A$43:$E$43,0)),"Yes","No")),"") -> No | F24: =IFERROR(IF(F$19=0,"",IF((PMT($B$30/12,$B$31*12,-((1-$B$29)*(F$19*(1+$B$27))-SUM($B$28:$B$28)))+(F$19*0.9/12*SUM($B$33:$B$36))+($B$37*((1-$B$29)*(F$19*(1+$B$27))-SUM($B$28:$B$28)))+$B$38-$B$39)*12/$B$40<INDEX('Program Summary'!$A$43:$E$49,MATCH('Program Summary'!$B$41,'Program Summary'!$A$43:$A$49,0),MATCH('Program Summary'!$A24,'Program Summary'!$A$43:$E$43,0)),"Yes","No")),"") -> No | G24: =IFERROR(IF(G$19=0,"",IF((PMT($B$30/12,$B$31*12,-((1-$B$29)*(G$19*(1+$B$27))-SUM($B$28:$B$28)))+(G$19*0.9/12*SUM($B$33:$B$36))+($B$37*((1-$B$29)*(G$19*(1+$B$27))-SUM($B$28:$B$28)))+$B$38-$B$39)*12/$B$40<INDEX('Program Summary'!$A$43:$E$49,MATCH('Program Summary'!$B$41,'Program Summary'!$A$43:$A$49,0),MATCH('Program Summary'!$A24,'Program Summary'!$A$43:$E$43,0)),"Yes","No")),"") ->  | H24: =IFERROR(IF(H$19=0,"",IF((PMT($B$30/12,$B$31*12,-((1-$B$29)*(H$19*(1+$B$27))-SUM($B$28:$B$28)))+(H$19*0.9/12*SUM($B$33:$B$36))+($B$37*((1-$B$29)*(H$19*(1+$B$27))-SUM($B$28:$B$28)))+$B$38-$B$39)*12/$B$40<INDEX('Program Summary'!$A$43:$E$49,MATCH('Program Summary'!$B$41,'Program Summary'!$A$43:$A$49,0),MATCH('Program Summary'!$A24,'Program Summary'!$A$43:$E$43,0)),"Yes","No")),"") ->  | I24: =IFERROR(IF(I$19=0,"",IF((PMT($B$30/12,$B$31*12,-((1-$B$29)*(I$19*(1+$B$27))-SUM($B$28:$B$28)))+(I$19*0.9/12*SUM($B$33:$B$36))+($B$37*((1-$B$29)*(I$19*(1+$B$27))-SUM($B$28:$B$28)))+$B$38-$B$39)*12/$B$40<INDEX('Program Summary'!$A$43:$E$49,MATCH('Program Summary'!$B$41,'Program Summary'!$A$43:$A$49,0),MATCH('Program Summary'!$A24,'Program Summary'!$A$43:$E$43,0)),"Yes","No")),"") ->  | J24: =IFERROR(IF(J$19=0,"",IF((PMT($B$30/12,$B$31*12,-((1-$B$29)*(J$19*(1+$B$27))-SUM($B$28:$B$28)))+(J$19*0.9/12*SUM($B$33:$B$36))+($B$37*((1-$B$29)*(J$19*(1+$B$27))-SUM($B$28:$B$28)))+$B$38-$B$39)*12/$B$40<INDEX('Program Summary'!$A$43:$E$49,MATCH('Program Summary'!$B$41,'Program Summary'!$A$43:$A$49,0),MATCH('Program Summary'!$A24,'Program Summary'!$A$43:$E$43,0)),"Yes","No")),"") ->  | K24: =IFERROR(IF(K$19=0,"",IF((PMT($B$30/12,$B$31*12,-((1-$B$29)*(K$19*(1+$B$27))-SUM($B$28:$B$28)))+(K$19*0.9/12*SUM($B$33:$B$36))+($B$37*((1-$B$29)*(K$19*(1+$B$27))-SUM($B$28:$B$28)))+$B$38-$B$39)*12/$B$40<INDEX('Program Summary'!$A$43:$E$49,MATCH('Program Summary'!$B$41,'Program Summary'!$A$43:$A$49,0),MATCH('Program Summary'!$A24,'Program Summary'!$A$43:$E$43,0)),"Yes","No")),"") ->  | L24: =IFERROR(IF(L$19=0,"",IF((PMT($B$30/12,$B$31*12,-((1-$B$29)*(L$19*(1+$B$27))-SUM($B$28:$B$28)))+(L$19*0.9/12*SUM($B$33:$B$36))+($B$37*((1-$B$29)*(L$19*(1+$B$27))-SUM($B$28:$B$28)))+$B$38-$B$39)*12/$B$40<INDEX('Program Summary'!$A$43:$E$49,MATCH('Program Summary'!$B$41,'Program Summary'!$A$43:$A$49,0),MATCH('Program Summary'!$A24,'Program Summary'!$A$43:$E$43,0)),"Yes","No")),"") ->  | M24: =IFERROR(IF(M$19=0,"",IF((PMT($B$30/12,$B$31*12,-((1-$B$29)*(M$19*(1+$B$27))-SUM($B$28:$B$28)))+(M$19*0.9/12*SUM($B$33:$B$36))+($B$37*((1-$B$29)*(M$19*(1+$B$27))-SUM($B$28:$B$28)))+$B$38-$B$39)*12/$B$40<INDEX('Program Summary'!$A$43:$E$49,MATCH('Program Summary'!$B$41,'Program Summary'!$A$43:$A$49,0),MATCH('Program Summary'!$A24,'Program Summary'!$A$43:$E$43,0)),"Yes","No")),"") -> 
A26: Affordability Assumptions: | C26: Notes
A27: Closing Costs | B27: 0.03 | C27: Percentage of Sale Price
A28: Deferred Loans to Buyer | B28: 20000
A29: Down Payment | B29: 0.03 | C29: Percentage of Sale Price + Closing Costs
A30: Mortgage Rate | B30: 0.0425
A31: Mortgage Term | B31: 30
A32: Monthly Taxes
A33: County | B33: 0.00473
A34: City | B34: 0.00806
A35: School | B35: 0.00984
A36: Library | B36: 0.00025
A37: Monthly Mortgage Insurance | B37: 0.005
A38: Monthly Insurance | B38: 65
A39: Other Income | C39: e.g. rental income
A40: Affordability Threshold | B40: 0.25 | C40: Percentage of income spent on housing (20% to 30%)
A41: Household Size | B41: 4
A43: Area Median Income by Household Size (2020) | C43: 0.5 | D43: 0.8 | E43: 1
A44: 1 | B44: 0.7 | C44: =(D44/$D$43)*$C$43 -> 29050 | D44: =$B44*$D$47 -> 46480 | E44: =(D44/$D$43)*$E$43 -> 58100
A45: 2 | B45: 0.8 | C45: 33200 | D45: =$B45*$D$47 -> 53120 | E45: 66400
A46: 3 | B46: 0.9 | C46: 37350 | D46: =$B46*$D$47 -> 59760 | E46: 74700
A47: 4 | B47: 1 | C47: 41500 | D47: 66400 | E47: 83000
A48: 5 | B48: 1.08 | C48: 44820 | D48: =$B48*$D$47 -> 71712 | E48: 89640
A49: 6 | B49: 1.16 | C49: 48140 | D49: =$B49*$D$47 -> 77024 | E49: 96280

Sheet Verifications
A2: PROJECT NAME | B2: =[2]Instructions!$C$15 -> Project A
A3: DEVELOPER/SPONSOR | B3: =[2]Instructions!$C$16 -> Apex Developers
A5: Minimum Affordable Unit Verification - For Sale
A7: Verification | H7: EEHDP Units
A8: Total Number of Units Seeking Funding | H8: ='Program Summary'!C10 -> 5
A10: Number of Units Affordable to 80% AMI | H10: 3
A11: Number of Units Affordable to 100% AMI | H11: 0
A13: AFFORDABILITY REQUIREMENT MET? | H13: =IF(H10>=ROUNDUP(0.51*H8,1),"Yes","No") -> Yes
A14: =IF(AND(H13="No"),CONCATENATE("Number of Units Affordable to Households at or Below 80% AMI Must Be At Least ",ROUNDUP(0.51*H8,0)),"") -> 
A17: Funding Request Verification
H19: EEHDP
A20: Funding Request ($) | H20: ='Dev Budget'!$E$21 -> 0
A22: Per-Unit Funding | H22: =IFERROR(H20/H8,"") -> 0
A23: Within target level of funding? ($70,000 for Units @ 80% AMI, $60,000 for units @ 100% AMI) | H23: =IF(OR(H22=0,H22=""),"",IF(H22<=70000,"Yes","No")) -> 
A27: Comparison with PHFA Median Costs
A29: Calculated Project Cost PSF | J29: ='Dev Budget'!G109-'Dev Budget'!G45 -> 0
A31: Application Property Type | H31: Pennsylvania Median Cost PSF | I31: Over or Under? | J31: Mark Most Relevant Property Type(s) with "X"
A32: Single Family/Townhouse | H32: 201 | I32: =IF($J$29>H32,"Over",IF($J$29=H32,"Equal",IF($J$29<H32,"Under",""))) -> Under
A33: Multi-Story Elevator Building | H33: 215 | I33: =IF($J$29>H33,"Over",IF($J$29=H33,"Equal",IF($J$29<H33,"Under",""))) -> Under
A34: Adaptive Reuse Building | H34: 250.5 | I34: =IF($J$29>H34,"Over",IF($J$29=H34,"Equal",IF($J$29<H34,"Under",""))) -> Under
A35: Preservation | H35: 144 | I35: =IF($J$29>H35,"Over",IF($J$29=H35,"Equal",IF($J$29<H35,"Under",""))) -> Under
A36: Pittsburgh | H36: 292.5 | I36: =IF($J$29>H36,"Over",IF($J$29=H36,"Equal",IF($J$29<H36,"Under",""))) -> Under
